Local authority department which incurred the expenditure,Service Division,Cost Centre,Summary of the Purpose of Expenditure,Expense Type,Expense Code,Detailed Expense Type,Date of Transaction,Transaction Number,Beneficiary,Merchant Category Number,Merchant Category,Gross Amount,VAT,Net Amount
Children and Young Peoples Services,Head of Education and Skills,071801,Selby Cottage Childcare Centre,Supplies and Services,304259,Equipment and Materials,01-May-2019,000008520812381,ITUNES.COM/BILL,5735,Equipment-purchase and rental,0.79,0.00,0.79
Transformation and Partnerships,Communications Management,060202,Comms & Marketing - Celebrating Durham,Supplies and Services,304335,Equipment and Materials,01-May-2019,000008520812413,CODEREADR,5734,ICT supplies etc,0.21,0.00,0.21
Regeneration and Local Services,Development and Housing,030554,International Relations 030554,Transport,235057,Public Transport,01-May-2019,000008525971057,PRINCE BISHOP SHOPPING,7523,Staff travelling,11.50,0.00,11.50
Children and Young Peoples Services,Head of Education and Skills,071801,Selby Cottage Childcare Centre,Supplies and Services,324117,Provisions E324,01-May-2019,000008525971061,TESCO STORES 2278,5411,Catering costs - provisions,10.80,0.00,10.80
Children and Young Peoples Services,Head of Education and Skills,071801,Selby Cottage Childcare Centre,Supplies and Services,324117,Provisions E324,01-May-2019,000008525971067,TESCO STORES 2278,5411,Catering costs - provisions,5.00,0.00,5.00
Regeneration and Local Services,Development and Housing,031617,Project Beta Sustainability Fund,Supplies and Services,328041,Clothing uniforms and laundry E328,01-May-2019,000008525971087,Argos Durham Arnis,5310,Clothing uniforms and laundry,19.99,0.00,19.99
Resources BK0010,Internal Audit and Insurance,065104,Internal Audit 065104,Employees,040149,Recruitment Instruction and Training,01-May-2019,000008525971097,WWW.ACCOUNTS@IIA.ORG.U,8931,Training-all costs,196.00,0.00,196.00
Children and Young Peoples Services,Head of Education and Skills,075021,Youth Employment Initiative,Supplies and Services,384199,Miscellaneous Expenses,01-May-2019,000008525971135,WWW.DURHAM.GOV.UK,9399,Other hired and contracted services,11.00,0.00,11.00
Children and Young Peoples Services,Head of Childrens Social Care,085342,9 Cedar Drive Aycliffe,Supplies and Services,324117,Provisions E324,01-May-2019,000008525971171,ALDI 74 774,5411,Catering costs - provisions,18.71,0.00,18.71
Children and Young Peoples Services,Head of Childrens Social Care,085332,Middlestone Moor CU,Supplies and Services,324117,Provisions E324,01-May-2019,000008525971179,TESCO STORES 2916,5411,Catering costs - provisions,24.26,0.00,24.26
Children and Young Peoples Services,Head of Childrens Social Care,085332,Middlestone Moor CU,Supplies and Services,304221,Equipment and Materials,01-May-2019,000008525971181,HOMEBASE LTD 822,5211,Direct materials,16.00,0.00,16.00
Regeneration and Local Services,Business Durham CL0850,030699,Business Growth and Innovation General,Supplies and Services,304999,Equipment and Materials,01-May-2019,000008525971187,LINKEDIN-378 2082976,5968,Misc equipment tools and materials,1.50,0.00,1.50
Children and Young Peoples Services,Head of Early Help Inclusion & Vulnerable Children.,088114,Team Around the School,Supplies and Services,332047,Printing Stationery and Gen Off Exps,01-May-2019,000008525971311,AMZNMktplace,5999,Stationery,7.16,1.19,5.97
Regeneration and Local Services,Corporate Property and Land,021242,Catering - County Hall,Premises,145009,Cleaning and Domestic Supplies,01-May-2019,000008525971345,ALLIANCE DISPOSABLES L,2842,Other cleaning and domestic costs,463.23,77.21,386.02
Regeneration and Local Services,Corporate Property and Land,021242,Catering - County Hall,Supplies and Services,324117,Provisions E324,01-May-2019,000008525971349,JR HOLLAND FOODSERVICE,5499,Catering costs - provisions,182.88,0.00,182.88
Regeneration and Local Services,Corporate Property and Land,021242,Catering - County Hall,Supplies and Services,324117,Provisions E324,01-May-2019,000008525971353,JR HOLLAND FOODSERVICE,5499,Catering costs - provisions,9.40,0.00,9.40
Regeneration and Local Services,Corporate Property and Land,021242,Catering - County Hall,Supplies and Services,324117,Provisions E324,01-May-2019,000008525971355,JR HOLLAND FOODSERVICE,5499,Catering costs - provisions,132.00,0.00,132.00
Regeneration and Local Services,Corporate Property and Land,021242,Catering - County Hall,Supplies and Services,324117,Provisions E324,01-May-2019,000008525971357,JR HOLLAND FOODSERVICE,5499,Catering costs - provisions,13.80,0.00,13.80
Regeneration and Local Services,Corporate Property and Land,021242,Catering - County Hall,Supplies and Services,324117,Provisions E324,01-May-2019,000008525971359,FREEMAN CATERING BUTCH,5422,Catering costs - provisions,257.09,0.00,257.09
Regeneration and Local Services,Corporate Property and Land,021242,Catering - County Hall,Supplies and Services,324117,Provisions E324,01-May-2019,000008525971363,FREEMAN CATERING BUTCH,5422,Catering costs - provisions,25.15,0.00,25.15
Regeneration and Local Services,Culture Sport and Tourism,054233,Bishop Auckland Town Hall Library,Supplies and Services,324117,Provisions E324,01-May-2019,000008525971369,HERON FOODS LTD,5499,Catering costs - provisions,15.84,0.00,15.84
Regeneration and Local Services,Culture Sport and Tourism,054812,Gala Theatre - Catering etc,Supplies and Services,324117,Provisions E324,01-May-2019,000008525971397,JR HOLLAND FOODSERVICE,5499,Catering costs - provisions,63.02,0.00,63.02
Regeneration and Local Services,Culture Sport and Tourism,054812,Gala Theatre - Catering etc,Supplies and Services,324117,Provisions E324,01-May-2019,000008525971403,FREEMAN CATERING BUTCH,5422,Catering costs - provisions,24.30,0.00,24.30
Children and Young Peoples Services,Head of Childrens Social Care,085362,LAC & Permanence Team 2,Supplies and Services,384999,Miscellaneous Expenses,01-May-2019,000008525971455,HM PASSPORT OFFICE,9399,Other expenses,49.00,0.00,49.00
Children and Young Peoples Services,Head of Childrens Social Care,085362,LAC & Permanence Team 2,Supplies and Services,384999,Miscellaneous Expenses,01-May-2019,000008525971459,HM PASSPORT OFFICE,9399,Other expenses,49.00,0.00,49.00
Children and Young Peoples Services,Head of Childrens Social Care,085362,LAC & Permanence Team 2,Supplies and Services,384999,Miscellaneous Expenses,01-May-2019,000008525971461,HM PASSPORT OFFICE,9399,Other expenses,49.00,0.00,49.00
Children and Young Peoples Services,Head of Childrens Social Care,085333,Coxhoe Satelite Home,Supplies and Services,324117,Provisions E324,01-May-2019,000008525971467,CO-OP GROUP 310016,5411,Catering costs - provisions,2.20,0.00,2.20
Regeneration and Local Services,Development and Housing,031576,B& B - Temp Accom,Supplies and Services,352001,Conference Expenses,01-May-2019,000008525971501,TRAVELODGE,3615,Conferencesseminars fees etc,35.00,5.83,29.17
Transformation and Partnerships,Business Support,052986,CYPS - Locality and Operational Support,Supplies and Services,324117,Provisions E324,01-May-2019,000008525971553,SAINSBURYS 2199,5411,Catering costs - provisions,5.55,0.00,5.55
Transformation and Partnerships,Business Support,052986,CYPS - Locality and Operational Support,Supplies and Services,328041,Clothing uniforms and laundry E328,01-May-2019,000008525971557,ARGOS BISHOP AUCKL,5310,Clothing uniforms and laundry,18.00,0.00,18.00
Children and Young Peoples Services,Head of Education and Skills,071732,Dean Bank Childcare,Supplies and Services,324117,Provisions E324,01-May-2019,000008525971599,SAINSBURYS SACAT (2303,5411,Catering costs - provisions,9.35,0.00,9.35
Children and Young Peoples Services,Head of Education and Skills,071732,Dean Bank Childcare,Supplies and Services,324117,Provisions E324,01-May-2019,000008525971605,CO-OP GROUP 310027,5411,Catering costs - provisions,4.96,0.00,4.96
Regeneration and Local Services,Development and Housing,030051,Strategy and Project Development 030051,Supplies and Services,384999,Miscellaneous Expenses,01-May-2019,000008525971613,WAYFAIR #2138557764,5965,Other expenses,61.99,10.33,51.66
Regeneration and Local Services,Culture Sport and Tourism,054813,Gala Theatre - Technical,Supplies and Services,304403,Equipment and Materials,01-May-2019,000008525971621,AMZNMktplace,5999,Other consumables,13.98,0.00,13.98
Regeneration and Local Services,Culture Sport and Tourism,054813,Gala Theatre - Technical,Supplies and Services,304403,Equipment and Materials,01-May-2019,000008525971625,AMZNMktplace,5999,Other consumables,6.99,0.00,6.99
Regeneration and Local Services,Culture Sport and Tourism,054813,Gala Theatre - Technical,Supplies and Services,384999,Miscellaneous Expenses,01-May-2019,000008525971631,HOBBYCRAFT,5970,Other expenses,9.00,0.00,9.00
Regeneration and Local Services,Development and Housing,031500,Housing Solutions - Core Team,Supplies and Services,352001,Conference Expenses,01-May-2019,000008525971709,HAYAT HOTEL,7011,Conferencesseminars fees etc,150.00,0.00,150.00
Regeneration and Local Services,Development and Housing,030771,Durham Advance Flexible Fund,Supplies and Services,324117,Provisions E324,01-May-2019,000008525971733,COSTA COFFEE SEAHAM,5812,Catering costs - provisions,6.25,0.00,6.25
Children and Young Peoples Services,Head of Early Help Inclusion & Vulnerable Children.,085954,Walworth,Supplies and Services,304649,Equipment and Materials,01-May-2019,000008525971761,AMZNMktplace,5999,Toys,29.10,4.85,24.25
Children and Young Peoples Services,Head of Early Help Inclusion & Vulnerable Children.,085955,Auckland,Supplies and Services,304403,Equipment and Materials,01-May-2019,000008525971763,AMZNMktplace,5999,Other consumables,18.45,3.08,15.37
Children and Young Peoples Services,Head of Early Help Inclusion & Vulnerable Children.,085955,Auckland,Supplies and Services,312011,Newspapers books and periodicals E312,01-May-2019,000008525971765,AMZN Mktp UK MN1YT74T4,5942,Books-school library,23.40,3.90,19.50
Children and Young Peoples Services,Head of Early Help Inclusion & Vulnerable Children.,085955,Auckland,Supplies and Services,312011,Newspapers books and periodicals E312,01-May-2019,000008525971765 - 1,AMZN Mktp UK MN1YT74T4,5942,Books-school library,5.00,,5.00
Children and Young Peoples Services,Head of Early Help Inclusion & Vulnerable Children.,085965,Barnard,Supplies and Services,312011,Newspapers books and periodicals E312,01-May-2019,000008525971769,Amazon.co.uk MN3VQ0484,5969,Books-school library,15.99,2.67,13.32
Children and Young Peoples Services,Head of Early Help Inclusion & Vulnerable Children.,085957,Secure Management,Supplies and Services,384999,Miscellaneous Expenses,01-May-2019,000008525971771,Amazon.co.uk MN3VQ14N4,5969,Other expenses,12.00,2.00,10.00
Children and Young Peoples Services,Head of Early Help Inclusion & Vulnerable Children.,085955,Auckland,Supplies and Services,304403,Equipment and Materials,01-May-2019,000008525971775,AMZNMktplace,5999,Other consumables,4.60,0.77,3.83
Children and Young Peoples Services,Head of Early Help Inclusion & Vulnerable Children.,085962,Aycliffe Secure - Durham,Supplies and Services,324117,Provisions E324,01-May-2019,000008525971777,TESCO STORES 6329,5411,Catering costs - provisions,92.65,0.00,92.65
Children and Young Peoples Services,Head of Early Help Inclusion & Vulnerable Children.,085965,Barnard,Supplies and Services,328041,Clothing uniforms and laundry E328,01-May-2019,000008525971781,WWW.FOOTLOCKER.EU,5661,Clothing uniforms and laundry,79.99,13.33,66.66
Regeneration and Local Services,Culture Sport and Tourism,054813,Gala Theatre - Technical,Supplies and Services,304259,Equipment and Materials,01-May-2019,000008525971787,Prime Video MN1AW4434,5735,Equipment-purchase and rental,2.49,0.00,2.49
Regeneration and Local Services,Culture Sport and Tourism,054813,Gala Theatre - Technical,Supplies and Services,304259,Equipment and Materials,01-May-2019,000008525971789,Prime Video MN8AV8464,5735,Equipment-purchase and rental,4.99,0.00,4.99
Regeneration and Local Services,Environmental Services,010367,C&G - South Grounds Maintenance,Supplies and Services,304221,Equipment and Materials,01-May-2019,000008525971823,SCREWFIX PETERLEE,5211,Direct materials,34.57,5.76,28.81
Regeneration and Local Services,Environmental Services,011060,C&G - Hardwick Park Catering,Supplies and Services,324117,Provisions E324,01-May-2019,000008525971841,JR HOLLAND FOODSERVICE,5499,Catering costs - provisions,17.20,0.00,17.20
Regeneration and Local Services,Environmental Services,011060,C&G - Hardwick Park Catering,Supplies and Services,324117,Provisions E324,01-May-2019,000008525971845,FREEMAN CATERING BUTCH,5422,Catering costs - provisions,40.38,0.00,40.38
Regeneration and Local Services,Development and Housing,030755,Durham Employment & Skills - Other Training,Employees,040149,Recruitment Instruction and Training,01-May-2019,000008525971873,WWW.CSKILLS.ORG,8249,Training-all costs,36.00,6.00,30.00
Regeneration and Local Services,Development and Housing,030755,Durham Employment & Skills - Other Training,Employees,040149,Recruitment Instruction and Training,01-May-2019,000008525971875,WWW.CSKILLS.ORG,8249,Training-all costs,36.00,6.00,30.00
Regeneration and Local Services,Corporate Property and Land,021234,Catering - Locomotion,Supplies and Services,324117,Provisions E324,01-May-2019,000008525971915,FREEMAN CATERING BUTCH,5422,Catering costs - provisions,55.79,0.00,55.79
Regeneration and Local Services,Corporate Property and Land,010525,Catering - Green Lane,Supplies and Services,324117,Provisions E324,01-May-2019,000008525971975,FREEMAN CATERING BUTCH,5422,Catering costs - provisions,45.62,0.00,45.62
Regeneration and Local Services,Development and Housing,030554,International Relations 030554,Supplies and Services,348037,Subsistence E348,01-May-2019,000008525972031,THE RABBIT HOLE,5812,Subsistence,322.90,0.00,322.90
Transformation and Partnerships,Business Support,052986,CYPS - Locality and Operational Support,Supplies and Services,312011,Newspapers books and periodicals E312,01-May-2019,000008525972039,Amazon.co.uk MN1Q90FW4,5969,Books-school library,31.03,0.00,31.03
Children and Young Peoples Services,Head of Childrens Social Care,085331,New Lea Childrens Home,Supplies and Services,324117,Provisions E324,01-May-2019,000008525972051,ASDA SUPERSTORE,5411,Catering costs - provisions,31.13,0.00,31.13
Regeneration and Local Services,Development and Housing,030771,Durham Advance Flexible Fund,Supplies and Services,304259,Equipment and Materials,01-May-2019,000008525972195,GEN REGISTER OFFICE,9399,Equipment-purchase and rental,14.00,0.00,14.00
Children and Young Peoples Services,Head of Childrens Social Care,085333,Coxhoe Satelite Home,Supplies and Services,324117,Provisions E324,01-May-2019,000008525972213,TESCO STORES 2371,5411,Catering costs - provisions,89.85,0.00,89.85
Regeneration and Local Services,Environmental Services,010367,C&G - South Grounds Maintenance,Supplies and Services,324117,Provisions E324,01-May-2019,000008525972303,J M RAINE,5399,Catering costs - provisions,91.56,0.00,91.56
Adult and Health Services,Head of Adults,055643,Hawthorn House LD Respite Unit,Supplies and Services,324117,Provisions E324,01-May-2019,000008525972307,FREEMAN CATERING BUTCH,5422,Catering costs - provisions,29.67,0.00,29.67
Regeneration and Local Services,Culture Sport and Tourism,054399,Local Delivery-Libraries,Supplies and Services,312009,Newspapers books and periodicals E312,01-May-2019,000008525972315,Amazon.co.uk MN6D704Y4,5969,Newspapers books and periodicals,159.80,0.00,159.80
Regeneration and Local Services,Environmental Services,010301,C&G - North Grounds Maintenance,Supplies and Services,324117,Provisions E324,01-May-2019,000008525972345,J VAN VLIET GATESHEAD,5399,Catering costs - provisions,50.40,8.40,42.00
Regeneration and Local Services,Environmental Services,010301,C&G - North Grounds Maintenance,Supplies and Services,324117,Provisions E324,01-May-2019,000008525972349,J VAN VLIET GATESHEAD,5399,Catering costs - provisions,86.40,14.40,72.00
Transformation and Partnerships,Business Support,052986,CYPS - Locality and Operational Support,Supplies and Services,304259,Equipment and Materials,01-May-2019,000008525972407,HM PASSPORT,9399,Equipment-purchase and rental,127.00,0.00,127.00
Regeneration and Local Services,Business Durham CL0850,030690,Durham Dales Centre - Tourist Information Centre,Supplies and Services,304403,Equipment and Materials,01-May-2019,000008525972413,WWW.GAINSBOROUGHGIFTWA,5947,Other consumables,-10.87,0.00,-10.87
Children and Young Peoples Services,Head of Education and Skills,071903,EYDCP-Sustainability EDS,Supplies and Services,336005,Advertising E336,01-May-2019,000008525972417,YARRINGTON (ICC),7311,Advertising other than for staff,395.00,0.00,395.00
Regeneration and Local Services,Environmental Services,011058,C&G - Wharton Park,Supplies and Services,304245,Equipment and Materials,01-May-2019,000008525972437,AMZNMKTPLACE AMAZON.CO,5999,Materials,21.40,3.57,17.83
Regeneration and Local Services,Environmental Services,011060,C&G - Hardwick Park Catering,Supplies and Services,304083,Equipment and Materials,01-May-2019,000008525972441,WWW.GORDONSMITHMALVERN,5714,Catering equipment,166.62,0.00,166.62
Regeneration and Local Services,Corporate Property and Land,021324,Catering - Meadowfield,Supplies and Services,324117,Provisions E324,01-May-2019,000008525972461,FREEMAN CATERING BUTCH,5422,Catering costs - provisions,72.56,0.00,72.56
Transformation and Partnerships,Business Support,052986,CYPS - Locality and Operational Support,Supplies and Services,304259,Equipment and Materials,01-May-2019,000008525972501,MIDDLESBROUGH COUNCIL,9399,Equipment-purchase and rental,22.00,0.00,22.00
Regeneration and Local Services,Environmental Services,031200,North Pennines Core,Supplies and Services,324117,Provisions E324,01-May-2019,000008525972567,SCOTMID CO-OP STANHOPE,5411,Catering costs - provisions,5.77,0.00,5.77
Regeneration and Local Services,Corporate Property and Land,021235,Catering - Wharton Park,Supplies and Services,324117,Provisions E324,01-May-2019,000008525972665,JR HOLLAND FOODSERVICE,5499,Catering costs - provisions,26.38,0.00,26.38
Children and Young Peoples Services,Head of Childrens Social Care,085363,LAC & Permanence Team 3,Supplies and Services,304259,Equipment and Materials,01-May-2019,000008525972699,HM PASSPORT,9399,Equipment-purchase and rental,122.00,0.00,122.00
Children and Young Peoples Services,Head of Early Help Inclusion & Vulnerable Children.,085962,Aycliffe Secure - Durham,Supplies and Services,312009,Newspapers books and periodicals E312,01-May-2019,000008531578327,AMZNMKTPLACE AMAZON.CO,5999,Newspapers books and periodicals,12.95,2.16,10.79
Children and Young Peoples Services,Head of Early Help Inclusion & Vulnerable Children.,085962,Aycliffe Secure - Durham,Supplies and Services,328041,Clothing uniforms and laundry E328,01-May-2019,000008531578331,SPORTSDIRECT.COM,5941,Clothing uniforms and laundry,200.94,33.49,167.45
Children and Young Peoples Services,Head of Early Help Inclusion & Vulnerable Children.,085962,Aycliffe Secure - Durham,Supplies and Services,328041,Clothing uniforms and laundry E328,01-May-2019,000008531578331 - 1,SPORTSDIRECT.COM,5941,Clothing uniforms and laundry,0.03,,0.03
Regeneration and Local Services,Corporate Property and Land,021234,Catering - Locomotion,Supplies and Services,324117,Provisions E324,01-May-2019,000008531578353,BATLEYS PERTH,5300,Catering costs - provisions,-6.77,0.00,-6.77
Regeneration and Local Services,Development and Housing,031576,B& B - Temp Accom,Supplies and Services,364320,Grants to Voluntary Organisations,01-May-2019,000008531578361,PREMIER INN,3811,Accommodation assistance,141.00,0.00,141.00
Children and Young Peoples Services,Head of Education and Skills,071801,Selby Cottage Childcare Centre,Supplies and Services,312011,Newspapers books and periodicals E312,02-May-2019,000008531578133,HOME BARGAINS,5251,Books-school library,54.82,0.00,54.82
Children and Young Peoples Services,Head of Education and Skills,071801,Selby Cottage Childcare Centre,Supplies and Services,324117,Provisions E324,02-May-2019,000008531578135,ALDI STORES,5411,Catering costs - provisions,39.09,0.00,39.09
Regeneration and Local Services,Development and Housing,031617,Project Beta Sustainability Fund,Supplies and Services,304259,Equipment and Materials,02-May-2019,000008531578137,CITIZENCARD,9399,Equipment-purchase and rental,10.00,0.00,10.00
Regeneration and Local Services,Development and Housing,031617,Project Beta Sustainability Fund,Supplies and Services,304259,Equipment and Materials,02-May-2019,000008531578139,CITIZENCARD,9399,Equipment-purchase and rental,10.00,0.00,10.00
Regeneration and Local Services,Development and Housing,031617,Project Beta Sustainability Fund,Supplies and Services,304259,Equipment and Materials,02-May-2019,000008531578141,CITIZENCARD,9399,Equipment-purchase and rental,10.00,0.00,10.00
Transformation and Partnerships,Communications Management,060202,Comms & Marketing - Celebrating Durham,Supplies and Services,340001,Postages E340,02-May-2019,000008531578145,WWW.SPEEDLINKTC.COM,4011,Postages,456.77,0.00,456.77
Regeneration and Local Services,Environmental Services,010383,C&G - South Street Cleansing,Supplies and Services,324117,Provisions E324,02-May-2019,000008531578161,J M RAINE,5399,Catering costs - provisions,102.05,17.01,85.04
Regeneration and Local Services,Culture Sport and Tourism,030708,VCD - Marketing & Information,Supplies and Services,304999,Equipment and Materials,02-May-2019,000008531578169,MAILCHIMP MONTHLY,5968,Misc equipment tools and materials,232.10,38.68,193.42
Dedicated Schools Grant BG0015,DSG High Needs Block,079050,SENSS-Sensory,Employees,040149,Recruitment Instruction and Training,02-May-2019,000008531578171,PAYPAL LHONSOCIETY,8398,Training-all costs,75.00,0.00,75.00
Regeneration and Local Services,Business Durham CL0850,030699,Business Growth and Innovation General,Supplies and Services,304403,Equipment and Materials,02-May-2019,000008531578177,ADOBE CREATIVE CLOUD,5734,Other consumables,49.94,8.32,41.62
Regeneration and Local Services,Business Durham CL0850,030699,Business Growth and Innovation General,Supplies and Services,312011,Newspapers books and periodicals E312,02-May-2019,000008531578179,FASTHOSTS INTERNET,4816,Books-school library,59.99,10.00,49.99
Regeneration and Local Services,Business Durham CL0850,030699,Business Growth and Innovation General,Supplies and Services,312011,Newspapers books and periodicals E312,02-May-2019,000008531578181,FASTHOSTS INTERNET,4816,Books-school library,12.67,2.11,10.56
Regeneration and Local Services,Business Durham CL0850,030699,Business Growth and Innovation General,Supplies and Services,312011,Newspapers books and periodicals E312,02-May-2019,000008531578183,FASTHOSTS INTERNET,4816,Books-school library,66.30,11.05,55.25
Children and Young Peoples Services,Head of Early Help Inclusion & Vulnerable Children.,088111,Easington & Peterlee 0-19 Community Family Hub,Supplies and Services,324117,Provisions E324,02-May-2019,000008531578199,ASDA STORES LTD,5411,Catering costs - provisions,24.08,0.00,24.08
Children and Young Peoples Services,Head of Early Help Inclusion & Vulnerable Children.,088114,Team Around the School,Supplies and Services,304649,Equipment and Materials,02-May-2019,000008531578231,AMZNMktplace,5999,Toys,49.40,8.23,41.17
Regeneration and Local Services,Development and Housing,030544,Rural Employability - Client Engagement,Transport,235057,Public Transport,02-May-2019,000008531578233,ARRIVA NORTH EAST,4131,Staff travelling,26.20,0.00,26.20
Regeneration and Local Services,Corporate Property and Land,021242,Catering - County Hall,Supplies and Services,324117,Provisions E324,02-May-2019,000008531578235,JR HOLLAND FOODSERVICE,5499,Catering costs - provisions,43.92,0.00,43.92
Regeneration and Local Services,Corporate Property and Land,021242,Catering - County Hall,Supplies and Services,324117,Provisions E324,02-May-2019,000008531578237,JR HOLLAND FOODSERVICE,5499,Catering costs - provisions,13.80,0.00,13.80
Children and Young Peoples Services,Head of Childrens Social Care,085361,LAC & Permanence Team 1,Supplies and Services,384999,Miscellaneous Expenses,02-May-2019,000008531578251,GEN REGISTER OFFICE,9399,Other expenses,14.00,0.00,14.00
Children and Young Peoples Services,Head of Childrens Social Care,085333,Coxhoe Satelite Home,Supplies and Services,328041,Clothing uniforms and laundry E328,02-May-2019,000008531578253,T K MAXX,5331,Clothing uniforms and laundry,53.95,0.00,53.95
Children and Young Peoples Services,Head of Childrens Social Care,085333,Coxhoe Satelite Home,Supplies and Services,328041,Clothing uniforms and laundry E328,02-May-2019,000008531578255,T K MAXX,5331,Clothing uniforms and laundry,9.97,0.00,9.97
Children and Young Peoples Services,Head of Childrens Social Care,085333,Coxhoe Satelite Home,Supplies and Services,324117,Provisions E324,02-May-2019,000008531578257,TESCO STORES 2371,5411,Catering costs - provisions,15.29,0.00,15.29
Children and Young Peoples Services,Head of Education and Skills,071732,Dean Bank Childcare,Supplies and Services,304403,Equipment and Materials,02-May-2019,000008531578277,AMZNMKTPLACE AMAZON.CO,5999,Other consumables,14.94,0.00,14.94
Children and Young Peoples Services,Head of Education and Skills,071732,Dean Bank Childcare,Supplies and Services,324117,Provisions E324,02-May-2019,000008531578279,SAINSBURYS SACAT (2303,5411,Catering costs - provisions,19.35,0.00,19.35
Regeneration and Local Services,Environmental Services,011185,Nei. Prot - Unauthorised Encampments,Supplies and Services,338048,Services,02-May-2019,000008531578287,HMCOURTS-SERVICE.G,9222,Court costs 338048,226.00,0.00,226.00
Regeneration and Local Services,Development and Housing,031500,Housing Solutions - Core Team,Supplies and Services,352001,Conference Expenses,02-May-2019,000008531578307,HAYAT HOTEL,7011,Conferencesseminars fees etc,250.00,0.00,250.00
Regeneration and Local Services,Development and Housing,030771,Durham Advance Flexible Fund,Supplies and Services,384700,Miscellaneous Expenses,02-May-2019,000008531578315,ARRIVA NORTH EAST,4131,Miscellaneous grants,4.50,0.00,4.50
Children and Young Peoples Services,Head of Early Help Inclusion & Vulnerable Children.,071445,Chester le Street One Point Hub,Supplies and Services,312011,Newspapers books and periodicals E312,02-May-2019,000008531578321,AMZN Mktp UK MN75M9Z24,5942,Books-school library,11.25,0.00,11.25
Children and Young Peoples Services,Head of Early Help Inclusion & Vulnerable Children.,085955,Auckland,Supplies and Services,384999,Miscellaneous Expenses,02-May-2019,000008531578323,AMZN Mktp UK MN0UL4LN4,5942,Other expenses,29.99,5.00,24.99
Children and Young Peoples Services,Head of Early Help Inclusion & Vulnerable Children.,085965,Barnard,Supplies and Services,328041,Clothing uniforms and laundry E328,02-May-2019,000008531578325,M and M Direct Ltd,5941,Clothing uniforms and laundry,34.99,0.00,34.99
Children and Young Peoples Services,Head of Early Help Inclusion & Vulnerable Children.,085955,Auckland,Supplies and Services,324117,Provisions E324,02-May-2019,000008531578329,TESCO STORES 6329,5411,Catering costs - provisions,107.49,0.00,107.49
Transformation and Partnerships,Business Support,052986,CYPS - Locality and Operational Support,Third Party Payments 4THIRD,430100,Rendered by Private Contractors,02-May-2019,000008531578333,FAST KEY SERVICES LIMI,7399,Payments to sub-contractors,163.44,27.24,136.20
Regeneration and Local Services,Environmental Services,011060,C&G - Hardwick Park Catering,Supplies and Services,324117,Provisions E324,02-May-2019,000008531578337,JR HOLLAND FOODSERVICE,5499,Catering costs - provisions,58.69,0.00,58.69
Regeneration and Local Services,Culture Sport and Tourism,054815,Gala Theatre Stage School,Supplies and Services,328041,Clothing uniforms and laundry E328,02-May-2019,000008531578345,CD_B6F7CF7D-BE41-464B-,5139,Clothing uniforms and laundry,103.50,0.00,103.50
Regeneration and Local Services,Culture Sport and Tourism,054815,Gala Theatre Stage School,Supplies and Services,304403,Equipment and Materials,02-May-2019,000008531578347,FABER AND FABER LIMITE,5999,Other consumables,960.00,0.00,960.00
Regeneration and Local Services,Corporate Property and Land,021234,Catering - Locomotion,Supplies and Services,324117,Provisions E324,02-May-2019,000008531578351,JR HOLLAND FOODSERVICE,5499,Catering costs - provisions,19.92,0.00,19.92
Regeneration and Local Services,Corporate Property and Land,010525,Catering - Green Lane,Supplies and Services,324117,Provisions E324,02-May-2019,000008531578363,JR HOLLAND FOODSERVICE,5499,Catering costs - provisions,71.69,0.00,71.69
Regeneration and Local Services,Development and Housing,030771,Durham Advance Flexible Fund,Transport,235057,Public Transport,02-May-2019,000008531578365,AUCKLAND CASTLE,7523,Staff travelling,0.60,0.10,0.50
Children and Young Peoples Services,Head of Childrens Social Care,085551,Short Break Services-Park Hse Sher,Supplies and Services,324117,Provisions E324,02-May-2019,000008531578375,ALDI 15 774,5411,Catering costs - provisions,9.66,1.61,8.05
Children and Young Peoples Services,Head of Childrens Social Care,085551,Short Break Services-Park Hse Sher,Supplies and Services,324117,Provisions E324,02-May-2019,000008531578375 - 1,ALDI 15 774,5411,Catering costs - provisions,11.57,,11.57
Children and Young Peoples Services,Head of Early Help Inclusion & Vulnerable Children.,071443,Stanley One Point Hub,Employees,040149,Recruitment Instruction and Training,02-May-2019,000008531578381,FAMILY LINKS,8398,Training-all costs,13.00,0.00,13.00
Children and Young Peoples Services,Head of Early Help Inclusion & Vulnerable Children.,071443,Stanley One Point Hub,Supplies and Services,384237,Miscellaneous Expenses,02-May-2019,000008531578383,ADVENTURE VALLEY,7999,Recreational exps outings parties,99.25,0.00,99.25
Regeneration and Local Services,Environmental Services,010367,C&G - South Grounds Maintenance,Supplies and Services,304221,Equipment and Materials,02-May-2019,000008531578395,JT DOVE LTD,5211,Direct materials,34.26,0.00,34.26
Regeneration and Local Services,Environmental Services,010367,C&G - South Grounds Maintenance,Supplies and Services,324117,Provisions E324,02-May-2019,000008531578397,J M RAINE,5399,Catering costs - provisions,46.01,7.67,38.34
Resources BK0010,Finance & Transactional Services,065176,Quality/Subsidy/Appeals/Training/Support,Supplies and Services,338048,Services,02-May-2019,000008531578415,HMCOURTS-SERVICE.G,9222,Court costs 338048,898.50,0.00,898.50
Regeneration and Local Services,Corporate Property and Land,020074,Bldg Serv - R&M Div 74 - Mechanical,Supplies and Services,304221,Equipment and Materials,02-May-2019,000008531578419,PAYPAL BACK2MARKET,5999,Direct materials,43.20,0.00,43.20
Regeneration and Local Services,Corporate Property and Land,030691,Catering - Durham Dales Centre,Supplies and Services,324117,Provisions E324,02-May-2019,000008531578435,JR HOLLAND FOODSERVICE,5499,Catering costs - provisions,-18.00,0.00,-18.00
Adult and Health Services,Head of Adults,055643,Hawthorn House LD Respite Unit,Supplies and Services,324117,Provisions E324,02-May-2019,000008531578439,JR HOLLAND FOODSERVICE,5499,Catering costs - provisions,19.06,0.00,19.06
Adult and Health Services,Head of Adults,055643,Hawthorn House LD Respite Unit,Supplies and Services,324117,Provisions E324,02-May-2019,000008531578441,JR HOLLAND FOODSERVICE,5499,Catering costs - provisions,10.55,0.00,10.55
Regeneration and Local Services,Environmental Services,010301,C&G - North Grounds Maintenance,Supplies and Services,304221,Equipment and Materials,02-May-2019,000008531578445,SCREWFIX CHESTER L,5211,Direct materials,48.57,8.10,40.47
Children and Young Peoples Services,Head of Early Help Inclusion & Vulnerable Children.,088115,North Area - Teenage Parent Programme,Supplies and Services,348037,Subsistence E348,02-May-2019,000008531578447,CAFE INTERLUDE,5814,Subsistence,50.75,0.00,50.75
Children and Young Peoples Services,Head of Early Help Inclusion & Vulnerable Children.,088101,CLS 0-19 Community Family Hub,Supplies and Services,384999,Miscellaneous Expenses,02-May-2019,000008531578449,WWW.ARGOS.CO.UK,5310,Other expenses,79.99,0.00,79.99
Children and Young Peoples Services,Head of Early Help Inclusion & Vulnerable Children.,088101,CLS 0-19 Community Family Hub,Supplies and Services,304259,Equipment and Materials,02-May-2019,000008531578451,WWW.ARGOS.CO.UK,5310,Equipment-purchase and rental,282.95,0.00,282.95
Children and Young Peoples Services,Head of Early Help Inclusion & Vulnerable Children.,088101,CLS 0-19 Community Family Hub,Supplies and Services,304259,Equipment and Materials,02-May-2019,000008531578453,WWW.ARGOS.CO.UK,5310,Equipment-purchase and rental,272.95,0.00,272.95
Children and Young Peoples Services,Head of Early Help Inclusion & Vulnerable Children.,071593,Bullion Childrens Centre,Supplies and Services,384999,Miscellaneous Expenses,02-May-2019,000008531578455,WILKO RETAIL LIMIT,5722,Other expenses,7.85,0.00,7.85
Children and Young Peoples Services,Head of Early Help Inclusion & Vulnerable Children.,088101,CLS 0-19 Community Family Hub,Supplies and Services,304259,Equipment and Materials,02-May-2019,000008531578457,WWW.ARGOS.CO.UK,5310,Equipment-purchase and rental,-282.95,0.00,-282.95
Children and Young Peoples Services,Head of Early Help Inclusion & Vulnerable Children.,074000,TTF-Attachment and Results,Transfer Payments,525033,Other,02-May-2019,000008531578461,MAGUIRE TA LTD,5713,Grants to individuals,150.00,0.00,150.00
Regeneration and Local Services,Development and Housing,030771,Durham Advance Flexible Fund,Supplies and Services,348037,Subsistence E348,02-May-2019,000008531578469,COSTA COFFEE 43039090,5814,Subsistence,2.45,0.00,2.45
Regeneration and Local Services,Development and Housing,030771,Durham Advance Flexible Fund,Supplies and Services,328041,Clothing uniforms and laundry E328,02-May-2019,000008531578471,OUTFIT,5691,Clothing uniforms and laundry,30.05,0.00,30.05
Children and Young Peoples Services,Head of Early Help Inclusion & Vulnerable Children.,085957,Secure Management,Supplies and Services,384999,Miscellaneous Expenses,02-May-2019,000008531578473,Amazon.co.uk MN3K65LM4,5969,Other expenses,8.68,1.45,7.23
Children and Young Peoples Services,Head of Early Help Inclusion & Vulnerable Children.,085957,Secure Management,Supplies and Services,384999,Miscellaneous Expenses,02-May-2019,000008531578475,Amazon.co.uk MN49C6ZF4,5969,Other expenses,12.00,2.00,10.00
Children and Young Peoples Services,Head of Early Help Inclusion & Vulnerable Children.,085957,Secure Management,Supplies and Services,384999,Miscellaneous Expenses,02-May-2019,000008531578477,B&Q DIRECT,5200,Other expenses,24.00,0.00,24.00
Children and Young Peoples Services,Head of Early Help Inclusion & Vulnerable Children.,085957,Secure Management,Supplies and Services,304245,Equipment and Materials,02-May-2019,000008531578479,SCREWFIX DIRECT,5200,Materials,40.97,6.83,34.14
Regeneration and Local Services,Business Durham CL0850,030702,Satellite Applications Catapult,Supplies and Services,352001,Conference Expenses,02-May-2019,000008531578485,HILTON,3504,Conferencesseminars fees etc,125.00,0.00,125.00
Resources BK0010,Legal & Democratic Services,069556,Electoral Registration,Supplies and Services,384199,Miscellaneous Expenses,02-May-2019,000008531578487,WWW.ICO.GOV.UK,9399,Other hired and contracted services,40.00,0.00,40.00
Transformation and Partnerships,Business Support,052986,CYPS - Locality and Operational Support,Supplies and Services,328041,Clothing uniforms and laundry E328,02-May-2019,000008531578489,WWW.ARGOS.CO.UK,5310,Clothing uniforms and laundry,169.99,0.00,169.99
Regeneration and Local Services,Corporate Property and Land,021324,Catering - Meadowfield,Supplies and Services,324117,Provisions E324,02-May-2019,000008531578501,JR HOLLAND FOODSERVICE,5499,Catering costs - provisions,65.38,0.00,65.38
Regeneration and Local Services,Corporate Property and Land,021324,Catering - Meadowfield,Supplies and Services,324117,Provisions E324,02-May-2019,000008531578503,JR HOLLAND FOODSERVICE,5499,Catering costs - provisions,10.35,0.00,10.35
Children and Young Peoples Services,Head of Childrens Social Care,085352,Tow Law CU,Supplies and Services,328041,Clothing uniforms and laundry E328,02-May-2019,000008531578513,ARGOS BISHOP AUCKL,5310,Clothing uniforms and laundry,18.00,0.00,18.00
Resources BK0010,Legal & Democratic Services,067910,Democratic Representation 067910,Supplies and Services,352001,Conference Expenses,02-May-2019,000008531578533,HOTEL INDIGO DURHAM,7011,Conferencesseminars fees etc,470.90,0.00,470.90
Adult and Health Services,Head of Adults,055807,Newton Aycliffe Pathways,Supplies and Services,304245,Equipment and Materials,02-May-2019,000008531578543,R DEFTY,5200,Materials,10.10,0.00,10.10
Transformation and Partnerships,Business Support,069010,Administration 069010,Supplies and Services,304259,Equipment and Materials,02-May-2019,000008531578547,DARLINGTON BC INTERNET,9399,Equipment-purchase and rental,11.00,0.00,11.00
Adult and Health Services,Head of Adults,055306,Spennymoor Pathways,Supplies and Services,324117,Provisions E324,02-May-2019,000008531578549,ASDA SUPERSTORE 4987,5411,Catering costs - provisions,5.92,0.00,5.92
Children and Young Peoples Services,Head of Childrens Social Care,085363,LAC & Permanence Team 3,Supplies and Services,304259,Equipment and Materials,02-May-2019,000008531578563,HM PASSPORT OFFICE,9399,Equipment-purchase and rental,49.00,0.00,49.00
Regeneration and Local Services,Development and Housing,030771,Durham Advance Flexible Fund,Supplies and Services,328041,Clothing uniforms and laundry E328,02-May-2019,000008531578577,MATALAN,5691,Clothing uniforms and laundry,25.10,4.18,20.92
Regeneration and Local Services,Development and Housing,030771,Durham Advance Flexible Fund,Supplies and Services,324117,Provisions E324,02-May-2019,000008531578579,PPOINT_ FAMILY SHOPPER,5411,Catering costs - provisions,180.00,0.00,180.00
Regeneration and Local Services,Development and Housing,030771,Durham Advance Flexible Fund,Supplies and Services,304221,Equipment and Materials,02-May-2019,000008531578581,SCREWFIX DIRECT,5200,Direct materials,33.97,0.00,33.97
Regeneration and Local Services,Development and Housing,030771,Durham Advance Flexible Fund,Supplies and Services,324117,Provisions E324,02-May-2019,000008531578583,WM MORRISONS STORE,5411,Catering costs - provisions,100.00,0.00,100.00
Regeneration and Local Services,Development and Housing,030771,Durham Advance Flexible Fund,Supplies and Services,304259,Equipment and Materials,02-May-2019,000008531578585,SPORTSDIRECT.COM,5941,Equipment-purchase and rental,27.00,4.50,22.50
Children and Young Peoples Services,Head of Early Help Inclusion & Vulnerable Children.,085810,CDYOS - Interventions Team,Supplies and Services,328041,Clothing uniforms and laundry E328,02-May-2019,000008531578587,POUNDSTRETCHER 692,5331,Clothing uniforms and laundry,56.00,0.00,56.00
Regeneration and Local Services,Development and Housing,031576,B& B - Temp Accom,Supplies and Services,364320,Grants to Voluntary Organisations,02-May-2019,000008546392439,PREMIER INN,3811,Accommodation assistance,345.00,0.00,345.00
Regeneration and Local Services,Corporate Property and Land,015015,Spectrum 8 Seaham,Supplies and Services,384956,Miscellaneous Expenses,02-May-2019,000008546392559,TVLICENSING.CO.UK,7392,Licences,154.50,0.00,154.50
Regeneration and Local Services,Corporate Property and Land,015016,Seaham CAP Library St Johns Square Seaham,Supplies and Services,384956,Miscellaneous Expenses,02-May-2019,000008546392561,TVLICENSING.CO.UK,7392,Licences,154.50,0.00,154.50
Children and Young Peoples Services,Head of Childrens Social Care,085334,West Rainton Satelite Home,Supplies and Services,332047,Printing Stationery and Gen Off Exps,02-May-2019,000008546392669,ODEON/BOOKIT,7832,Stationery,19.00,0.00,19.00
Regeneration and Local Services,Development and Housing,030554,International Relations 030554,Supplies and Services,352001,Conference Expenses,02-May-2019,000008546392821,THE MOORINGS HOTEL,7011,Conferencesseminars fees etc,186.30,0.00,186.30
Regeneration and Local Services,Development and Housing,031500,Housing Solutions - Core Team,Employees,040149,Recruitment Instruction and Training,02-May-2019,000008546392877,PREMIER INN,3811,Training-all costs,161.00,26.83,134.17
Regeneration and Local Services,Corporate Property and Land,021242,Catering - County Hall,Supplies and Services,324117,Provisions E324,02-May-2019,000008550377873,BATLEYS PERTH,5300,Catering costs - provisions,469.13,78.21,390.92
Regeneration and Local Services,Corporate Property and Land,021242,Catering - County Hall,Supplies and Services,324117,Provisions E324,02-May-2019,000008550377913,BATLEYS PERTH,5300,Catering costs - provisions,-11.40,-1.90,-9.50
Regeneration and Local Services,Culture Sport and Tourism,054812,Gala Theatre - Catering etc,Supplies and Services,324117,Provisions E324,02-May-2019,000008550377947,BATLEYS PERTH,5300,Catering costs - provisions,22.80,3.80,19.00
Regeneration and Local Services,Culture Sport and Tourism,054812,Gala Theatre - Catering etc,Supplies and Services,324117,Provisions E324,02-May-2019,000008550377947 - 1,BATLEYS PERTH,5300,Catering costs - provisions,108.89,,108.89
Regeneration and Local Services,Environmental Services,011060,C&G - Hardwick Park Catering,Supplies and Services,324117,Provisions E324,02-May-2019,000008550378299,BATLEYS PERTH,5300,Catering costs - provisions,159.96,26.66,133.30
Regeneration and Local Services,Environmental Services,011060,C&G - Hardwick Park Catering,Supplies and Services,324117,Provisions E324,02-May-2019,000008550378299 - 1,BATLEYS PERTH,5300,Catering costs - provisions,211.69,,211.69
Regeneration and Local Services,Environmental Services,011060,C&G - Hardwick Park Catering,Supplies and Services,324117,Provisions E324,02-May-2019,000008550378315,BATLEYS PERTH,5300,Catering costs - provisions,21.67,0.00,21.67
Regeneration and Local Services,Environmental Services,011060,C&G - Hardwick Park Catering,Supplies and Services,324117,Provisions E324,02-May-2019,000008550378319,BATLEYS PERTH,5300,Catering costs - provisions,27.71,0.00,27.71
Regeneration and Local Services,Environmental Services,011060,C&G - Hardwick Park Catering,Supplies and Services,324117,Provisions E324,02-May-2019,000008550378339,BATLEYS PERTH,5300,Catering costs - provisions,-6.60,0.00,-6.60
Regeneration and Local Services,Corporate Property and Land,030691,Catering - Durham Dales Centre,Supplies and Services,324117,Provisions E324,02-May-2019,000008550378609,BATLEYS PERTH,5300,Catering costs - provisions,-31.76,0.00,-31.76
Children and Young Peoples Services,Head of Education and Skills,071801,Selby Cottage Childcare Centre,Supplies and Services,324117,Provisions E324,03-May-2019,000008546392427,TESCO STORES 2278,5411,Catering costs - provisions,15.33,0.00,15.33
Children and Young Peoples Services,Head of Education and Skills,071801,Selby Cottage Childcare Centre,Supplies and Services,324117,Provisions E324,03-May-2019,000008546392429,TESCO STORES 2278,5411,Catering costs - provisions,11.34,0.00,11.34
Children and Young Peoples Services,Head of Education and Skills,071801,Selby Cottage Childcare Centre,Supplies and Services,304259,Equipment and Materials,03-May-2019,000008546392431,WILKO RETAIL LIMIT,5722,Equipment-purchase and rental,28.70,0.00,28.70
Regeneration and Local Services,Development and Housing,030771,Durham Advance Flexible Fund,Supplies and Services,304259,Equipment and Materials,03-May-2019,000008546392461,DISCLOSURE & BARRING,9399,Equipment-purchase and rental,13.00,0.00,13.00
Children and Young Peoples Services,Head of Education and Skills,070264,EDC Premises,Supplies and Services,324117,Provisions E324,03-May-2019,000008546392463,HOPWELLS LTD,5811,Catering costs - provisions,140.35,0.00,140.35
Regeneration and Local Services,Development and Housing,030773,CLLD North,Supplies and Services,340001,Postages E340,03-May-2019,000008546392469,POST OFFICE COUNTER,9402,Postages,220.00,0.00,220.00
Regeneration and Local Services,Environmental Services,031233,North Pennines - Pennine Peatlife,Supplies and Services,340001,Postages E340,03-May-2019,000008546392487,DPD_LOCAL_ONLINE,4215,Postages,15.59,0.00,15.59
Children and Young Peoples Services,Head of Childrens Social Care,085332,Middlestone Moor CU,Premises,115125,Repairs to Grounds,03-May-2019,000008546392503,WWW ESPARES CO UK,5065,General maintenance,12.94,0.00,12.94
Children and Young Peoples Services,Head of Childrens Social Care,085332,Middlestone Moor CU,Supplies and Services,304083,Equipment and Materials,03-May-2019,000008546392507,WWW.ETWIST.CO.UK,5732,Catering equipment,23.89,0.00,23.89
Children and Young Peoples Services,Head of Early Help Inclusion & Vulnerable Children.,088114,Team Around the School,Supplies and Services,332047,Printing Stationery and Gen Off Exps,03-May-2019,000008546392557,AMZNMKTPLACE AMAZON.CO,5999,Stationery,17.86,0.00,17.86
Regeneration and Local Services,Corporate Property and Land,021242,Catering - County Hall,Supplies and Services,324117,Provisions E324,03-May-2019,000008546392563,HOPWELLS LTD,5811,Catering costs - provisions,306.59,0.00,306.59
Regeneration and Local Services,Corporate Property and Land,021242,Catering - County Hall,Supplies and Services,324117,Provisions E324,03-May-2019,000008546392565,HOPWELLS LTD,5811,Catering costs - provisions,191.75,0.00,191.75
Regeneration and Local Services,Corporate Property and Land,021242,Catering - County Hall,Supplies and Services,324117,Provisions E324,03-May-2019,000008546392567,HOPWELLS LTD,5811,Catering costs - provisions,115.01,0.00,115.01
Regeneration and Local Services,Corporate Property and Land,021242,Catering - County Hall,Premises,145009,Cleaning and Domestic Supplies,03-May-2019,000008546392569,ALLIANCE DISPOSABLES L,2842,Other cleaning and domestic costs,118.48,19.75,98.73
Regeneration and Local Services,Corporate Property and Land,021242,Catering - County Hall,Supplies and Services,324117,Provisions E324,03-May-2019,000008546392571,FREEMAN CATERING BUTCH,5422,Catering costs - provisions,201.54,0.00,201.54
Regeneration and Local Services,Corporate Property and Land,021242,Catering - County Hall,Supplies and Services,324117,Provisions E324,03-May-2019,000008546392573,HOPWELLS LTD,5811,Catering costs - provisions,-19.80,0.00,-19.80
Regeneration and Local Services,Culture Sport and Tourism,054812,Gala Theatre - Catering etc,Supplies and Services,324117,Provisions E324,03-May-2019,000008546392579,HOPWELLS LTD,5811,Catering costs - provisions,36.17,0.00,36.17
Regeneration and Local Services,Culture Sport and Tourism,054812,Gala Theatre - Catering etc,Premises,145009,Cleaning and Domestic Supplies,03-May-2019,000008546392581,ALLIANCE DISPOSABLES L,2842,Other cleaning and domestic costs,311.76,51.96,259.80
Regeneration and Local Services,Culture Sport and Tourism,054812,Gala Theatre - Catering etc,Premises,145009,Cleaning and Domestic Supplies,03-May-2019,000008546392581 - 1,ALLIANCE DISPOSABLES L,2842,Other cleaning and domestic costs,0.05,,0.05
Regeneration and Local Services,Culture Sport and Tourism,054812,Gala Theatre - Catering etc,Supplies and Services,324117,Provisions E324,03-May-2019,000008546392583,FREEMAN CATERING BUTCH,5422,Catering costs - provisions,53.98,0.00,53.98
Regeneration and Local Services,Corporate Property and Land,021242,Catering - County Hall,Supplies and Services,328041,Clothing uniforms and laundry E328,03-May-2019,000008546392587,MATALAN,5691,Clothing uniforms and laundry,12.80,0.00,12.80
Regeneration and Local Services,Corporate Property and Land,021242,Catering - County Hall,Supplies and Services,312011,Newspapers books and periodicals E312,03-May-2019,000008546392589,HOME BARGAINS,5251,Books-school library,4.90,0.00,4.90
Regeneration and Local Services,Development and Housing,030773,CLLD North,Transport,235057,Public Transport,03-May-2019,000008546392605,AUCKLAND CASTLE,7523,Staff travelling,0.60,0.00,0.60
Children and Young Peoples Services,Head of Childrens Social Care,085333,Coxhoe Satelite Home,Supplies and Services,324117,Provisions E324,03-May-2019,000008546392609,Icestone Gelato,5451,Catering costs - provisions,11.49,0.00,11.49
Children and Young Peoples Services,Head of Childrens Social Care,085342,9 Cedar Drive Aycliffe,Supplies and Services,332047,Printing Stationery and Gen Off Exps,03-May-2019,000008546392637,VUE CINEMAS WWW,7832,Stationery,15.48,0.00,15.48
Children and Young Peoples Services,Head of Education and Skills,071732,Dean Bank Childcare,Supplies and Services,324117,Provisions E324,03-May-2019,000008546392649,SAINSBURYS SACAT (2303,5411,Catering costs - provisions,21.80,0.00,21.80
Regeneration and Local Services,Culture Sport and Tourism,054813,Gala Theatre - Technical,Supplies and Services,304403,Equipment and Materials,03-May-2019,000008546392651,AMZNMKTPLACE AMAZON.CO,5999,Other consumables,27.96,0.00,27.96
Regeneration and Local Services,Culture Sport and Tourism,054813,Gala Theatre - Technical,Supplies and Services,304221,Equipment and Materials,03-May-2019,000008546392653,B & Q 1237,5200,Direct materials,14.00,0.00,14.00
Adult and Health Services,Commissioning inc Supporting People,052100,Supporting the Provider Market,Supplies and Services,338057,Services,03-May-2019,000008546392673,WWW.WESSEX-MEDICAL.COM,5047,Medical fees 338057,546.00,91.00,455.00
Regeneration and Local Services,Business Durham CL0850,030671,Business Space 030671,Supplies and Services,324117,Provisions E324,03-May-2019,000008546392701,ASDA SUPERSTORE,5411,Catering costs - provisions,10.00,0.00,10.00
Regeneration and Local Services,Development and Housing,030771,Durham Advance Flexible Fund,Supplies and Services,324117,Provisions E324,03-May-2019,000008546392703,COSTA COFFEE 43038640,5814,Catering costs - provisions,4.75,0.00,4.75
Children and Young Peoples Services,Head of Early Help Inclusion & Vulnerable Children.,071404,Laurel Avenue Childrens Centre,Supplies and Services,304403,Equipment and Materials,03-May-2019,000008546392709,AMZNMktplace,5999,Other consumables,13.25,0.00,13.25
Children and Young Peoples Services,Head of Early Help Inclusion & Vulnerable Children.,085965,Barnard,Supplies and Services,324117,Provisions E324,03-May-2019,000008546392711,TESCO STORES 6329,5411,Catering costs - provisions,84.12,0.00,84.12
Regeneration and Local Services,Culture Sport and Tourism,054813,Gala Theatre - Technical,Supplies and Services,312011,Newspapers books and periodicals E312,03-May-2019,000008546392721,Amazon.co.uk MN75L5N24,5969,Books-school library,27.28,0.00,27.28
Regeneration and Local Services,Culture Sport and Tourism,054813,Gala Theatre - Technical,Supplies and Services,324117,Provisions E324,03-May-2019,000008546392723,WM MORRISONS STORE,5411,Catering costs - provisions,84.15,0.00,84.15
Regeneration and Local Services,Culture Sport and Tourism,054813,Gala Theatre - Technical,Supplies and Services,304259,Equipment and Materials,03-May-2019,000008546392731,HALFORDS ON LINE,5940,Equipment-purchase and rental,122.99,0.00,122.99
Regeneration and Local Services,Environmental Services,011060,C&G - Hardwick Park Catering,Supplies and Services,324117,Provisions E324,03-May-2019,000008546392759,HOPWELLS LTD,5811,Catering costs - provisions,533.04,88.84,444.20
Regeneration and Local Services,Environmental Services,011060,C&G - Hardwick Park Catering,Supplies and Services,324117,Provisions E324,03-May-2019,000008546392759 - 1,HOPWELLS LTD,5811,Catering costs - provisions,152.40,,152.40
Regeneration and Local Services,Environmental Services,011060,C&G - Hardwick Park Catering,Supplies and Services,324117,Provisions E324,03-May-2019,000008546392761,FREEMAN CATERING BUTCH,5422,Catering costs - provisions,33.46,0.00,33.46
Regeneration and Local Services,Environmental Services,011060,C&G - Hardwick Park Catering,Supplies and Services,324117,Provisions E324,03-May-2019,000008546392763,FREEMAN CATERING BUTCH,5422,Catering costs - provisions,87.20,0.00,87.20
Regeneration and Local Services,Environmental Services,011060,C&G - Hardwick Park Catering,Supplies and Services,324117,Provisions E324,03-May-2019,000008546392765,HOPWELLS LTD,5811,Catering costs - provisions,-23.60,-3.93,-19.67
Regeneration and Local Services,Environmental Services,011060,C&G - Hardwick Park Catering,Supplies and Services,324117,Provisions E324,03-May-2019,000008546392767,FREEMAN CATERING BUTCH,5422,Catering costs - provisions,-183.05,0.00,-183.05
Regeneration and Local Services,Culture Sport and Tourism,054815,Gala Theatre Stage School,Supplies and Services,328041,Clothing uniforms and laundry E328,03-May-2019,000008546392773,OUTFIT,5691,Clothing uniforms and laundry,38.30,0.00,38.30
Regeneration and Local Services,Culture Sport and Tourism,054815,Gala Theatre Stage School,Supplies and Services,328041,Clothing uniforms and laundry E328,03-May-2019,000008546392775,RIVER ISLAND 820,5691,Clothing uniforms and laundry,40.00,0.00,40.00
Regeneration and Local Services,Corporate Property and Land,021234,Catering - Locomotion,Supplies and Services,324117,Provisions E324,03-May-2019,000008546392779,HOPWELLS LTD,5811,Catering costs - provisions,12.22,0.00,12.22
Regeneration and Local Services,Corporate Property and Land,021234,Catering - Locomotion,Supplies and Services,324117,Provisions E324,03-May-2019,000008546392781,HOPWELLS LTD,5811,Catering costs - provisions,71.76,11.96,59.80
Regeneration and Local Services,Corporate Property and Land,021234,Catering - Locomotion,Supplies and Services,324117,Provisions E324,03-May-2019,000008546392781 - 1,HOPWELLS LTD,5811,Catering costs - provisions,166.12,,166.12
Regeneration and Local Services,Corporate Property and Land,021234,Catering - Locomotion,Supplies and Services,324117,Provisions E324,03-May-2019,000008546392783,FREEMAN CATERING BUTCH,5422,Catering costs - provisions,31.44,0.00,31.44
Regeneration and Local Services,Corporate Property and Land,021234,Catering - Locomotion,Supplies and Services,324117,Provisions E324,03-May-2019,000008546392785,HOPWELLS LTD,5811,Catering costs - provisions,-6.11,0.00,-6.11
Regeneration and Local Services,Corporate Property and Land,010525,Catering - Green Lane,Supplies and Services,324117,Provisions E324,03-May-2019,000008546392791,HOPWELLS LTD,5811,Catering costs - provisions,74.19,0.00,74.19
Regeneration and Local Services,Corporate Property and Land,010525,Catering - Green Lane,Supplies and Services,324117,Provisions E324,03-May-2019,000008546392793,HOPWELLS LTD,5811,Catering costs - provisions,15.84,0.00,15.84
Regeneration and Local Services,Corporate Property and Land,010525,Catering - Green Lane,Supplies and Services,324117,Provisions E324,03-May-2019,000008546392795,FREEMAN CATERING BUTCH,5422,Catering costs - provisions,53.14,0.00,53.14
Transformation and Partnerships,Partnerships & Community Engagement Div.,060472,Syrian Vulnerable Persons Scheme,Supplies and Services,328041,Clothing uniforms and laundry E328,03-May-2019,000008546392797,WWW.MICHAELSEHGAL.CO.U,5137,Clothing uniforms and laundry,50.97,0.00,50.97
Regeneration and Local Services,Development and Housing,030771,Durham Advance Flexible Fund,Supplies and Services,304259,Equipment and Materials,03-May-2019,000008546392799,DURHAM TEA ROOM,9399,Equipment-purchase and rental,2.50,0.00,2.50
Regeneration and Local Services,Development and Housing,031500,Housing Solutions - Core Team,Employees,040149,Recruitment Instruction and Training,03-May-2019,000008546392829,WWW.GOV.UK,8999,Training-all costs,10.00,0.00,10.00
Regeneration and Local Services,Environmental Services,010367,C&G - South Grounds Maintenance,Supplies and Services,324117,Provisions E324,03-May-2019,000008546392845,J M RAINE,5399,Catering costs - provisions,41.00,6.83,34.17
Regeneration and Local Services,Development and Housing,030771,Durham Advance Flexible Fund,Supplies and Services,304259,Equipment and Materials,03-May-2019,000008546392857,GEN REGISTER OFFICE,9399,Equipment-purchase and rental,14.00,0.00,14.00
Regeneration and Local Services,Corporate Property and Land,030691,Catering - Durham Dales Centre,Supplies and Services,324117,Provisions E324,03-May-2019,000008546392885,HOPWELLS LTD,5811,Catering costs - provisions,183.59,0.00,183.59
Regeneration and Local Services,Corporate Property and Land,030691,Catering - Durham Dales Centre,Supplies and Services,324117,Provisions E324,03-May-2019,000008546392887,FREEMAN CATERING BUTCH,5422,Catering costs - provisions,88.68,0.00,88.68
Regeneration and Local Services,Corporate Property and Land,030691,Catering - Durham Dales Centre,Supplies and Services,324117,Provisions E324,03-May-2019,000008546392889,FREEMAN CATERING BUTCH,5422,Catering costs - provisions,135.81,0.00,135.81
Regeneration and Local Services,Corporate Property and Land,030691,Catering - Durham Dales Centre,Supplies and Services,324117,Provisions E324,03-May-2019,000008546392891,HOPWELLS LTD,5811,Catering costs - provisions,-14.43,0.00,-14.43
Adult and Health Services,Head of Adults,055643,Hawthorn House LD Respite Unit,Supplies and Services,324117,Provisions E324,03-May-2019,000008546392917,FREEMAN CATERING BUTCH,5422,Catering costs - provisions,42.88,0.00,42.88
Regeneration and Local Services,Environmental Services,010301,C&G - North Grounds Maintenance,Supplies and Services,304403,Equipment and Materials,03-May-2019,000008546392931,BESCOL,5231,Other consumables,88.15,14.69,73.46
Regeneration and Local Services,Environmental Services,010301,C&G - North Grounds Maintenance,Supplies and Services,304403,Equipment and Materials,03-May-2019,000008546392933,BESCOL,5231,Other consumables,18.00,3.00,15.00
Resources BK0010,Legal & Democratic Services,069335,Democratic Services 069335,Supplies and Services,384199,Miscellaneous Expenses,03-May-2019,000008546392969,COMPANIES HOUSE,9399,Other hired and contracted services,13.00,0.00,13.00
Resources BK0010,Legal & Democratic Services,069335,Democratic Services 069335,Supplies and Services,384199,Miscellaneous Expenses,03-May-2019,000008546392971,COMPANIES HOUSE,9399,Other hired and contracted services,13.00,0.00,13.00
Transformation and Partnerships,Business Support,052986,CYPS - Locality and Operational Support,Supplies and Services,352001,Conference Expenses,03-May-2019,000008546392973,TVLICENSING.CO.UK,7392,Conferencesseminars fees etc,154.50,0.00,154.50
Transformation and Partnerships,Business Support,052986,CYPS - Locality and Operational Support,Supplies and Services,352001,Conference Expenses,03-May-2019,000008546392975,TVLICENSING.CO.UK,7392,Conferencesseminars fees etc,154.50,0.00,154.50
Regeneration and Local Services,Transport and Contracted Services,031704,Care Connect - CCTV Countywide,Supplies and Services,384956,Miscellaneous Expenses,03-May-2019,000008546392993,SECURITY INDUSTRY,7393,Licences,220.00,0.00,220.00
Regeneration and Local Services,Corporate Property and Land,021324,Catering - Meadowfield,Supplies and Services,324117,Provisions E324,03-May-2019,000008546392995,HOPWELLS LTD,5811,Catering costs - provisions,93.10,0.00,93.10
Regeneration and Local Services,Corporate Property and Land,021324,Catering - Meadowfield,Premises,145009,Cleaning and Domestic Supplies,03-May-2019,000008546392997,ALLIANCE DISPOSABLES L,2842,Other cleaning and domestic costs,55.20,9.20,46.00
Regeneration and Local Services,Corporate Property and Land,021324,Catering - Meadowfield,Supplies and Services,324117,Provisions E324,03-May-2019,000008546392999,FREEMAN CATERING BUTCH,5422,Catering costs - provisions,86.88,0.00,86.88
Children and Young Peoples Services,Head of Childrens Social Care,085333,Coxhoe Satelite Home,Supplies and Services,324117,Provisions E324,03-May-2019,000008546393003,ASDA STORES LTD,5411,Catering costs - provisions,18.55,0.00,18.55
Children and Young Peoples Services,Head of Childrens Social Care,085333,Coxhoe Satelite Home,Supplies and Services,324117,Provisions E324,03-May-2019,000008546393005,ASDA STORES LTD,5411,Catering costs - provisions,5.00,0.00,5.00
Children and Young Peoples Services,Head of Childrens Social Care,085333,Coxhoe Satelite Home,Supplies and Services,324117,Provisions E324,03-May-2019,000008546393007,ASDA SUPERSTORE 4987,5411,Catering costs - provisions,173.83,0.00,173.83
Children and Young Peoples Services,Head of Childrens Social Care,085333,Coxhoe Satelite Home,Supplies and Services,324117,Provisions E324,03-May-2019,000008546393009,ASDA SUPERSTORE 4987,5411,Catering costs - provisions,31.85,0.00,31.85
Children and Young Peoples Services,Head of Childrens Social Care,085333,Coxhoe Satelite Home,Supplies and Services,324117,Provisions E324,03-May-2019,000008546393017,TESCO STORES 2916,5411,Catering costs - provisions,143.68,0.00,143.68
Adult and Health Services,Head of Adults,055807,Newton Aycliffe Pathways,Supplies and Services,304083,Equipment and Materials,03-May-2019,000008546393077,POUNDSTRETCHER 128,5331,Catering equipment,8.05,0.00,8.05
Adult and Health Services,Head of Adults,055807,Newton Aycliffe Pathways,Supplies and Services,324117,Provisions E324,03-May-2019,000008546393079,ALDI 74 774,5411,Catering costs - provisions,4.02,0.00,4.02
Transformation and Partnerships,Business Support,069010,Administration 069010,Employees,040149,Recruitment Instruction and Training,03-May-2019,000008546393081,THE BRITISH ASSOCIATIO,8699,Training-all costs,50.00,0.00,50.00
Regeneration and Local Services,Corporate Property and Land,021235,Catering - Wharton Park,Supplies and Services,324117,Provisions E324,03-May-2019,000008546393091,HOPWELLS LTD,5811,Catering costs - provisions,91.56,15.26,76.30
Regeneration and Local Services,Corporate Property and Land,021235,Catering - Wharton Park,Supplies and Services,324117,Provisions E324,03-May-2019,000008546393091 - 1,HOPWELLS LTD,5811,Catering costs - provisions,48.38,,48.38
Regeneration and Local Services,Culture Sport and Tourism,011265,Empire Theatre (Operations),Supplies and Services,304259,Equipment and Materials,03-May-2019,000008546393111,Durham County CNCL,9399,Equipment-purchase and rental,180.00,0.00,180.00
Children and Young Peoples Services,Head of Education and Skills,070264,EDC Premises,Supplies and Services,324117,Provisions E324,03-May-2019,000008550377757,BATLEYS PERTH,5300,Catering costs - provisions,-6.86,0.00,-6.86
Regeneration and Local Services,Corporate Property and Land,021242,Catering - County Hall,Supplies and Services,324117,Provisions E324,03-May-2019,000008550377929,BATLEYS PERTH,5300,Catering costs - provisions,-0.84,-0.14,-0.70
Adult and Health Services,Head of Adults,055643,Hawthorn House LD Respite Unit,Supplies and Services,324117,Provisions E324,03-May-2019,000008550378655,BATLEYS PERTH,5300,Catering costs - provisions,46.02,7.67,38.35
Adult and Health Services,Head of Adults,055643,Hawthorn House LD Respite Unit,Supplies and Services,324117,Provisions E324,03-May-2019,000008550378655 - 1,BATLEYS PERTH,5300,Catering costs - provisions,38.81,,38.81
Regeneration and Local Services,Corporate Property and Land,021324,Catering - Meadowfield,Supplies and Services,324117,Provisions E324,03-May-2019,000008550378891,BATLEYS PERTH,5300,Catering costs - provisions,-0.60,0.00,-0.60
Regeneration and Local Services,Corporate Property and Land,021235,Catering - Wharton Park,Supplies and Services,324117,Provisions E324,03-May-2019,000008550379231,BATLEYS PERTH,5300,Catering costs - provisions,-10.70,-1.78,-8.92
Regeneration and Local Services,Corporate Property and Land,021242,Catering - County Hall,Supplies and Services,324117,Provisions E324,03-May-2019,000008575152941,JR HOLLAND FOODSERVICE,5499,Catering costs - provisions,114.84,0.00,114.84
Regeneration and Local Services,Corporate Property and Land,021242,Catering - County Hall,Supplies and Services,324117,Provisions E324,03-May-2019,000008575152945,JR HOLLAND FOODSERVICE,5499,Catering costs - provisions,6.94,0.00,6.94
Regeneration and Local Services,Corporate Property and Land,021242,Catering - County Hall,Supplies and Services,324117,Provisions E324,03-May-2019,000008575152949,JR HOLLAND FOODSERVICE,5499,Catering costs - provisions,-9.42,0.00,-9.42
Regeneration and Local Services,Corporate Property and Land,021242,Catering - County Hall,Supplies and Services,324117,Provisions E324,03-May-2019,000008575152955,JR HOLLAND FOODSERVICE,5499,Catering costs - provisions,-6.82,0.00,-6.82
Regeneration and Local Services,Corporate Property and Land,030691,Catering - Durham Dales Centre,Supplies and Services,324117,Provisions E324,03-May-2019,000008575153971,JR HOLLAND FOODSERVICE,5499,Catering costs - provisions,11.04,0.00,11.04
Regeneration and Local Services,Corporate Property and Land,030691,Catering - Durham Dales Centre,Supplies and Services,324117,Provisions E324,03-May-2019,000008575153977,JR HOLLAND FOODSERVICE,5499,Catering costs - provisions,116.08,0.00,116.08
Regeneration and Local Services,Culture Sport and Tourism,054235,Bishop Auckland Town Hall Cafe,Supplies and Services,324117,Provisions E324,03-May-2019,000008575154167,JR HOLLAND FOODSERVICE,5499,Catering costs - provisions,20.63,0.00,20.63
Regeneration and Local Services,Environmental Services,011060,C&G - Hardwick Park Catering,Supplies and Services,324117,Provisions E324,03-May-2019,000008581738597,JR HOLLAND FOODSERVICE,5499,Catering costs - provisions,32.71,0.00,32.71
Transformation and Partnerships,Business Support,065461,Business Support 065461,Supplies and Services,342053,Computers and Communications,04-May-2019,000008546392441,BITEABLE PTY LTD,7392,Computer software,22.32,0.00,22.32
Children and Young Peoples Services,Head of Childrens Social Care,085332,Middlestone Moor CU,Supplies and Services,304083,Equipment and Materials,04-May-2019,000008546392505,THE RANGE,5311,Catering equipment,10.01,0.00,10.01
Regeneration and Local Services,Business Durham CL0850,030699,Business Growth and Innovation General,Supplies and Services,342033,Computers and Communications,04-May-2019,000008546392509,STK Shutterstock,7333,Computer hardware,19.00,0.00,19.00
Regeneration and Local Services,Business Durham CL0850,030699,Business Growth and Innovation General,Supplies and Services,304403,Equipment and Materials,04-May-2019,000008546392511,MEETEDGAR MONTHLY,5734,Other consumables,37.72,0.00,37.72
Regeneration and Local Services,Business Durham CL0850,030699,Business Growth and Innovation General,Supplies and Services,312011,Newspapers books and periodicals E312,04-May-2019,000008546392513,FASTHOSTS INTERNET,4816,Books-school library,6.34,1.06,5.28
Regeneration and Local Services,Environmental Services,031221,North Pennines - Bowlees,Supplies and Services,332047,Printing Stationery and Gen Off Exps,04-May-2019,000008546392667,PAYPAL BUMBLEBEECO,8641,Stationery,44.00,0.00,44.00
Children and Young Peoples Services,Head of Education and Skills,071903,EYDCP-Sustainability EDS,Supplies and Services,304403,Equipment and Materials,04-May-2019,000008546392695,AMZ Charimaliy,5999,Other consumables,-20.99,0.00,-20.99
Children and Young Peoples Services,Head of Early Help Inclusion & Vulnerable Children.,085956,Lumley,Supplies and Services,324117,Provisions E324,04-May-2019,000008546392713,TESCO STORES 6329,5411,Catering costs - provisions,134.31,0.00,134.31
Regeneration and Local Services,Culture Sport and Tourism,054813,Gala Theatre - Technical,Supplies and Services,304999,Equipment and Materials,04-May-2019,000008546392725,Prime Video,5968,Misc equipment tools and materials,7.99,0.00,7.99
Regeneration and Local Services,Culture Sport and Tourism,054813,Gala Theatre - Technical,Supplies and Services,312011,Newspapers books and periodicals E312,04-May-2019,000008546392727,Amazon.co.uk MN58H7Z04,5969,Books-school library,5.99,0.00,5.99
Regeneration and Local Services,Culture Sport and Tourism,054813,Gala Theatre - Technical,Third Party Payments 4THIRD,430100,Rendered by Private Contractors,04-May-2019,000008546392729,WWW.EFOAM.CO.UK,7399,Payments to sub-contractors,385.87,0.00,385.87
Children and Young Peoples Services,Head of Childrens Social Care,085334,West Rainton Satelite Home,Supplies and Services,308011,Furniture,04-May-2019,000008546392847,IKEA LIMITED,5712,Furniture repair and replacement,88.85,14.81,74.04
Children and Young Peoples Services,Head of Education and Skills,071903,EYDCP-Sustainability EDS,Supplies and Services,312011,Newspapers books and periodicals E312,04-May-2019,000008546392983,AMZN Mktp UK MN1CR4N64,5942,Books-school library,6.70,0.00,6.70
Children and Young Peoples Services,Head of Education and Skills,071903,EYDCP-Sustainability EDS,Supplies and Services,312011,Newspapers books and periodicals E312,04-May-2019,000008546392985,AMZN Mktp UK MN1DU2NT4,5942,Books-school library,19.75,0.00,19.75
Children and Young Peoples Services,Head of Education and Skills,071903,EYDCP-Sustainability EDS,Supplies and Services,312011,Newspapers books and periodicals E312,04-May-2019,000008546392987,AMZN MKTP UK MN4MY7N64,5942,Books-school library,19.75,0.00,19.75
Children and Young Peoples Services,Head of Childrens Social Care,085352,Tow Law CU,Supplies and Services,384999,Miscellaneous Expenses,05-May-2019,000008546392623,BODYCARE,5977,Other expenses,26.06,0.00,26.06
Children and Young Peoples Services,Head of Childrens Social Care,085352,Tow Law CU,Supplies and Services,348037,Subsistence E348,05-May-2019,000008546392625,JACKSONS WHARF,5813,Subsistence,39.06,0.00,39.06
Children and Young Peoples Services,Head of Childrens Social Care,085352,Tow Law CU,Supplies and Services,328041,Clothing uniforms and laundry E328,05-May-2019,000008546392627,POUNDLAND LTD 1057,5310,Clothing uniforms and laundry,4.00,0.00,4.00
Children and Young Peoples Services,Head of Childrens Social Care,085352,Tow Law CU,Supplies and Services,328041,Clothing uniforms and laundry E328,05-May-2019,000008546392629,PRIMARK,5651,Clothing uniforms and laundry,34.00,0.00,34.00
Transformation and Partnerships,Business Support,052986,CYPS - Locality and Operational Support,Supplies and Services,312011,Newspapers books and periodicals E312,05-May-2019,000008546392631,Amazon.co.uk MN3EM7N34,5969,Books-school library,33.84,0.00,33.84
Children and Young Peoples Services,Head of Childrens Social Care,085342,9 Cedar Drive Aycliffe,Supplies and Services,312011,Newspapers books and periodicals E312,05-May-2019,000008546392639,AMZN Mktp UK MN8JB9NS4,5942,Books-school library,19.97,0.00,19.97
Children and Young Peoples Services,Head of Childrens Social Care,085342,9 Cedar Drive Aycliffe,Supplies and Services,352001,Conference Expenses,05-May-2019,000008546392641,KEY INNS LTD,7011,Conferencesseminars fees etc,62.90,0.00,62.90
Children and Young Peoples Services,Head of Early Help Inclusion & Vulnerable Children.,085954,Walworth,Supplies and Services,324117,Provisions E324,05-May-2019,000008546392715,TESCO STORES 6329,5411,Catering costs - provisions,82.66,0.00,82.66
Children and Young Peoples Services,Head of Early Help Inclusion & Vulnerable Children.,085956,Lumley,Supplies and Services,304649,Equipment and Materials,05-May-2019,000008546392717,AMZNMKTPLACE AMAZON.CO,5999,Toys,20.41,0.00,20.41
Regeneration and Local Services,Culture Sport and Tourism,054813,Gala Theatre - Technical,Supplies and Services,304259,Equipment and Materials,05-May-2019,000008546392733,Prime Video MN1UY23N4,5735,Equipment-purchase and rental,6.99,0.00,6.99
Regeneration and Local Services,Culture Sport and Tourism,054813,Gala Theatre - Technical,Supplies and Services,312011,Newspapers books and periodicals E312,05-May-2019,000008546392735,AMZN Mktp UK MN6FS33X4,5942,Books-school library,13.47,0.00,13.47
Regeneration and Local Services,Culture Sport and Tourism,054813,Gala Theatre - Technical,Supplies and Services,304403,Equipment and Materials,05-May-2019,000008546392737,AMZNMktplace,5999,Other consumables,52.86,0.00,52.86
Regeneration and Local Services,Culture Sport and Tourism,054813,Gala Theatre - Technical,Supplies and Services,304403,Equipment and Materials,05-May-2019,000008546392739,AMZNMktplace,5999,Other consumables,21.99,0.00,21.99
Regeneration and Local Services,Culture Sport and Tourism,054813,Gala Theatre - Technical,Supplies and Services,304403,Equipment and Materials,05-May-2019,000008546392741,AMZNMKTPLACE AMAZON.CO,5999,Other consumables,13.47,0.00,13.47
Regeneration and Local Services,Culture Sport and Tourism,054813,Gala Theatre - Technical,Supplies and Services,304221,Equipment and Materials,05-May-2019,000008546392743,B & Q 1006,5211,Direct materials,63.08,0.00,63.08
Regeneration and Local Services,Culture Sport and Tourism,054813,Gala Theatre - Technical,Supplies and Services,304403,Equipment and Materials,05-May-2019,000008546392745,WWW.LIGHTS4FUN.CO.,5999,Other consumables,243.93,0.00,243.93
Children and Young Peoples Services,Head of Childrens Social Care,085331,New Lea Childrens Home,Supplies and Services,348037,Subsistence E348,05-May-2019,000008546392823,THE STORK INN,5813,Subsistence,46.05,0.00,46.05
Children and Young Peoples Services,Head of Childrens Social Care,085333,Coxhoe Satelite Home,Supplies and Services,348037,Subsistence E348,05-May-2019,000008546392869,THE POACHERS POCKET,5812,Subsistence,30.83,0.00,30.83
Children and Young Peoples Services,Head of Childrens Social Care,085333,Coxhoe Satelite Home,Supplies and Services,384999,Miscellaneous Expenses,05-May-2019,000008546392871,BEAUTY OUTLET,7230,Other expenses,8.47,0.00,8.47
Children and Young Peoples Services,Head of Childrens Social Care,085333,Coxhoe Satelite Home,Supplies and Services,324117,Provisions E324,05-May-2019,000008546392873,THORNTONS LTD,5441,Catering costs - provisions,5.30,0.00,5.30
Children and Young Peoples Services,Head of Childrens Social Care,085333,Coxhoe Satelite Home,Supplies and Services,348037,Subsistence E348,05-May-2019,000008546392875,SUBWAY,5812,Subsistence,2.80,0.00,2.80
Regeneration and Local Services,Development and Housing,031500,Housing Solutions - Core Team,Employees,040149,Recruitment Instruction and Training,05-May-2019,000008546392879,PREMIER INN,3811,Training-all costs,166.00,27.67,138.33
Adult and Health Services,Head of Adults,055643,Hawthorn House LD Respite Unit,Supplies and Services,324117,Provisions E324,05-May-2019,000008550378665,BATLEYS PERTH,5300,Catering costs - provisions,44.92,0.00,44.92
Children and Young Peoples Services,Head of Education and Skills,071801,Selby Cottage Childcare Centre,Supplies and Services,312011,Newspapers books and periodicals E312,06-May-2019,000008546392433,Amazon.co.uk MN2WS1JI4,5969,Books-school library,19.95,0.00,19.95
Regeneration and Local Services,Culture Sport and Tourism,054813,Gala Theatre - Technical,Supplies and Services,304403,Equipment and Materials,06-May-2019,000008546392655,AMZNMktplace,5999,Other consumables,6.99,0.00,6.99
Children and Young Peoples Services,Head of Early Help Inclusion & Vulnerable Children.,085957,Secure Management,Supplies and Services,304999,Equipment and Materials,06-May-2019,000008546392719,TESCO DELIVERY SAVER2,5968,Misc equipment tools and materials,6.99,0.00,6.99
Regeneration and Local Services,Culture Sport and Tourism,054813,Gala Theatre - Technical,Supplies and Services,312011,Newspapers books and periodicals E312,06-May-2019,000008546392747,AMZN Mktp UK MN1W72J14,5942,Books-school library,14.97,0.00,14.97
Regeneration and Local Services,Culture Sport and Tourism,054813,Gala Theatre - Technical,Supplies and Services,324117,Provisions E324,06-May-2019,000008546392749,TESCO STORES 2971,5411,Catering costs - provisions,18.00,0.00,18.00
Regeneration and Local Services,Culture Sport and Tourism,054813,Gala Theatre - Technical,Supplies and Services,304403,Equipment and Materials,06-May-2019,000008546392751,AMZNMKTPLACE AMAZON.CO,5999,Other consumables,23.40,0.00,23.40
Regeneration and Local Services,Culture Sport and Tourism,054813,Gala Theatre - Technical,Supplies and Services,304403,Equipment and Materials,06-May-2019,000008546392753,AMZNMKTPLACE AMAZON.CO,5999,Other consumables,11.95,0.00,11.95
Regeneration and Local Services,Culture Sport and Tourism,054813,Gala Theatre - Technical,Supplies and Services,304221,Equipment and Materials,06-May-2019,000008546392757,B & Q 1006,5211,Direct materials,77.24,0.00,77.24
Children and Young Peoples Services,Head of Childrens Social Care,085331,New Lea Childrens Home,Supplies and Services,348037,Subsistence E348,06-May-2019,000008546392825,J38 SHOP,5812,Subsistence,27.55,0.00,27.55
Children and Young Peoples Services,Head of Childrens Social Care,085334,West Rainton Satelite Home,Supplies and Services,324117,Provisions E324,06-May-2019,000008546392849,TESCO STORES 2371,5411,Catering costs - provisions,77.17,0.00,77.17
Children and Young Peoples Services,Head of Childrens Social Care,085334,West Rainton Satelite Home,Supplies and Services,328041,Clothing uniforms and laundry E328,06-May-2019,000008546392851,ARGOS LTD,5310,Clothing uniforms and laundry,105.98,0.00,105.98
Children and Young Peoples Services,Head of Childrens Social Care,085342,9 Cedar Drive Aycliffe,Supplies and Services,324117,Provisions E324,06-May-2019,000008546392881,TESCO STORES 2916,5411,Catering costs - provisions,20.93,0.00,20.93
Children and Young Peoples Services,Head of Early Help Inclusion & Vulnerable Children.,085965,Barnard,Supplies and Services,304259,Equipment and Materials,06-May-2019,000008546392963,M and M Direct Ltd,5941,Equipment-purchase and rental,-34.99,0.00,-34.99
Regeneration and Local Services,Business Durham CL0850,030671,Business Space 030671,Supplies and Services,304403,Equipment and Materials,06-May-2019,000008546393015,AMZNMktplace,5999,Other consumables,9.48,0.00,9.48
Regeneration and Local Services,Culture Sport and Tourism,054813,Gala Theatre - Technical,Supplies and Services,304403,Equipment and Materials,06-May-2019,000008550378275,AMZNMKTPLACE AMAZON.CO,5999,Other consumables,16.49,0.00,16.49
Regeneration and Local Services,Corporate Property and Land,030691,Catering - Durham Dales Centre,Supplies and Services,324117,Provisions E324,06-May-2019,000008550378597,BATLEYS PERTH,5300,Catering costs - provisions,47.52,7.92,39.60
Regeneration and Local Services,Corporate Property and Land,030691,Catering - Durham Dales Centre,Supplies and Services,324117,Provisions E324,06-May-2019,000008550378597 - 1,BATLEYS PERTH,5300,Catering costs - provisions,76.18,,76.18
Regeneration and Local Services,Corporate Property and Land,021235,Catering - Wharton Park,Supplies and Services,324117,Provisions E324,06-May-2019,000008550379215,BATLEYS PERTH,5300,Catering costs - provisions,135.54,22.59,112.95
Regeneration and Local Services,Corporate Property and Land,021235,Catering - Wharton Park,Supplies and Services,324117,Provisions E324,06-May-2019,000008550379215 - 1,BATLEYS PERTH,5300,Catering costs - provisions,9.46,,9.46
Transformation and Partnerships,Business Support,065461,Business Support 065461,Supplies and Services,342053,Computers and Communications,07-May-2019,000008546392443,BITEABLE PTY LTD,7392,Computer software,0.61,0.00,0.61
Regeneration and Local Services,Business Durham CL0850,030699,Business Growth and Innovation General,Supplies and Services,304403,Equipment and Materials,07-May-2019,000008546392515,MEETEDGAR MONTHLY,5734,Other consumables,1.04,0.00,1.04
Regeneration and Local Services,Culture Sport and Tourism,054813,Gala Theatre - Technical,Supplies and Services,304403,Equipment and Materials,07-May-2019,000008546392755,AMZNMktplace,5999,Other consumables,92.92,0.00,92.92
Resources BK0010,Digital and Customer Services,065487,ICT Telephony Recharges,Supplies and Services,344033,Telephones,07-May-2019,000008550377705,AMZNMKTPLACE AMAZON.CO,5999,Telephones general-all costs,11.85,0.00,11.85
Resources BK0010,Digital and Customer Services,065487,ICT Telephony Recharges,Supplies and Services,344033,Telephones,07-May-2019,000008550377711,AMZNMKTPLACE AMAZON.CO,5999,Telephones general-all costs,11.85,0.00,11.85
Resources BK0010,Digital and Customer Services,065487,ICT Telephony Recharges,Supplies and Services,344033,Telephones,07-May-2019,000008550377717,AMZNMKTPLACE AMAZON.CO,5999,Telephones general-all costs,11.85,0.00,11.85
Resources BK0010,Digital and Customer Services,065487,ICT Telephony Recharges,Supplies and Services,344033,Telephones,07-May-2019,000008550377723,AMZNMKTPLACE AMAZON.CO,5999,Telephones general-all costs,11.85,0.00,11.85
Resources BK0010,Digital and Customer Services,065487,ICT Telephony Recharges,Supplies and Services,344033,Telephones,07-May-2019,000008550377729,AMZNMKTPLACE AMAZON.CO,5999,Telephones general-all costs,11.85,0.00,11.85
Resources BK0010,Digital and Customer Services,065487,ICT Telephony Recharges,Supplies and Services,344033,Telephones,07-May-2019,000008550377735,AMZNMKTPLACE AMAZON.CO,5999,Telephones general-all costs,11.85,0.00,11.85
Resources BK0010,Digital and Customer Services,065487,ICT Telephony Recharges,Supplies and Services,344033,Telephones,07-May-2019,000008550377739,AMZNMKTPLACE AMAZON.CO,5999,Telephones general-all costs,11.85,0.00,11.85
Resources BK0010,Digital and Customer Services,065487,ICT Telephony Recharges,Supplies and Services,344033,Telephones,07-May-2019,000008550377745,AMZNMKTPLACE AMAZON.CO,5999,Telephones general-all costs,11.85,0.00,11.85
Resources BK0010,Digital and Customer Services,065487,ICT Telephony Recharges,Supplies and Services,344033,Telephones,07-May-2019,000008550377747,AMZNMKTPLACE AMAZON.CO,5999,Telephones general-all costs,7.90,0.00,7.90
Resources BK0010,Digital and Customer Services,065487,ICT Telephony Recharges,Supplies and Services,344033,Telephones,07-May-2019,000008550377751,AMZNMKTPLACE AMAZON.CO,5999,Telephones general-all costs,11.85,0.00,11.85
Children and Young Peoples Services,Head of Education and Skills,075021,Youth Employment Initiative,Supplies and Services,384199,Miscellaneous Expenses,07-May-2019,000008550377787,HARTLEPOOL BC CNP,9399,Other hired and contracted services,11.00,0.00,11.00
Children and Young Peoples Services,Head of Education and Skills,075021,Youth Employment Initiative,Supplies and Services,384199,Miscellaneous Expenses,07-May-2019,000008550377791,GEN REGISTER OFFICE,9399,Other hired and contracted services,14.00,0.00,14.00
Adult and Health Services,Head of Adults,051602,OP/PD Derwentside 051602,Supplies and Services,304403,Equipment and Materials,07-May-2019,000008550377797,AMZNMktplace,5999,Other consumables,42.95,7.16,35.79
Children and Young Peoples Services,Head of Childrens Social Care,085332,Middlestone Moor CU,Supplies and Services,324117,Provisions E324,07-May-2019,000008550377825,SAINSBURYS 2199,5411,Catering costs - provisions,15.85,0.00,15.85
Regeneration and Local Services,Corporate Property and Land,021242,Catering - County Hall,Supplies and Services,324117,Provisions E324,07-May-2019,000008550377883,JR HOLLAND FOODSERVICE,5499,Catering costs - provisions,6.90,0.00,6.90
Regeneration and Local Services,Corporate Property and Land,021242,Catering - County Hall,Supplies and Services,324117,Provisions E324,07-May-2019,000008550377887,JR HOLLAND FOODSERVICE,5499,Catering costs - provisions,57.17,0.00,57.17
Regeneration and Local Services,Corporate Property and Land,021242,Catering - County Hall,Supplies and Services,324117,Provisions E324,07-May-2019,000008550377893,WWW.ADELIEFOODS.CO.UK,5499,Catering costs - provisions,218.54,0.00,218.54
Regeneration and Local Services,Corporate Property and Land,021242,Catering - County Hall,Supplies and Services,324117,Provisions E324,07-May-2019,000008550377899,WWW.ADELIEFOODS.CO.UK,5499,Catering costs - provisions,41.52,0.00,41.52
Regeneration and Local Services,Corporate Property and Land,021242,Catering - County Hall,Supplies and Services,324117,Provisions E324,07-May-2019,000008550377903,WWW.ADELIEFOODS.CO.UK,5499,Catering costs - provisions,41.52,0.00,41.52
Regeneration and Local Services,Corporate Property and Land,021242,Catering - County Hall,Supplies and Services,324117,Provisions E324,07-May-2019,000008550377909,WWW.ADELIEFOODS.CO.UK,5499,Catering costs - provisions,41.52,0.00,41.52
Regeneration and Local Services,Culture Sport and Tourism,054812,Gala Theatre - Catering etc,Supplies and Services,324117,Provisions E324,07-May-2019,000008550377955,JR HOLLAND FOODSERVICE,5499,Catering costs - provisions,26.44,0.00,26.44
Regeneration and Local Services,Culture Sport and Tourism,054812,Gala Theatre - Catering etc,Supplies and Services,324117,Provisions E324,07-May-2019,000008550377963,JR HOLLAND FOODSERVICE,5499,Catering costs - provisions,20.59,0.00,20.59
Children and Young Peoples Services,Head of Early Help Inclusion & Vulnerable Children.,079599,Psychological-HQ,Supplies and Services,304403,Equipment and Materials,07-May-2019,000008550377985,AMZNMktplace,5999,Other consumables,8.08,1.35,6.73
Regeneration and Local Services,Corporate Property and Land,021242,Catering - County Hall,Supplies and Services,324117,Provisions E324,07-May-2019,000008550377991,LIDL GB DURHAM,5411,Catering costs - provisions,11.03,0.00,11.03
Children and Young Peoples Services,Head of Childrens Social Care,085362,LAC & Permanence Team 2,Supplies and Services,384999,Miscellaneous Expenses,07-May-2019,000008550378003,HM PASSPORT OFFICE,9399,Other expenses,49.00,0.00,49.00
Children and Young Peoples Services,Head of Childrens Social Care,085361,LAC & Permanence Team 1,Supplies and Services,384999,Miscellaneous Expenses,07-May-2019,000008550378009,CITY OF NEWCASTLE INTE,9399,Other expenses,93.00,0.00,93.00
Children and Young Peoples Services,Head of Childrens Social Care,085333,Coxhoe Satelite Home,Supplies and Services,304403,Equipment and Materials,07-May-2019,000008550378021,AMZNMktplace,5999,Other consumables,7.99,0.00,7.99
Children and Young Peoples Services,Head of Education and Skills,071732,Dean Bank Childcare,Supplies and Services,324117,Provisions E324,07-May-2019,000008550378135,CO-OP GROUP 010503,5411,Catering costs - provisions,8.95,0.00,8.95
Regeneration and Local Services,Culture Sport and Tourism,054813,Gala Theatre - Technical,Supplies and Services,304403,Equipment and Materials,07-May-2019,000008550378141,AMZNMktplace,5999,Other consumables,479.99,0.00,479.99
Regeneration and Local Services,Culture Sport and Tourism,054813,Gala Theatre - Technical,Supplies and Services,340001,Postages E340,07-May-2019,000008550378147,TNT_DIRECT,4215,Postages,8.94,0.00,8.94
Regeneration and Local Services,Development and Housing,031500,Housing Solutions - Core Team,Supplies and Services,352001,Conference Expenses,07-May-2019,000008550378201,HAYAT HOTEL,7011,Conferencesseminars fees etc,100.00,0.00,100.00
Regeneration and Local Services,Development and Housing,030771,Durham Advance Flexible Fund,Supplies and Services,324117,Provisions E324,07-May-2019,000008550378223,TESCO STORES 2371,5411,Catering costs - provisions,2.60,0.00,2.60
Children and Young Peoples Services,Head of Early Help Inclusion & Vulnerable Children.,085954,Walworth,Supplies and Services,328041,Clothing uniforms and laundry E328,07-May-2019,000008550378241,FOOTASYLUM PLC,5691,Clothing uniforms and laundry,226.94,0.00,226.94
Children and Young Peoples Services,Head of Early Help Inclusion & Vulnerable Children.,085962,Aycliffe Secure - Durham,Supplies and Services,312009,Newspapers books and periodicals E312,07-May-2019,000008550378247,REDBUBBLE.COM,5691,Newspapers books and periodicals,34.07,0.00,34.07
Children and Young Peoples Services,Head of Early Help Inclusion & Vulnerable Children.,085954,Walworth,Supplies and Services,328041,Clothing uniforms and laundry E328,07-May-2019,000008550378251,BOOHOO.COM,5691,Clothing uniforms and laundry,10.50,0.00,10.50
Children and Young Peoples Services,Head of Early Help Inclusion & Vulnerable Children.,085962,Aycliffe Secure - Durham,Supplies and Services,328041,Clothing uniforms and laundry E328,07-May-2019,000008550378253,OFFICE LONDON INTE,5661,Clothing uniforms and laundry,90.00,0.00,90.00
Children and Young Peoples Services,Head of Early Help Inclusion & Vulnerable Children.,085954,Walworth,Supplies and Services,304649,Equipment and Materials,07-May-2019,000008550378257,WWW.ARGOS.CO.UK,5310,Toys,348.91,0.00,348.91
Regeneration and Local Services,Culture Sport and Tourism,054813,Gala Theatre - Technical,Supplies and Services,304403,Equipment and Materials,07-May-2019,000008550378269,AMZNMktplace,5999,Other consumables,43.94,0.00,43.94
Regeneration and Local Services,Culture Sport and Tourism,054813,Gala Theatre - Technical,Supplies and Services,304403,Equipment and Materials,07-May-2019,000008550378279,AMZNMKTPLACE AMAZON.CO,5999,Other consumables,25.99,0.00,25.99
Regeneration and Local Services,Culture Sport and Tourism,054813,Gala Theatre - Technical,Supplies and Services,304403,Equipment and Materials,07-May-2019,000008550378283,AMZNMKTPLACE AMAZON.CO,5999,Other consumables,22.99,0.00,22.99
Regeneration and Local Services,Environmental Services,031222,North Pennines Allen Valleys Landscape Partnership,Supplies and Services,324117,Provisions E324,07-May-2019,000008550378287,CO-OP GROUP FOOD,5411,Catering costs - provisions,17.30,0.00,17.30
Regeneration and Local Services,Environmental Services,011060,C&G - Hardwick Park Catering,Supplies and Services,324117,Provisions E324,07-May-2019,000008550378323,JR HOLLAND FOODSERVICE,5499,Catering costs - provisions,2.48,0.00,2.48
Regeneration and Local Services,Environmental Services,011060,C&G - Hardwick Park Catering,Supplies and Services,324117,Provisions E324,07-May-2019,000008550378329,JR HOLLAND FOODSERVICE,5499,Catering costs - provisions,0.95,0.00,0.95
Regeneration and Local Services,Environmental Services,011060,C&G - Hardwick Park Catering,Supplies and Services,324117,Provisions E324,07-May-2019,000008550378331,JR HOLLAND FOODSERVICE,5499,Catering costs - provisions,194.77,0.00,194.77
Regeneration and Local Services,Environmental Services,011060,C&G - Hardwick Park Catering,Supplies and Services,324117,Provisions E324,07-May-2019,000008550378335,JR HOLLAND FOODSERVICE,5499,Catering costs - provisions,25.60,0.00,25.60
Regeneration and Local Services,Culture Sport and Tourism,054815,Gala Theatre Stage School,Supplies and Services,328041,Clothing uniforms and laundry E328,07-May-2019,000008550378353,RIVER ISLAND 820,5691,Clothing uniforms and laundry,38.00,0.00,38.00
Regeneration and Local Services,Culture Sport and Tourism,054815,Gala Theatre Stage School,Supplies and Services,332047,Printing Stationery and Gen Off Exps,07-May-2019,000008550378357,RYMAN,5943,Stationery,30.97,0.00,30.97
Regeneration and Local Services,Culture Sport and Tourism,054815,Gala Theatre Stage School,Supplies and Services,328041,Clothing uniforms and laundry E328,07-May-2019,000008550378361,DANCE DEPOT LTD,5661,Clothing uniforms and laundry,129.90,0.00,129.90
Regeneration and Local Services,Corporate Property and Land,021234,Catering - Locomotion,Supplies and Services,324117,Provisions E324,07-May-2019,000008550378377,JR HOLLAND FOODSERVICE,5499,Catering costs - provisions,40.40,0.00,40.40
Regeneration and Local Services,Corporate Property and Land,021234,Catering - Locomotion,Supplies and Services,324117,Provisions E324,07-May-2019,000008550378383,JR HOLLAND FOODSERVICE,5499,Catering costs - provisions,94.37,0.00,94.37
Regeneration and Local Services,Corporate Property and Land,021234,Catering - Locomotion,Supplies and Services,324117,Provisions E324,07-May-2019,000008550378389,WWW.ADELIEFOODS.CO.UK,5499,Catering costs - provisions,35.07,0.00,35.07
Regeneration and Local Services,Corporate Property and Land,021234,Catering - Locomotion,Supplies and Services,324117,Provisions E324,07-May-2019,000008550378393,WWW.ADELIEFOODS.CO.UK,5499,Catering costs - provisions,129.22,0.00,129.22
Regeneration and Local Services,Corporate Property and Land,021234,Catering - Locomotion,Supplies and Services,324117,Provisions E324,07-May-2019,000008550378395,WWW.ADELIEFOODS.CO.UK,5499,Catering costs - provisions,49.16,0.00,49.16
Regeneration and Local Services,Corporate Property and Land,021234,Catering - Locomotion,Supplies and Services,324117,Provisions E324,07-May-2019,000008550378403,WWW.ADELIEFOODS.CO.UK,5499,Catering costs - provisions,58.67,0.00,58.67
Regeneration and Local Services,Corporate Property and Land,010525,Catering - Green Lane,Supplies and Services,324117,Provisions E324,07-May-2019,000008550378425,JR HOLLAND FOODSERVICE,5499,Catering costs - provisions,5.40,0.00,5.40
Regeneration and Local Services,Corporate Property and Land,010525,Catering - Green Lane,Supplies and Services,324117,Provisions E324,07-May-2019,000008550378429,JR HOLLAND FOODSERVICE,5499,Catering costs - provisions,4.71,0.00,4.71
Regeneration and Local Services,Corporate Property and Land,010525,Catering - Green Lane,Supplies and Services,324117,Provisions E324,07-May-2019,000008550378433,JR HOLLAND FOODSERVICE,5499,Catering costs - provisions,26.03,0.00,26.03
Regeneration and Local Services,Corporate Property and Land,010525,Catering - Green Lane,Supplies and Services,324117,Provisions E324,07-May-2019,000008550378437,WWW.ADELIEFOODS.CO.UK,5499,Catering costs - provisions,38.06,0.00,38.06
Regeneration and Local Services,Corporate Property and Land,010525,Catering - Green Lane,Supplies and Services,324117,Provisions E324,07-May-2019,000008550378441,WWW.ADELIEFOODS.CO.UK,5499,Catering costs - provisions,92.72,0.00,92.72
Children and Young Peoples Services,Head of Childrens Social Care,085352,Tow Law CU,Supplies and Services,328041,Clothing uniforms and laundry E328,07-May-2019,000008550378451,ARGOS RETAIL GROUP,5310,Clothing uniforms and laundry,189.00,0.00,189.00
Children and Young Peoples Services,Head of Childrens Social Care,085551,Short Break Services-Park Hse Sher,Supplies and Services,324117,Provisions E324,07-May-2019,000008550378473,ALDI 59 774,5411,Catering costs - provisions,49.34,0.00,49.34
Regeneration and Local Services,Development and Housing,030771,Durham Advance Flexible Fund,Supplies and Services,324117,Provisions E324,07-May-2019,000008550378537,ASDA STORES LTD,5411,Catering costs - provisions,2.40,0.00,2.40
Regeneration and Local Services,Development and Housing,030771,Durham Advance Flexible Fund,Supplies and Services,324117,Provisions E324,07-May-2019,000008550378543,ASDA STORES LTD,5411,Catering costs - provisions,2.40,0.00,2.40
Children and Young Peoples Services,Head of Childrens Social Care,085333,Coxhoe Satelite Home,Supplies and Services,324117,Provisions E324,07-May-2019,000008550378553,ALDI 59 774,5411,Catering costs - provisions,3.27,0.00,3.27
Regeneration and Local Services,Corporate Property and Land,030691,Catering - Durham Dales Centre,Supplies and Services,324117,Provisions E324,07-May-2019,000008550378605,JR HOLLAND FOODSERVICE,5499,Catering costs - provisions,148.17,0.00,148.17
Regeneration and Local Services,Corporate Property and Land,030691,Catering - Durham Dales Centre,Supplies and Services,324117,Provisions E324,07-May-2019,000008550378613,JR HOLLAND FOODSERVICE,5499,Catering costs - provisions,-11.04,0.00,-11.04
Adult and Health Services,Head of Adults,055643,Hawthorn House LD Respite Unit,Supplies and Services,324117,Provisions E324,07-May-2019,000008550378669,JR HOLLAND FOODSERVICE,5499,Catering costs - provisions,26.51,0.00,26.51
Adult and Health Services,Head of Adults,055643,Hawthorn House LD Respite Unit,Supplies and Services,324117,Provisions E324,07-May-2019,000008550378677,JR HOLLAND FOODSERVICE,5499,Catering costs - provisions,11.67,0.00,11.67
Adult and Health Services,Head of Adults,055643,Hawthorn House LD Respite Unit,Supplies and Services,324117,Provisions E324,07-May-2019,000008550378679,JR HOLLAND FOODSERVICE,5499,Catering costs - provisions,17.38,0.00,17.38
Adult and Health Services,Head of Adults,055643,Hawthorn House LD Respite Unit,Supplies and Services,324117,Provisions E324,07-May-2019,000008550378683,JR HOLLAND FOODSERVICE,5499,Catering costs - provisions,4.71,0.00,4.71
Regeneration and Local Services,Environmental Services,031222,North Pennines Allen Valleys Landscape Partnership,Supplies and Services,348037,Subsistence E348,07-May-2019,000008550378693,THE HEMMEL CAFE,5812,Subsistence,19.75,0.00,19.75
Children and Young Peoples Services,Head of Education and Skills,070264,EDC Premises,Supplies and Services,324117,Provisions E324,07-May-2019,000008550378727,ASDA STORES,5411,Catering costs - provisions,3.78,0.63,3.15
Children and Young Peoples Services,Head of Education and Skills,070264,EDC Premises,Supplies and Services,324117,Provisions E324,07-May-2019,000008550378727 - 1,ASDA STORES,5411,Catering costs - provisions,6.78,,6.78
Regeneration and Local Services,Environmental Services,010301,C&G - North Grounds Maintenance,Supplies and Services,304221,Equipment and Materials,07-May-2019,000008550378757,ARCO LTD,5085,Direct materials,92.61,15.44,77.17
Resources BK0010,Digital and Customer Services,070205,School Services - Health and Safety Services,Supplies and Services,304639,Equipment and Materials,07-May-2019,000008550378765,WWW.TOOLSTATION.COM,5251,Technicians-supplies,14.82,2.47,12.35
Resources BK0010,Digital and Customer Services,065335,School Services - Implementations,Supplies and Services,304639,Equipment and Materials,07-May-2019,000008550378771,REPLACEBASE,5732,Technicians-supplies,25.40,4.23,21.17
Children and Young Peoples Services,Head of Early Help Inclusion & Vulnerable Children.,085957,Secure Management,Supplies and Services,384999,Miscellaneous Expenses,07-May-2019,000008550378781,GLOBAL FOODSERVICE EQU,5046,Other expenses,155.98,26.00,129.98
Resources BK0010,Digital and Customer Services,065487,ICT Telephony Recharges,Supplies and Services,304403,Equipment and Materials,07-May-2019,000008550378797,AMZNMKTPLACE AMAZON.CO,5999,Other consumables,11.85,0.00,11.85
Resources BK0010,Digital and Customer Services,065487,ICT Telephony Recharges,Supplies and Services,304403,Equipment and Materials,07-May-2019,000008550378805,AMZNMKTPLACE AMAZON.CO,5999,Other consumables,11.85,0.00,11.85
Resources BK0010,Digital and Customer Services,065487,ICT Telephony Recharges,Supplies and Services,304403,Equipment and Materials,07-May-2019,000008550378819,AMZNMKTPLACE AMAZON.CO,5999,Other consumables,11.85,0.00,11.85
Resources BK0010,Digital and Customer Services,065487,ICT Telephony Recharges,Supplies and Services,304403,Equipment and Materials,07-May-2019,000008550378825,AMZNMKTPLACE AMAZON.CO,5999,Other consumables,11.85,0.00,11.85
Resources BK0010,Digital and Customer Services,065487,ICT Telephony Recharges,Supplies and Services,304403,Equipment and Materials,07-May-2019,000008550378829,AMZNMKTPLACE AMAZON.CO,5999,Other consumables,11.85,0.00,11.85
Resources BK0010,Digital and Customer Services,065487,ICT Telephony Recharges,Supplies and Services,304403,Equipment and Materials,07-May-2019,000008550378835,AMZNMKTPLACE AMAZON.CO,5999,Other consumables,11.85,0.00,11.85
Transformation and Partnerships,Business Support,052986,CYPS - Locality and Operational Support,Supplies and Services,304259,Equipment and Materials,07-May-2019,000008550378839,IPS LIVERPOOL CONTACT,9399,Equipment-purchase and rental,9.50,0.00,9.50
Regeneration and Local Services,Environmental Services,011060,C&G - Hardwick Park Catering,Supplies and Services,304083,Equipment and Materials,07-May-2019,000008550378879,Amazon.co.uk MN9N68TK4,5969,Catering equipment,104.12,17.35,86.77
Regeneration and Local Services,Corporate Property and Land,021324,Catering - Meadowfield,Supplies and Services,324117,Provisions E324,07-May-2019,000008550378885,WWW.ADELIEFOODS.CO.UK,5499,Catering costs - provisions,52.10,0.00,52.10
Children and Young Peoples Services,Head of Childrens Social Care,085332,Middlestone Moor CU,Supplies and Services,304639,Equipment and Materials,07-May-2019,000008550379043,Amazon.co.uk MN2PZ2T44,5969,Technicians-supplies,13.31,0.00,13.31
Regeneration and Local Services,Environmental Services,031200,North Pennines Core,Supplies and Services,304403,Equipment and Materials,07-May-2019,000008550379055,W E & J ROWLE,5947,Other consumables,4.99,0.00,4.99
Regeneration and Local Services,Culture Sport and Tourism,054233,Bishop Auckland Town Hall Library,Supplies and Services,324117,Provisions E324,07-May-2019,000008550379069,COOPLANDS BAKERY,5462,Catering costs - provisions,4.95,0.00,4.95
Regeneration and Local Services,Culture Sport and Tourism,054233,Bishop Auckland Town Hall Library,Employees,040149,Recruitment Instruction and Training,07-May-2019,000008550379075,WWW.FILMBANK.CO.UK,7829,Training-all costs,99.60,0.00,99.60
Regeneration and Local Services,Culture Sport and Tourism,054812,Gala Theatre - Catering etc,Supplies and Services,324117,Provisions E324,07-May-2019,000008550379133,TESCO STORES 6029,5411,Catering costs - provisions,5.30,0.00,5.30
Adult and Health Services,Head of Adults,055807,Newton Aycliffe Pathways,Supplies and Services,324117,Provisions E324,07-May-2019,000008550379167,TESCO STORES 2916,5411,Catering costs - provisions,1.50,0.00,1.50
Regeneration and Local Services,Corporate Property and Land,021235,Catering - Wharton Park,Supplies and Services,324117,Provisions E324,07-May-2019,000008550379225,JR HOLLAND FOODSERVICE,5499,Catering costs - provisions,38.59,0.00,38.59
Regeneration and Local Services,Environmental Services,031217,North Pennines - Cold Blooded & Spineless,Supplies and Services,304403,Equipment and Materials,07-May-2019,000008550379245,GARRIGILL VILLAGE HALL,5734,Other consumables,50.00,0.00,50.00
Children and Young Peoples Services,Head of Childrens Social Care,085363,LAC & Permanence Team 3,Supplies and Services,304259,Equipment and Materials,07-May-2019,000008550379249,DARLINGTON BC INTERNET,9399,Equipment-purchase and rental,11.00,0.00,11.00
Children and Young Peoples Services,Head of Childrens Social Care,085334,West Rainton Satelite Home,Supplies and Services,324117,Provisions E324,07-May-2019,000008550379255,TESCO STORES 2371,5411,Catering costs - provisions,22.00,0.00,22.00
Children and Young Peoples Services,Head of Childrens Social Care,085334,West Rainton Satelite Home,Supplies and Services,324117,Provisions E324,07-May-2019,000008550379261,TESCO STORES 2371,5411,Catering costs - provisions,16.00,0.00,16.00
Children and Young Peoples Services,Head of Childrens Social Care,085334,West Rainton Satelite Home,Supplies and Services,328041,Clothing uniforms and laundry E328,07-May-2019,000008550379267,B & M RETAIL,5310,Clothing uniforms and laundry,3.99,0.00,3.99
Children and Young Peoples Services,Head of Early Help Inclusion & Vulnerable Children.,085810,CDYOS - Interventions Team,Supplies and Services,348037,Subsistence E348,07-May-2019,000008550379363,MCDONALDS,5812,Subsistence,13.93,2.32,11.61
Children and Young Peoples Services,Head of Education and Skills,070264,EDC Premises,Supplies and Services,324117,Provisions E324,07-May-2019,000008555745083,BATLEYS PERTH,5300,Catering costs - provisions,58.31,0.00,58.31
Regeneration and Local Services,Development and Housing,031500,Housing Solutions - Core Team,Supplies and Services,364320,Grants to Voluntary Organisations,07-May-2019,000008555745125,PREMIER INN,3811,Accommodation assistance,80.00,0.00,80.00
Regeneration and Local Services,Corporate Property and Land,021242,Catering - County Hall,Supplies and Services,324117,Provisions E324,07-May-2019,000008555745313,BATLEYS PERTH,5300,Catering costs - provisions,142.92,23.82,119.10
Regeneration and Local Services,Corporate Property and Land,021242,Catering - County Hall,Supplies and Services,324117,Provisions E324,07-May-2019,000008555745313 - 1,BATLEYS PERTH,5300,Catering costs - provisions,190.82,,190.82
Regeneration and Local Services,Development and Housing,031576,B& B - Temp Accom,Employees,040149,Recruitment Instruction and Training,07-May-2019,000008555745473,PREMIER INN,3811,Training-all costs,89.50,14.92,74.58
Regeneration and Local Services,Development and Housing,031576,B& B - Temp Accom,Employees,040149,Recruitment Instruction and Training,07-May-2019,000008555745479,PREMIER INN,3811,Training-all costs,194.00,32.33,161.67
Regeneration and Local Services,Environmental Services,011060,C&G - Hardwick Park Catering,Supplies and Services,324117,Provisions E324,07-May-2019,000008555745669,BATLEYS PERTH,5300,Catering costs - provisions,13.50,2.25,11.25
Regeneration and Local Services,Environmental Services,011060,C&G - Hardwick Park Catering,Supplies and Services,324117,Provisions E324,07-May-2019,000008555745669 - 1,BATLEYS PERTH,5300,Catering costs - provisions,77.04,,77.04
Regeneration and Local Services,Corporate Property and Land,021234,Catering - Locomotion,Supplies and Services,324117,Provisions E324,07-May-2019,000008555745703,BATLEYS PERTH,5300,Catering costs - provisions,255.42,42.57,212.85
Regeneration and Local Services,Corporate Property and Land,021234,Catering - Locomotion,Supplies and Services,324117,Provisions E324,07-May-2019,000008555745703 - 1,BATLEYS PERTH,5300,Catering costs - provisions,65.23,,65.23
Regeneration and Local Services,Corporate Property and Land,010525,Catering - Green Lane,Supplies and Services,324117,Provisions E324,07-May-2019,000008555745729,BATLEYS PERTH,5300,Catering costs - provisions,114.72,19.12,95.60
Regeneration and Local Services,Corporate Property and Land,010525,Catering - Green Lane,Supplies and Services,324117,Provisions E324,07-May-2019,000008555745729 - 1,BATLEYS PERTH,5300,Catering costs - provisions,20.00,,20.00
Regeneration and Local Services,Corporate Property and Land,010525,Catering - Green Lane,Supplies and Services,324117,Provisions E324,07-May-2019,000008555745739,BATLEYS PERTH,5300,Catering costs - provisions,32.28,0.00,32.28
Regeneration and Local Services,Corporate Property and Land,010525,Catering - Green Lane,Supplies and Services,324117,Provisions E324,07-May-2019,000008555745745,BATLEYS PERTH,5300,Catering costs - provisions,20.93,0.00,20.93
Regeneration and Local Services,Environmental Services,031233,North Pennines - Pennine Peatlife,Transport,235057,Public Transport,07-May-2019,000008555745991,ROYAL DUTCH AIRLINES (KLM),3010,Staff travelling,366.69,0.00,366.69
Children and Young Peoples Services,Head of Childrens Social Care,085501,Child Care Cases Legal Expenses,Supplies and Services,384199,Miscellaneous Expenses,07-May-2019,000008555746091,HARTLEPOOL BC,9399,Other hired and contracted services,11.00,0.00,11.00
Regeneration and Local Services,Corporate Property and Land,021324,Catering - Meadowfield,Supplies and Services,324117,Provisions E324,07-May-2019,000008555746163,BATLEYS PERTH,5300,Catering costs - provisions,52.68,8.78,43.90
Regeneration and Local Services,Corporate Property and Land,021324,Catering - Meadowfield,Supplies and Services,324117,Provisions E324,07-May-2019,000008555746163 - 1,BATLEYS PERTH,5300,Catering costs - provisions,71.80,,71.80
Regeneration and Local Services,Development and Housing,030554,International Relations 030554,Supplies and Services,384926,Miscellaneous Expenses,07-May-2019,000008555746329,BRITTANY FERRIES,4111,International visits,"1,350.00",0.00,1350.00
Children and Young Peoples Services,Head of Education and Skills,071801,Selby Cottage Childcare Centre,Supplies and Services,304999,Equipment and Materials,08-May-2019,000008555745053,Amazon Prime MN1TB0AN4,5968,Misc equipment tools and materials,7.99,0.00,7.99
Children and Young Peoples Services,Head of Education and Skills,071801,Selby Cottage Childcare Centre,Supplies and Services,324117,Provisions E324,08-May-2019,000008555745057,TESCO STORES 2278,5411,Catering costs - provisions,24.69,0.00,24.69
Children and Young Peoples Services,Head of Education and Skills,054640,Durham Learning Resources 054640,Supplies and Services,304245,Equipment and Materials,08-May-2019,000008555745059,AMZNMktplace,5999,Materials,74.85,0.00,74.85
Children and Young Peoples Services,Head of Education and Skills,054640,Durham Learning Resources 054640,Supplies and Services,304245,Equipment and Materials,08-May-2019,000008555745061,AMZNMKTPLACE AMAZON.CO,5999,Materials,20.38,3.40,16.98
Children and Young Peoples Services,Head of Education and Skills,054640,Durham Learning Resources 054640,Supplies and Services,304245,Equipment and Materials,08-May-2019,000008555745065,AMZNMKTPLACE AMAZON.CO,5999,Materials,62.40,0.00,62.40
Children and Young Peoples Services,Head of Education and Skills,054640,Durham Learning Resources 054640,Supplies and Services,304245,Equipment and Materials,08-May-2019,000008555745067,WWW.STANFORDS.CO.UK,5942,Materials,9.99,1.67,8.32
Children and Young Peoples Services,Head of Education and Skills,071733,Shildon Childcare,Charges,720130,Fees and Charges,08-May-2019,000008555745073,HMCOURT-SERVICES.G,9222,Fees-legal,110.00,0.00,110.00
Resources BK0010,Digital and Customer Services,065303,Design & Print - Design,Supplies and Services,342053,Computers and Communications,08-May-2019,000008555745075,ISSUU,5045,Computer software,323.33,0.00,323.33
Transformation and Partnerships,Business Support,065461,Business Support 065461,Supplies and Services,312011,Newspapers books and periodicals E312,08-May-2019,000008555745079,AMZN MKTP UK AMAZON.CO,5942,Books-school library,-3.11,0.00,-3.11
Children and Young Peoples Services,Head of Education and Skills,075021,Youth Employment Initiative,Supplies and Services,384199,Miscellaneous Expenses,08-May-2019,000008555745129,ITCAREERSWITCH.CO.UK,7399,Other hired and contracted services,350.00,58.33,291.67
Regeneration and Local Services,Environmental Services,031233,North Pennines - Pennine Peatlife,Supplies and Services,340001,Postages E340,08-May-2019,000008555745149,THE POST OFFICE,9402,Postages,16.62,2.77,13.85
Adult and Health Services,Head of Adults,055302,Durham Pathways,Supplies and Services,312011,Newspapers books and periodicals E312,08-May-2019,000008555745155,AMZN Mktp UK MN4HL0TY4,5942,Books-school library,11.00,1.83,9.17
Children and Young Peoples Services,Head of Childrens Social Care,085332,Middlestone Moor CU,Supplies and Services,324117,Provisions E324,08-May-2019,000008555745187,ASDA SUPERSTORE 4987,5411,Catering costs - provisions,32.81,0.00,32.81
Children and Young Peoples Services,Head of Childrens Social Care,085332,Middlestone Moor CU,Supplies and Services,324117,Provisions E324,08-May-2019,000008555745193,TESCO STORES 2371,5411,Catering costs - provisions,101.73,0.00,101.73
Children and Young Peoples Services,Head of Early Help Inclusion & Vulnerable Children.,088105,BA/BC/Crook 0-19 Community Family Hub,Supplies and Services,332047,Printing Stationery and Gen Off Exps,08-May-2019,000008555745295,Amazon.co.uk MN3XR2AM4,5969,Stationery,126.66,21.11,105.55
Children and Young Peoples Services,Head of Early Help Inclusion & Vulnerable Children.,088105,BA/BC/Crook 0-19 Community Family Hub,Supplies and Services,332047,Printing Stationery and Gen Off Exps,08-May-2019,000008555745295 - 1,Amazon.co.uk MN3XR2AM4,5969,Stationery,0.03,,0.03
Children and Young Peoples Services,Head of Early Help Inclusion & Vulnerable Children.,071670,Willington Childrens Centre,Supplies and Services,324117,Provisions E324,08-May-2019,000008555745301,BESTWAY WHOLESALE,5451,Catering costs - provisions,75.00,12.50,62.50
Children and Young Peoples Services,Head of Early Help Inclusion & Vulnerable Children.,088114,Team Around the School,Supplies and Services,340001,Postages E340,08-May-2019,000008555745305,DHL EXPRESS(UK)LTD,4215,Postages,54.62,0.00,54.62
Regeneration and Local Services,Corporate Property and Land,021242,Catering - County Hall,Premises,145009,Cleaning and Domestic Supplies,08-May-2019,000008555745321,ALLIANCE DISPOSABLES L,2842,Other cleaning and domestic costs,55.20,9.20,46.00
Regeneration and Local Services,Corporate Property and Land,021242,Catering - County Hall,Supplies and Services,324117,Provisions E324,08-May-2019,000008555745325,JR HOLLAND FOODSERVICE,5499,Catering costs - provisions,341.04,0.00,341.04
Regeneration and Local Services,Corporate Property and Land,021242,Catering - County Hall,Supplies and Services,324117,Provisions E324,08-May-2019,000008555745331,JR HOLLAND FOODSERVICE,5499,Catering costs - provisions,31.51,0.00,31.51
Regeneration and Local Services,Environmental Services,010367,C&G - South Grounds Maintenance,Supplies and Services,312011,Newspapers books and periodicals E312,08-May-2019,000008555745351,Snowballs,5251,Books-school library,20.59,3.43,17.16
Regeneration and Local Services,Culture Sport and Tourism,054812,Gala Theatre - Catering etc,Premises,145009,Cleaning and Domestic Supplies,08-May-2019,000008555745367,ALLIANCE DISPOSABLES L,2842,Other cleaning and domestic costs,124.64,20.77,103.87
Regeneration and Local Services,Culture Sport and Tourism,054812,Gala Theatre - Catering etc,Supplies and Services,324117,Provisions E324,08-May-2019,000008555745375,JR HOLLAND FOODSERVICE,5499,Catering costs - provisions,38.91,0.00,38.91
Regeneration and Local Services,Corporate Property and Land,021242,Catering - County Hall,Supplies and Services,312011,Newspapers books and periodicals E312,08-May-2019,000008555745411,HOME BARGAINS,5251,Books-school library,5.94,0.00,5.94
Children and Young Peoples Services,Head of Education and Skills,071732,Dean Bank Childcare,Supplies and Services,324117,Provisions E324,08-May-2019,000008555745513,SAINSBURYS (2303),5411,Catering costs - provisions,34.97,0.00,34.97
Children and Young Peoples Services,Head of Education and Skills,071732,Dean Bank Childcare,Supplies and Services,324117,Provisions E324,08-May-2019,000008555745519,ASDA GROCERIES ONLINE,5411,Catering costs - provisions,43.78,0.00,43.78
Children and Young Peoples Services,Head of Childrens Social Care,085334,West Rainton Satelite Home,Supplies and Services,324117,Provisions E324,08-May-2019,000008555745535,SPAR,5411,Catering costs - provisions,8.05,0.00,8.05
Children and Young Peoples Services,Head of Childrens Social Care,085334,West Rainton Satelite Home,Supplies and Services,324117,Provisions E324,08-May-2019,000008555745539,LIDL GB HOUGHTON LE S,5411,Catering costs - provisions,10.80,1.80,9.00
Children and Young Peoples Services,Head of Childrens Social Care,085334,West Rainton Satelite Home,Supplies and Services,324117,Provisions E324,08-May-2019,000008555745539 - 1,LIDL GB HOUGHTON LE S,5411,Catering costs - provisions,46.15,,46.15
Children and Young Peoples Services,Head of Childrens Social Care,085334,West Rainton Satelite Home,Supplies and Services,304259,Equipment and Materials,08-May-2019,000008555745545,SPORTSDIRECT 264,5941,Equipment-purchase and rental,8.49,0.00,8.49
Regeneration and Local Services,Environmental Services,010301,C&G - North Grounds Maintenance,Supplies and Services,304403,Equipment and Materials,08-May-2019,000008555745583,BESCOL,5231,Other consumables,35.87,5.98,29.89
Regeneration and Local Services,Development and Housing,030771,Durham Advance Flexible Fund,Supplies and Services,324117,Provisions E324,08-May-2019,000008555745591,COSTA COFFEE 43038640,5814,Catering costs - provisions,4.60,0.00,4.60
Regeneration and Local Services,Development and Housing,030771,Durham Advance Flexible Fund,Supplies and Services,324117,Provisions E324,08-May-2019,000008555745597,CROWS NEST,5813,Catering costs - provisions,5.30,0.00,5.30
Regeneration and Local Services,Development and Housing,030771,Durham Advance Flexible Fund,Transport,235057,Public Transport,08-May-2019,000008555745603,WALKERGATE CAR PAR,7523,Staff travelling,1.80,0.00,1.80
Children and Young Peoples Services,Head of Early Help Inclusion & Vulnerable Children.,085955,Auckland,Supplies and Services,328041,Clothing uniforms and laundry E328,08-May-2019,000008555745619,BOOHOO.COM,5691,Clothing uniforms and laundry,18.00,0.00,18.00
Children and Young Peoples Services,Head of Early Help Inclusion & Vulnerable Children.,085962,Aycliffe Secure - Durham,Supplies and Services,324117,Provisions E324,08-May-2019,000008555745623,TESCO STORES 6329,5411,Catering costs - provisions,92.53,0.00,92.53
Children and Young Peoples Services,Head of Early Help Inclusion & Vulnerable Children.,085954,Walworth,Supplies and Services,328041,Clothing uniforms and laundry E328,08-May-2019,000008555745629,WWW.NIKESTORE.COM,5691,Clothing uniforms and laundry,69.47,0.00,69.47
Children and Young Peoples Services,Head of Early Help Inclusion & Vulnerable Children.,085955,Auckland,Supplies and Services,328041,Clothing uniforms and laundry E328,08-May-2019,000008555745635,JD SPORTS INTERNET,5941,Clothing uniforms and laundry,120.00,0.00,120.00
Regeneration and Local Services,Culture Sport and Tourism,054813,Gala Theatre - Technical,Supplies and Services,304403,Equipment and Materials,08-May-2019,000008555745651,AMZNMktplace,5999,Other consumables,29.98,0.00,29.98
Regeneration and Local Services,Environmental Services,031201,Earthworks,Supplies and Services,348037,Subsistence E348,08-May-2019,000008555745657,PEET`S,5812,Subsistence,61.55,0.00,61.55
Regeneration and Local Services,Environmental Services,031201,Earthworks,Supplies and Services,352001,Conference Expenses,08-May-2019,000008555745663,DAVAR,7011,Conferencesseminars fees etc,180.00,0.00,180.00
Regeneration and Local Services,Environmental Services,011060,C&G - Hardwick Park Catering,Supplies and Services,324117,Provisions E324,08-May-2019,000008555745675,JR HOLLAND FOODSERVICE,5499,Catering costs - provisions,58.71,0.00,58.71
Regeneration and Local Services,Environmental Services,011060,C&G - Hardwick Park Catering,Supplies and Services,324117,Provisions E324,08-May-2019,000008555745681,JR HOLLAND FOODSERVICE,5499,Catering costs - provisions,-15.50,0.00,-15.50
Regeneration and Local Services,Development and Housing,030755,Durham Employment & Skills - Other Training,Employees,040149,Recruitment Instruction and Training,08-May-2019,000008555745689,WWW.CSKILLS.ORG,8249,Training-all costs,36.00,6.00,30.00
Regeneration and Local Services,Development and Housing,030755,Durham Employment & Skills - Other Training,Employees,040149,Recruitment Instruction and Training,08-May-2019,000008555745697,WWW.CSKILLS.ORG,8249,Training-all costs,36.00,6.00,30.00
Regeneration and Local Services,Corporate Property and Land,010525,Catering - Green Lane,Premises,145009,Cleaning and Domestic Supplies,08-May-2019,000008555745749,ALLIANCE DISPOSABLES L,2842,Other cleaning and domestic costs,22.63,3.77,18.86
Regeneration and Local Services,Corporate Property and Land,010525,Catering - Green Lane,Supplies and Services,324117,Provisions E324,08-May-2019,000008555745755,JR HOLLAND FOODSERVICE,5499,Catering costs - provisions,50.77,0.00,50.77
Regeneration and Local Services,Corporate Property and Land,010525,Catering - Green Lane,Supplies and Services,324117,Provisions E324,08-May-2019,000008555745761,JR HOLLAND FOODSERVICE,5499,Catering costs - provisions,4.55,0.00,4.55
Children and Young Peoples Services,Head of Childrens Social Care,085331,New Lea Childrens Home,Supplies and Services,304259,Equipment and Materials,08-May-2019,000008555745839,OFSTED INTERNET,9399,Equipment-purchase and rental,910.00,0.00,910.00
Children and Young Peoples Services,Head of Childrens Social Care,085352,Tow Law CU,Supplies and Services,324117,Provisions E324,08-May-2019,000008555745959,ASDA SUPERSTORE 4987,5411,Catering costs - provisions,86.67,0.00,86.67
Children and Young Peoples Services,Head of Childrens Social Care,085352,Tow Law CU,Supplies and Services,324117,Provisions E324,08-May-2019,000008555745963,ASDA SUPERSTORE 4987,5411,Catering costs - provisions,15.50,0.00,15.50
Children and Young Peoples Services,Head of Childrens Social Care,085352,Tow Law CU,Supplies and Services,348037,Subsistence E348,08-May-2019,000008555745967,MCDONALDS,5812,Subsistence,15.77,0.00,15.77
Regeneration and Local Services,Corporate Property and Land,030691,Catering - Durham Dales Centre,Premises,145009,Cleaning and Domestic Supplies,08-May-2019,000008555745973,ALLIANCE DISPOSABLES L,2842,Other cleaning and domestic costs,35.58,5.93,29.65
Regeneration and Local Services,Corporate Property and Land,030691,Catering - Durham Dales Centre,Premises,145009,Cleaning and Domestic Supplies,08-May-2019,000008555745973 - 1,ALLIANCE DISPOSABLES L,2842,Other cleaning and domestic costs,25.43,,25.43
Regeneration and Local Services,Culture Sport and Tourism,054500,Deerbolt Borstal,Supplies and Services,332047,Printing Stationery and Gen Off Exps,08-May-2019,000008555745997,AMZNMktplace,5999,Stationery,31.35,0.00,31.35
Regeneration and Local Services,Environmental Services,010301,C&G - North Grounds Maintenance,Third Party Payments 4THIRD,430100,Rendered by Private Contractors,08-May-2019,000008555746027,JOHN WARREN (ANIMAL BY,7399,Payments to sub-contractors,12.00,0.00,12.00
Children and Young Peoples Services,Head of Childrens Social Care,085342,9 Cedar Drive Aycliffe,Supplies and Services,304403,Equipment and Materials,08-May-2019,000008555746041,UPEX ELECTRICAL DISTRI,5065,Other consumables,9.55,1.59,7.96
Children and Young Peoples Services,Head of Childrens Social Care,085342,9 Cedar Drive Aycliffe,Supplies and Services,324117,Provisions E324,08-May-2019,000008555746047,TESCO STORES 2916,5411,Catering costs - provisions,6.70,0.00,6.70
Regeneration and Local Services,Development and Housing,030771,Durham Advance Flexible Fund,Transport,235057,Public Transport,08-May-2019,000008555746057,GO NORTH EAST LIMITED,4131,Staff travelling,6.70,0.00,6.70
Children and Young Peoples Services,Head of Early Help Inclusion & Vulnerable Children.,085952,Secure Education,Supplies and Services,304403,Equipment and Materials,08-May-2019,000008555746073,AMZNMktplace,5999,Other consumables,54.95,9.16,45.79
Children and Young Peoples Services,Head of Early Help Inclusion & Vulnerable Children.,085957,Secure Management,Supplies and Services,324117,Provisions E324,08-May-2019,000008555746077,MARKS&SPENCER PLC,5411,Catering costs - provisions,39.50,0.00,39.50
Children and Young Peoples Services,Head of Early Help Inclusion & Vulnerable Children.,085956,Lumley,Supplies and Services,338057,Services,08-May-2019,000008555746081,DOMICILARY,8043,Medical fees 338057,45.00,7.50,37.50
Children and Young Peoples Services,Head of Early Help Inclusion & Vulnerable Children.,085955,Auckland,Supplies and Services,384999,Miscellaneous Expenses,08-May-2019,000008555746085,WWW.IWANTWALLPAPER,5231,Other expenses,33.47,0.00,33.47
Resources BK0010,Digital and Customer Services,065487,ICT Telephony Recharges,Supplies and Services,304403,Equipment and Materials,08-May-2019,000008555746095,AMZNMKTPLACE AMAZON.CO,5999,Other consumables,11.85,0.00,11.85
Regeneration and Local Services,Business Durham CL0850,030690,Durham Dales Centre - Tourist Information Centre,Supplies and Services,304221,Equipment and Materials,08-May-2019,000008555746101,A AND K HOSIERY LTD,5099,Direct materials,"1,239.24",206.54,1032.70
Regeneration and Local Services,Business Durham CL0850,030690,Durham Dales Centre - Tourist Information Centre,Supplies and Services,328041,Clothing uniforms and laundry E328,08-May-2019,000008555746107,ZELLY UK TRADING LTD,5651,Clothing uniforms and laundry,624.18,104.03,520.15
Regeneration and Local Services,Culture Sport and Tourism,054235,Bishop Auckland Town Hall Cafe,Supplies and Services,324117,Provisions E324,08-May-2019,000008555746157,JR HOLLAND FOODSERVICE,5499,Catering costs - provisions,32.43,0.00,32.43
Children and Young Peoples Services,Head of Childrens Social Care,085333,Coxhoe Satelite Home,Supplies and Services,324117,Provisions E324,08-May-2019,000008555746175,TESCO STORES 2371,5411,Catering costs - provisions,19.60,0.00,19.60
Children and Young Peoples Services,Head of Childrens Social Care,085333,Coxhoe Satelite Home,Supplies and Services,304259,Equipment and Materials,08-May-2019,000008555746179,RECYKE Y`BIKES COMMUNI,5940,Equipment-purchase and rental,20.00,0.00,20.00
Regeneration and Local Services,Environmental Services,010301,C&G - North Grounds Maintenance,Supplies and Services,304999,Equipment and Materials,08-May-2019,000008555746187,GUSTHARTS CHAINSAW CTR,7699,Misc equipment tools and materials,202.98,33.83,169.15
Children and Young Peoples Services,Head of Childrens Social Care,085333,Coxhoe Satelite Home,Supplies and Services,324117,Provisions E324,08-May-2019,000008555746219,TESCO STORES 2916,5411,Catering costs - provisions,69.64,0.00,69.64
Regeneration and Local Services,Development and Housing,030552,ATLAS Regional Network,Supplies and Services,324117,Provisions E324,08-May-2019,000008555746247,SAINSBURYS 0776,5411,Catering costs - provisions,12.35,0.00,12.35
Children and Young Peoples Services,Head of Childrens Social Care,085332,Middlestone Moor CU,Supplies and Services,324093,Provisions E324,08-May-2019,000008555746259,Schoolgatewa PARKSIDE,8220,Meals-School Meals Service,50.00,0.00,50.00
Transformation and Partnerships,Business Support,069010,Administration 069010,Supplies and Services,304403,Equipment and Materials,08-May-2019,000008555746265,PAYPAL Envato Market,5999,Other consumables,40.53,0.00,40.53
Transformation and Partnerships,Business Support,069010,Administration 069010,Third Party Payments 4THIRD,430100,Rendered by Private Contractors,08-May-2019,000008555746267,WWW.PLANNINGPORTAL.CO.,7399,Payments to sub-contractors,136.00,0.00,136.00
Regeneration and Local Services,Corporate Property and Land,021235,Catering - Wharton Park,Supplies and Services,324117,Provisions E324,08-May-2019,000008555746281,JR HOLLAND FOODSERVICE,5499,Catering costs - provisions,39.11,0.00,39.11
Children and Young Peoples Services,Head of Childrens Social Care,085363,LAC & Permanence Team 3,Supplies and Services,304259,Equipment and Materials,08-May-2019,000008555746305,BRADFORD MET COUNCIL,9399,Equipment-purchase and rental,11.00,0.00,11.00
Children and Young Peoples Services,Head of Education and Skills,054640,Durham Learning Resources 054640,Supplies and Services,304245,Equipment and Materials,08-May-2019,000008561294467,AMZNMKTPLACE AMAZON.CO,5999,Materials,20.38,3.40,16.98
Children and Young Peoples Services,Head of Education and Skills,054640,Durham Learning Resources 054640,Supplies and Services,304245,Equipment and Materials,08-May-2019,000008561294477,AMZN MKTP UK MN0UI6E54,5942,Materials,38.60,6.43,32.17
Children and Young Peoples Services,Head of Childrens Social Care,085613,Families First Durham Central,Employees,040149,Recruitment Instruction and Training,08-May-2019,000008561295511,PREMIER INN,3811,Training-all costs,144.00,0.00,144.00
Children and Young Peoples Services,Head of Childrens Social Care,085352,Tow Law CU,Supplies and Services,384999,Miscellaneous Expenses,08-May-2019,000008561295779,TICKETWEB T4,7922,Other expenses,16.98,0.00,16.98
Regeneration and Local Services,Development and Housing,031500,Housing Solutions - Core Team,Employees,040149,Recruitment Instruction and Training,08-May-2019,000008561296755,PREMIER INN,3811,Training-all costs,98.00,0.00,98.00
Children and Young Peoples Services,Head of Education and Skills,054640,Durham Learning Resources 054640,Supplies and Services,304245,Equipment and Materials,09-May-2019,000006325239490,AMZN MKTP UK MN0MV30D4,5942,Materials,44.49,7.42,37.07
Children and Young Peoples Services,Head of Education and Skills,054640,Durham Learning Resources 054640,Supplies and Services,304245,Equipment and Materials,09-May-2019,000006325239494,AMZN MKTP UK MN5IG5E84,5942,Materials,14.83,2.47,12.36
Regeneration and Local Services,Environmental Services,031239,North Pennines - Carbon Connect,Transport,235057,Public Transport,09-May-2019,000006325239604,ROYAL DUTCH AIRLINES (KLM),3010,Staff travelling,283.56,0.00,283.56
Regeneration and Local Services,Development and Housing,031576,B& B - Temp Accom,Supplies and Services,364320,Grants to Voluntary Organisations,09-May-2019,000006325240488,PREMIER INN,3811,Accommodation assistance,266.00,0.00,266.00
Regeneration and Local Services,Development and Housing,031576,B& B - Temp Accom,Supplies and Services,364320,Grants to Voluntary Organisations,09-May-2019,000006325240728,PREMIER INN,3811,Accommodation assistance,177.00,29.50,147.50
Regeneration and Local Services,Development and Housing,031576,B& B - Temp Accom,Supplies and Services,364320,Grants to Voluntary Organisations,09-May-2019,000006325240736,PREMIER INN,3811,Accommodation assistance,236.00,39.33,196.67
Regeneration and Local Services,Development and Housing,031576,B& B - Temp Accom,Supplies and Services,364320,Grants to Voluntary Organisations,09-May-2019,000006325240740,PREMIER INN,3811,Accommodation assistance,193.00,0.00,193.00
Regeneration and Local Services,Development and Housing,031576,B& B - Temp Accom,Supplies and Services,364320,Grants to Voluntary Organisations,09-May-2019,000006325240746,PREMIER INN,3811,Accommodation assistance,-193.00,0.00,-193.00
Resources BK0010,Digital and Customer Services,065335,School Services - Implementations,Supplies and Services,304639,Equipment and Materials,09-May-2019,000006325240848,ALIEXPRESS,5311,Technicians-supplies,7.64,0.00,7.64
Regeneration and Local Services,Development and Housing,030771,Durham Advance Flexible Fund,Supplies and Services,328041,Clothing uniforms and laundry E328,09-May-2019,000006325241394,MATALAN.CO.UK,5691,Clothing uniforms and laundry,62.00,0.00,62.00
Regeneration and Local Services,Corporate Property and Land,021242,Catering - County Hall,Supplies and Services,324117,Provisions E324,09-May-2019,000006332680814,BATLEYS PERTH,5300,Catering costs - provisions,307.68,51.28,256.40
Regeneration and Local Services,Corporate Property and Land,021242,Catering - County Hall,Supplies and Services,324117,Provisions E324,09-May-2019,000006332680814 - 1,BATLEYS PERTH,5300,Catering costs - provisions,165.59,,165.59
Regeneration and Local Services,Environmental Services,011060,C&G - Hardwick Park Catering,Supplies and Services,324117,Provisions E324,09-May-2019,000006332681760,BATLEYS PERTH,5300,Catering costs - provisions,63.66,10.61,53.05
Regeneration and Local Services,Environmental Services,011060,C&G - Hardwick Park Catering,Supplies and Services,324117,Provisions E324,09-May-2019,000006332681760 - 1,BATLEYS PERTH,5300,Catering costs - provisions,76.02,,76.02
Regeneration and Local Services,Environmental Services,011060,C&G - Hardwick Park Catering,Supplies and Services,324117,Provisions E324,09-May-2019,000006332681774,BATLEYS PERTH,5300,Catering costs - provisions,22.12,3.69,18.43
Resources BK0010,Digital and Customer Services,065303,Design & Print - Design,Supplies and Services,342053,Computers and Communications,09-May-2019,000008555745081,ISSUU,5045,Computer software,8.89,0.00,8.89
Children and Young Peoples Services,Head of Education and Skills,054640,Durham Learning Resources 054640,Supplies and Services,304245,Equipment and Materials,09-May-2019,000008561294457,AMZN Mktp UK MN7R76EI4,5942,Materials,37.40,0.00,37.40
Children and Young Peoples Services,Head of Education and Skills,054640,Durham Learning Resources 054640,Supplies and Services,304245,Equipment and Materials,09-May-2019,000008561294481,WWW.ARTSINHISTORY.COM,5734,Materials,18.85,0.00,18.85
Children and Young Peoples Services,Head of Education and Skills,054640,Durham Learning Resources 054640,Supplies and Services,304245,Equipment and Materials,09-May-2019,000008561294487,WWW.PUCKATOR.CO.UK,5947,Materials,133.04,22.17,110.87
Children and Young Peoples Services,Head of Education and Skills,054640,Durham Learning Resources 054640,Supplies and Services,304245,Equipment and Materials,09-May-2019,000008561294493,HTTP://WWW.THEVIKINGST,7296,Materials,67.17,11.20,55.97
Transformation and Partnerships,Partnerships & Community Engagement Div.,085001,Local Safeguarding Childrens Board,Supplies and Services,384199,Miscellaneous Expenses,09-May-2019,000008561294501,WWW.ICO.GOV.UK,9399,Other hired and contracted services,40.00,0.00,40.00
Adult and Health Services,Head of Adults,055302,Durham Pathways,Supplies and Services,304403,Equipment and Materials,09-May-2019,000008561294569,AMZNMktplace,5999,Other consumables,21.88,3.65,18.23
Adult and Health Services,Head of Adults,055302,Durham Pathways,Supplies and Services,308011,Furniture,09-May-2019,000008561294583,andrewjamesworldwide.c,5719,Furniture repair and replacement,39.99,0.00,39.99
Adult and Health Services,Head of Adults,055302,Durham Pathways,Supplies and Services,324117,Provisions E324,09-May-2019,000008561294593,ASDA SUPERSTORE,5411,Catering costs - provisions,2.18,0.00,2.18
Regeneration and Local Services,Environmental Services,010383,C&G - South Street Cleansing,Supplies and Services,304999,Equipment and Materials,09-May-2019,000008561294603,NEW ROW FARM NURSERIES,5193,Misc equipment tools and materials,25.00,4.17,20.83
Children and Young Peoples Services,Head of Childrens Social Care,085621,Families First Aycliffe,Supplies and Services,338045,Services,09-May-2019,000008561294637,DARLINGTON BC INTERNET,9399,Legal expenses 338045,11.00,0.00,11.00
Children and Young Peoples Services,Head of Childrens Social Care,085621,Families First Aycliffe,Supplies and Services,338045,Services,09-May-2019,000008561294645,DARLINGTON BC INTERNET,9399,Legal expenses 338045,11.00,0.00,11.00
Children and Young Peoples Services,Head of Childrens Social Care,085621,Families First Aycliffe,Supplies and Services,338045,Services,09-May-2019,000008561294653,DARLINGTON BC INTERNET,9399,Legal expenses 338045,11.00,0.00,11.00
Children and Young Peoples Services,Head of Childrens Social Care,085621,Families First Aycliffe,Supplies and Services,338045,Services,09-May-2019,000008561294661,Durham County CNCL,9399,Legal expenses 338045,22.00,0.00,22.00
Regeneration and Local Services,Business Durham CL0850,030699,Business Growth and Innovation General,Supplies and Services,304999,Equipment and Materials,09-May-2019,000008561294675,MAILCHIMP MONTHLY,5968,Misc equipment tools and materials,61.68,0.00,61.68
Regeneration and Local Services,Business Durham CL0850,030699,Business Growth and Innovation General,Supplies and Services,342033,Computers and Communications,09-May-2019,000008561294679,SLICKPLAN.COM,7372,Computer hardware,7.70,0.00,7.70
Children and Young Peoples Services,Head of Early Help Inclusion & Vulnerable Children.,071569,Woodhouse Close Childrens Centre,Supplies and Services,332047,Printing Stationery and Gen Off Exps,09-May-2019,000008561294837,AMZN Mktp UK MN6B63E24,5942,Stationery,7.06,1.18,5.88
Children and Young Peoples Services,Head of Early Help Inclusion & Vulnerable Children.,071440,Barnard Castle One Point Hub,Supplies and Services,332047,Printing Stationery and Gen Off Exps,09-May-2019,000008561294845,AMZN Mktp UK MN99R2EC4,5942,Stationery,7.06,1.18,5.88
Children and Young Peoples Services,Head of Early Help Inclusion & Vulnerable Children.,071440,Barnard Castle One Point Hub,Supplies and Services,304335,Equipment and Materials,09-May-2019,000008561294853,AMZNMktplace,5999,ICT supplies etc,23.99,4.00,19.99
Regeneration and Local Services,Corporate Property and Land,021242,Catering - County Hall,Supplies and Services,324117,Provisions E324,09-May-2019,000008561294867,JR HOLLAND FOODSERVICE,5499,Catering costs - provisions,169.78,0.00,169.78
Regeneration and Local Services,Corporate Property and Land,021242,Catering - County Hall,Supplies and Services,324117,Provisions E324,09-May-2019,000008561294877,JR HOLLAND FOODSERVICE,5499,Catering costs - provisions,13.80,0.00,13.80
Regeneration and Local Services,Environmental Services,010367,C&G - South Grounds Maintenance,Supplies and Services,304221,Equipment and Materials,09-May-2019,000008561294899,BTL TIMBER AND HARDWAR,5099,Direct materials,31.32,5.22,26.10
Regeneration and Local Services,Development and Housing,030771,Durham Advance Flexible Fund,Supplies and Services,384700,Miscellaneous Expenses,09-May-2019,000008561294911,GO NORTH EAST LIMITED,4131,Miscellaneous grants,13.40,0.00,13.40
Regeneration and Local Services,Culture Sport and Tourism,054812,Gala Theatre - Catering etc,Supplies and Services,324117,Provisions E324,09-May-2019,000008561294929,JR HOLLAND FOODSERVICE,5499,Catering costs - provisions,11.65,0.00,11.65
Children and Young Peoples Services,Head of Childrens Social Care,085362,LAC & Permanence Team 2,Supplies and Services,384999,Miscellaneous Expenses,09-May-2019,000008561294983,CITY OF NEWCASTLE INTE,9399,Other expenses,11.00,0.00,11.00
Children and Young Peoples Services,Head of Childrens Social Care,085333,Coxhoe Satelite Home,Supplies and Services,328041,Clothing uniforms and laundry E328,09-May-2019,000008561294997,T K MAXX,5331,Clothing uniforms and laundry,14.98,0.00,14.98
Children and Young Peoples Services,Head of Childrens Social Care,085333,Coxhoe Satelite Home,Supplies and Services,328041,Clothing uniforms and laundry E328,09-May-2019,000008561295009,B & M RETAIL,5310,Clothing uniforms and laundry,5.99,0.00,5.99
Children and Young Peoples Services,Head of Childrens Social Care,085333,Coxhoe Satelite Home,Supplies and Services,328041,Clothing uniforms and laundry E328,09-May-2019,000008561295013,B & M RETAIL,5310,Clothing uniforms and laundry,10.00,0.00,10.00
Children and Young Peoples Services,Head of Childrens Social Care,085333,Coxhoe Satelite Home,Supplies and Services,324117,Provisions E324,09-May-2019,000008561295021,ALDI 12 774,5411,Catering costs - provisions,15.95,0.00,15.95
Regeneration and Local Services,Environmental Services,010561,Fleet - Morrison Busty Fleet,Transport,215013,Running Costs of Vehicles,09-May-2019,000008561295101,DVLA VEHICLE TAX,9399,Vehicle Excise Duty (VED),167.50,0.00,167.50
Regeneration and Local Services,Environmental Services,010864,Fleet - Hackworth Road Fleet,Transport,215013,Running Costs of Vehicles,09-May-2019,000008561295117,DVLA VEHICLE TAX,9399,Vehicle Excise Duty (VED),167.50,0.00,167.50
Regeneration and Local Services,Environmental Services,010551,Fleet - Chilton Fleet,Transport,215013,Running Costs of Vehicles,09-May-2019,000008561295125,DVLA VEHICLE TAX,9399,Vehicle Excise Duty (VED),617.50,0.00,617.50
Regeneration and Local Services,Environmental Services,010900,Fleet - Meadowfield Fleet,Transport,215013,Running Costs of Vehicles,09-May-2019,000008561295131,DVLA VEHICLE TAX,9399,Vehicle Excise Duty (VED),617.50,0.00,617.50
Regeneration and Local Services,Environmental Services,010900,Fleet - Meadowfield Fleet,Transport,215013,Running Costs of Vehicles,09-May-2019,000008561295137,DVLA VEHICLE TAX,9399,Vehicle Excise Duty (VED),617.50,0.00,617.50
Regeneration and Local Services,Environmental Services,010900,Fleet - Meadowfield Fleet,Transport,215013,Running Costs of Vehicles,09-May-2019,000008561295147,DVLA VEHICLE TAX,9399,Vehicle Excise Duty (VED),262.50,0.00,262.50
Regeneration and Local Services,Environmental Services,010561,Fleet - Morrison Busty Fleet,Transport,215013,Running Costs of Vehicles,09-May-2019,000008561295153,DVLA VEHICLE TAX,9399,Vehicle Excise Duty (VED),617.50,0.00,617.50
Regeneration and Local Services,Environmental Services,010900,Fleet - Meadowfield Fleet,Transport,215013,Running Costs of Vehicles,09-May-2019,000008561295163,DVLA VEHICLE TAX,9399,Vehicle Excise Duty (VED),127.50,0.00,127.50
Regeneration and Local Services,Environmental Services,010900,Fleet - Meadowfield Fleet,Transport,215013,Running Costs of Vehicles,09-May-2019,000008561295175,DVLA VEHICLE TAX,9399,Vehicle Excise Duty (VED),167.50,0.00,167.50
Regeneration and Local Services,Environmental Services,010900,Fleet - Meadowfield Fleet,Transport,215013,Running Costs of Vehicles,09-May-2019,000008561295179,DVLA VEHICLE TAX,9399,Vehicle Excise Duty (VED),167.50,0.00,167.50
Regeneration and Local Services,Environmental Services,010900,Fleet - Meadowfield Fleet,Transport,215013,Running Costs of Vehicles,09-May-2019,000008561295187,DVLA VEHICLE TAX,9399,Vehicle Excise Duty (VED),162.50,0.00,162.50
Regeneration and Local Services,Environmental Services,010561,Fleet - Morrison Busty Fleet,Transport,215013,Running Costs of Vehicles,09-May-2019,000008561295193,DVLA VEHICLE TAX,9399,Vehicle Excise Duty (VED),167.50,0.00,167.50
Regeneration and Local Services,Environmental Services,010900,Fleet - Meadowfield Fleet,Transport,215013,Running Costs of Vehicles,09-May-2019,000008561295203,DVLA VEHICLE TAX,9399,Vehicle Excise Duty (VED),127.50,0.00,127.50
Regeneration and Local Services,Environmental Services,010900,Fleet - Meadowfield Fleet,Transport,215013,Running Costs of Vehicles,09-May-2019,000008561295207,DVLA VEHICLE TAX,9399,Vehicle Excise Duty (VED),617.50,0.00,617.50
Children and Young Peoples Services,Head of Education and Skills,071732,Dean Bank Childcare,Supplies and Services,328041,Clothing uniforms and laundry E328,09-May-2019,000008561295243,B & M RETAIL,5310,Clothing uniforms and laundry,77.86,0.00,77.86
Children and Young Peoples Services,Head of Childrens Social Care,085334,West Rainton Satelite Home,Supplies and Services,324117,Provisions E324,09-May-2019,000008561295287,TESCO STORES 2371,5411,Catering costs - provisions,39.64,0.00,39.64
Adult and Health Services,Head of Adults,055302,Durham Pathways,Supplies and Services,324117,Provisions E324,09-May-2019,000008561295499,SAINSBURYS SACAT 0776,5411,Catering costs - provisions,4.40,0.00,4.40
Children and Young Peoples Services,Head of Early Help Inclusion & Vulnerable Children.,088115,North Area - Teenage Parent Programme,Supplies and Services,384999,Miscellaneous Expenses,09-May-2019,000008561295517,ROSEBUD CERAMICS,5945,Other expenses,355.00,0.00,355.00
Children and Young Peoples Services,Head of Early Help Inclusion & Vulnerable Children.,085954,Walworth,Supplies and Services,384999,Miscellaneous Expenses,09-May-2019,000008561295529,AMZN Mktp UK MN5UY40U4,5942,Other expenses,28.95,0.00,28.95
Children and Young Peoples Services,Head of Early Help Inclusion & Vulnerable Children.,085965,Barnard,Supplies and Services,312011,Newspapers books and periodicals E312,09-May-2019,000008561295539,Amazon.co.uk MN0V85E14,5969,Books-school library,14.41,2.40,12.01
Children and Young Peoples Services,Head of Early Help Inclusion & Vulnerable Children.,085965,Barnard,Supplies and Services,304259,Equipment and Materials,09-May-2019,000008561295545,Amazon.co.uk MN1QX5E94,5969,Equipment-purchase and rental,90.00,15.00,75.00
Children and Young Peoples Services,Head of Early Help Inclusion & Vulnerable Children.,085955,Auckland,Supplies and Services,324117,Provisions E324,09-May-2019,000008561295555,TESCO STORES 6329,5411,Catering costs - provisions,128.70,0.00,128.70
Children and Young Peoples Services,Head of Early Help Inclusion & Vulnerable Children.,085965,Barnard,Supplies and Services,304259,Equipment and Materials,09-May-2019,000008561295563,ARGOS RETAIL GROUP,5310,Equipment-purchase and rental,38.97,0.00,38.97
Regeneration and Local Services,Culture Sport and Tourism,054813,Gala Theatre - Technical,Supplies and Services,304259,Equipment and Materials,09-May-2019,000008561295603,WWW.LAMPS2UDIRECT.COM,5722,Equipment-purchase and rental,51.90,0.00,51.90
Regeneration and Local Services,Culture Sport and Tourism,054813,Gala Theatre - Technical,Supplies and Services,324117,Provisions E324,09-May-2019,000008561295613,CO-OP GROUP 070133,5411,Catering costs - provisions,22.27,0.00,22.27
Regeneration and Local Services,Environmental Services,031201,Earthworks,Supplies and Services,352001,Conference Expenses,09-May-2019,000008561295631,SMOO CAVE HOTEL,7011,Conferencesseminars fees etc,70.50,0.00,70.50
Regeneration and Local Services,Environmental Services,010367,C&G - South Grounds Maintenance,Supplies and Services,304221,Equipment and Materials,09-May-2019,000008561295657,MKM PETERLEE,5211,Direct materials,6.19,1.03,5.16
Regeneration and Local Services,Corporate Property and Land,021234,Catering - Locomotion,Supplies and Services,324117,Provisions E324,09-May-2019,000008561295679,JR HOLLAND FOODSERVICE,5499,Catering costs - provisions,80.48,0.00,80.48
Regeneration and Local Services,Corporate Property and Land,010525,Catering - Green Lane,Supplies and Services,324117,Provisions E324,09-May-2019,000008561295743,JR HOLLAND FOODSERVICE,5499,Catering costs - provisions,28.00,0.00,28.00
Regeneration and Local Services,Corporate Property and Land,010525,Catering - Green Lane,Supplies and Services,324117,Provisions E324,09-May-2019,000008561295751,JR HOLLAND FOODSERVICE,5499,Catering costs - provisions,53.69,0.00,53.69
Regeneration and Local Services,Corporate Property and Land,010525,Catering - Green Lane,Supplies and Services,324117,Provisions E324,09-May-2019,000008561295757,JR HOLLAND FOODSERVICE,5499,Catering costs - provisions,32.50,0.00,32.50
Regeneration and Local Services,Corporate Property and Land,010525,Catering - Green Lane,Supplies and Services,324117,Provisions E324,09-May-2019,000008561295765,JR HOLLAND FOODSERVICE,5499,Catering costs - provisions,5.88,0.00,5.88
Children and Young Peoples Services,Head of Childrens Social Care,085331,New Lea Childrens Home,Supplies and Services,324117,Provisions E324,09-May-2019,000008561295873,ASDA SUPERSTORE,5411,Catering costs - provisions,96.80,0.00,96.80
Regeneration and Local Services,Development and Housing,030771,Durham Advance Flexible Fund,Transport,235057,Public Transport,09-May-2019,000008561295999,WALKERGATE CAR PAR,7523,Staff travelling,3.00,0.00,3.00
Regeneration and Local Services,Development and Housing,031500,Housing Solutions - Core Team,Supplies and Services,352001,Conference Expenses,09-May-2019,000008561296009,HAYAT HOTEL,7011,Conferencesseminars fees etc,100.00,16.67,83.33
Children and Young Peoples Services,Head of Childrens Social Care,085342,9 Cedar Drive Aycliffe,Supplies and Services,384999,Miscellaneous Expenses,09-May-2019,000008561296033,GAME RETAIL,5945,Other expenses,30.00,0.00,30.00
Children and Young Peoples Services,Head of Childrens Social Care,085342,9 Cedar Drive Aycliffe,Supplies and Services,324117,Provisions E324,09-May-2019,000008561296045,TESCO STORES 2916,5411,Catering costs - provisions,31.00,0.00,31.00
Children and Young Peoples Services,Head of Childrens Social Care,085342,9 Cedar Drive Aycliffe,Supplies and Services,304403,Equipment and Materials,09-May-2019,000008561296053,CLINTONS 1225,5947,Other consumables,2.35,0.00,2.35
Children and Young Peoples Services,Head of Childrens Social Care,085342,9 Cedar Drive Aycliffe,Supplies and Services,324117,Provisions E324,09-May-2019,000008561296059,WM MORRISONS STORE,5411,Catering costs - provisions,24.50,0.00,24.50
Children and Young Peoples Services,Head of Childrens Social Care,085342,9 Cedar Drive Aycliffe,Supplies and Services,348037,Subsistence E348,09-May-2019,000008561296069,MCDONALDS,5814,Subsistence,9.44,0.00,9.44
Children and Young Peoples Services,Head of Childrens Social Care,085342,9 Cedar Drive Aycliffe,Supplies and Services,348037,Subsistence E348,09-May-2019,000008561296075,MCDONALDS,5814,Subsistence,2.38,0.00,2.38
Children and Young Peoples Services,Head of Childrens Social Care,085342,9 Cedar Drive Aycliffe,Supplies and Services,304259,Equipment and Materials,09-May-2019,000008561296083,J D SPORTS 152,5941,Equipment-purchase and rental,90.05,0.00,90.05
Regeneration and Local Services,Corporate Property and Land,030691,Catering - Durham Dales Centre,Supplies and Services,324117,Provisions E324,09-May-2019,000008561296139,JR HOLLAND FOODSERVICE,5499,Catering costs - provisions,17.00,0.00,17.00
Regeneration and Local Services,Corporate Property and Land,030691,Catering - Durham Dales Centre,Supplies and Services,324117,Provisions E324,09-May-2019,000008561296145,JR HOLLAND FOODSERVICE,5499,Catering costs - provisions,127.89,0.00,127.89
Adult and Health Services,Head of Adults,055643,Hawthorn House LD Respite Unit,Supplies and Services,324117,Provisions E324,09-May-2019,000008561296193,JR HOLLAND FOODSERVICE,5499,Catering costs - provisions,29.20,0.00,29.20
Adult and Health Services,Head of Adults,055643,Hawthorn House LD Respite Unit,Supplies and Services,324117,Provisions E324,09-May-2019,000008561296203,JR HOLLAND FOODSERVICE,5499,Catering costs - provisions,10.55,0.00,10.55
Regeneration and Local Services,Environmental Services,031202,North Pennines - Peatscapes,Supplies and Services,348037,Subsistence E348,09-May-2019,000008561296217,BORDAR HOUSE TEAS,5814,Subsistence,9.45,0.00,9.45
Regeneration and Local Services,Environmental Services,010301,C&G - North Grounds Maintenance,Supplies and Services,312011,Newspapers books and periodicals E312,09-May-2019,000008561296249,GRALANDS WOODWORK SUPP,5251,Books-school library,12.82,0.00,12.82
Regeneration and Local Services,Environmental Services,010301,C&G - North Grounds Maintenance,Supplies and Services,312011,Newspapers books and periodicals E312,09-May-2019,000008561296251,GRALANDS WOODWORK SUPP,5251,Books-school library,2.50,0.00,2.50
Regeneration and Local Services,Environmental Services,010301,C&G - North Grounds Maintenance,Supplies and Services,304403,Equipment and Materials,09-May-2019,000008561296261,BESCOL,5231,Other consumables,68.29,11.38,56.91
Children and Young Peoples Services,Head of Early Help Inclusion & Vulnerable Children.,074000,TTF-Attachment and Results,Transfer Payments,525033,Other,09-May-2019,000008561296273,ASDA GEORGE COM LEEDS,5411,Grants to individuals,144.95,24.16,120.79
Resources BK0010,Digital and Customer Services,065335,School Services - Implementations,Supplies and Services,304303,Equipment and Materials,09-May-2019,000008561296297,AMZNMktplace,5999,Network for resale,21.62,3.60,18.02
Resources BK0010,Digital and Customer Services,065335,School Services - Implementations,Supplies and Services,304639,Equipment and Materials,09-May-2019,000008561296301,AMZNMktplace,5999,Technicians-supplies,18.99,3.17,15.82
Resources BK0010,Digital and Customer Services,065335,School Services - Implementations,Supplies and Services,304639,Equipment and Materials,09-May-2019,000008561296307,GEDAT Datentechnik Gmb,5045,Technicians-supplies,127.77,21.30,106.47
Children and Young Peoples Services,Head of Early Help Inclusion & Vulnerable Children.,085957,Secure Management,Supplies and Services,304245,Equipment and Materials,09-May-2019,000008561296337,SP VIRO DISPLAY,5734,Materials,15.89,0.00,15.89
Children and Young Peoples Services,Head of Early Help Inclusion & Vulnerable Children.,085957,Secure Management,Supplies and Services,384999,Miscellaneous Expenses,09-May-2019,000008561296343,PAYPAL SWIFTPRINTU,2741,Other expenses,71.94,11.99,59.95
Children and Young Peoples Services,Head of Early Help Inclusion & Vulnerable Children.,085957,Secure Management,Supplies and Services,304245,Equipment and Materials,09-May-2019,000008561296351,FAST KEY SERVICES LIMI,7399,Materials,7.26,1.21,6.05
Children and Young Peoples Services,Head of Early Help Inclusion & Vulnerable Children.,085954,Walworth,Supplies and Services,384871,Miscellaneous Expenses,09-May-2019,000008561296353,R.O.F. 59,5812,Training-other activities,12.00,0.00,12.00
Dedicated Schools Grant BG0015,DSG High Needs Block,079040,SENSS-HQ,Supplies and Services,340001,Postages E340,09-May-2019,000008561296357,ROYAL MAIL ONLINE SHOP,9402,Postages,140.00,0.00,140.00
Transformation and Partnerships,Business Support,052986,CYPS - Locality and Operational Support,Supplies and Services,328041,Clothing uniforms and laundry E328,09-May-2019,000008561296365,WWW.ARGOS.CO.UK,5310,Clothing uniforms and laundry,137.91,0.00,137.91
Transformation and Partnerships,Business Support,052986,CYPS - Locality and Operational Support,Supplies and Services,328041,Clothing uniforms and laundry E328,09-May-2019,000008561296369,WWW.ARGOS.CO.UK,5310,Clothing uniforms and laundry,58.94,0.00,58.94
Transformation and Partnerships,Business Support,052986,CYPS - Locality and Operational Support,Supplies and Services,312011,Newspapers books and periodicals E312,09-May-2019,000008561296377,Amazon.co.uk MN9SG8EV4,5969,Books-school library,80.37,13.40,66.97
Children and Young Peoples Services,Head of Education and Skills,071903,EYDCP-Sustainability EDS,Supplies and Services,304403,Equipment and Materials,09-May-2019,000008561296455,AMZNMktplace,5999,Other consumables,36.51,0.00,36.51
Regeneration and Local Services,Culture Sport and Tourism,054235,Bishop Auckland Town Hall Cafe,Supplies and Services,324117,Provisions E324,09-May-2019,000008561296475,JR HOLLAND FOODSERVICE,5499,Catering costs - provisions,28.44,0.00,28.44
Regeneration and Local Services,Environmental Services,026591,C&G - Hardwick Park,Supplies and Services,304245,Equipment and Materials,09-May-2019,000008561296485,AMZNMktplace,5999,Materials,21.90,0.00,21.90
Regeneration and Local Services,Environmental Services,026591,C&G - Hardwick Park,Supplies and Services,332047,Printing Stationery and Gen Off Exps,09-May-2019,000008561296495,AMZNMktplace,5999,Stationery,20.00,3.33,16.67
Regeneration and Local Services,Environmental Services,026591,C&G - Hardwick Park,Supplies and Services,332047,Printing Stationery and Gen Off Exps,09-May-2019,000008561296507,AMZNMktplace,5999,Stationery,8.00,1.33,6.67
Regeneration and Local Services,Environmental Services,026591,C&G - Hardwick Park,Supplies and Services,332047,Printing Stationery and Gen Off Exps,09-May-2019,000008561296515,AMZNMktplace,5999,Stationery,19.96,3.33,16.63
Regeneration and Local Services,Environmental Services,026591,C&G - Hardwick Park,Supplies and Services,332047,Printing Stationery and Gen Off Exps,09-May-2019,000008561296521,WWW.TTS-GROUPS.CO.UK,5943,Stationery,22.79,3.80,18.99
Regeneration and Local Services,Corporate Property and Land,021324,Catering - Meadowfield,Supplies and Services,324117,Provisions E324,09-May-2019,000008561296525,JR HOLLAND FOODSERVICE,5499,Catering costs - provisions,10.35,0.00,10.35
Regeneration and Local Services,Corporate Property and Land,021324,Catering - Meadowfield,Supplies and Services,324117,Provisions E324,09-May-2019,000008561296535,JR HOLLAND FOODSERVICE,5499,Catering costs - provisions,60.58,0.00,60.58
Children and Young Peoples Services,Head of Childrens Social Care,085333,Coxhoe Satelite Home,Supplies and Services,324117,Provisions E324,09-May-2019,000008561296553,ASDA STORES LTD,5411,Catering costs - provisions,12.00,0.00,12.00
Regeneration and Local Services,Environmental Services,010301,C&G - North Grounds Maintenance,Supplies and Services,304403,Equipment and Materials,09-May-2019,000008561296563,TIMPSON LTD,7251,Other consumables,20.00,3.33,16.67
Regeneration and Local Services,Environmental Services,010301,C&G - North Grounds Maintenance,Supplies and Services,312011,Newspapers books and periodicals E312,09-May-2019,000008561296571,TOOLSTATION LTD,5251,Books-school library,157.69,26.28,131.41
Regeneration and Local Services,Environmental Services,010301,C&G - North Grounds Maintenance,Supplies and Services,328041,Clothing uniforms and laundry E328,09-May-2019,000008561296581,THOMAS OWEN & SONS /N/,5611,Clothing uniforms and laundry,4.08,0.00,4.08
Regeneration and Local Services,Environmental Services,010301,C&G - North Grounds Maintenance,Supplies and Services,328041,Clothing uniforms and laundry E328,09-May-2019,000008561296587,B & M RETAIL,5310,Clothing uniforms and laundry,4.99,0.83,4.16
Children and Young Peoples Services,Head of Childrens Social Care,085333,Coxhoe Satelite Home,Supplies and Services,324117,Provisions E324,09-May-2019,000008561296629,TESCO STORES 2916,5411,Catering costs - provisions,50.58,0.00,50.58
Resources BK0010,Corporate Finance & Commercial Services,069800,Corporate Procurement 069800,Employees,040149,Recruitment Instruction and Training,09-May-2019,000008561296695,WWW.CIPS.ORG,8699,Training-all costs,137.00,0.00,137.00
Regeneration and Local Services,Environmental Services,031200,North Pennines Core,Supplies and Services,340001,Postages E340,09-May-2019,000008561296741,THE POST OFFICE,9402,Postages,6.00,0.00,6.00
Adult and Health Services,Head of Adults,055807,Newton Aycliffe Pathways,Supplies and Services,384199,Miscellaneous Expenses,09-May-2019,000008561296805,PIONEERING CARE PARTNE,8050,Other hired and contracted services,48.00,0.00,48.00
Adult and Health Services,Head of Adults,055807,Newton Aycliffe Pathways,Supplies and Services,384199,Miscellaneous Expenses,09-May-2019,000008561296811,PIONEERING CARE PARTNE,8050,Other hired and contracted services,48.00,0.00,48.00
Adult and Health Services,Head of Adults,055807,Newton Aycliffe Pathways,Supplies and Services,324117,Provisions E324,09-May-2019,000008561296821,ALDI 74 774,5411,Catering costs - provisions,2.96,0.00,2.96
Transformation and Partnerships,Business Support,069010,Administration 069010,Supplies and Services,336005,Advertising E336,09-May-2019,000008561296849,FACEBK XXVBZJA5B2,7311,Advertising other than for staff,254.55,0.00,254.55
Children and Young Peoples Services,Head of Childrens Social Care,085363,LAC & Permanence Team 3,Supplies and Services,304259,Equipment and Materials,09-May-2019,000008561296871,DARLINGTON BC INTERNET,9399,Equipment-purchase and rental,11.00,0.00,11.00
Children and Young Peoples Services,Head of Education and Skills,071801,Selby Cottage Childcare Centre,Supplies and Services,324117,Provisions E324,10-May-2019,000006325239470,ASDA GROCERIES ONLINE,5411,Catering costs - provisions,159.44,0.00,159.44
Children and Young Peoples Services,Head of Education and Skills,054640,Durham Learning Resources 054640,Supplies and Services,304245,Equipment and Materials,10-May-2019,000006325239482,AMZN Mktp UK MN0QE80I4,5942,Materials,40.40,6.73,33.67
Children and Young Peoples Services,Head of Education and Skills,054640,Durham Learning Resources 054640,Supplies and Services,304245,Equipment and Materials,10-May-2019,000006325239500,AMBERPUMPKI,5999,Materials,71.50,11.92,59.58
Regeneration and Local Services,Development and Housing,031576,B& B - Temp Accom,Supplies and Services,364320,Grants to Voluntary Organisations,10-May-2019,000006325239518,HAYAT HOTEL,7011,Accommodation assistance,300.00,50.00,250.00
Children and Young Peoples Services,Head of Early Help Inclusion & Vulnerable Children.,071515,Stanley Childrens Centre,Supplies and Services,344033,Telephones,10-May-2019,000006325239532,AMZN Mktp UK MN9C781W4,5942,Telephones general-all costs,7.12,1.19,5.93
Children and Young Peoples Services,Head of Childrens Social Care,085621,Families First Aycliffe,Supplies and Services,338045,Services,10-May-2019,000006325239630,MIDDLESBROUGH COUNCIL,9399,Legal expenses 338045,11.00,0.00,11.00
Children and Young Peoples Services,Head of Childrens Social Care,085352,Tow Law CU,Supplies and Services,384999,Miscellaneous Expenses,10-May-2019,000006325239716,SUNDERLAND AFC,7997,Other expenses,56.25,0.00,56.25
Regeneration and Local Services,Development and Housing,030544,Rural Employability - Client Engagement,Transport,235057,Public Transport,10-May-2019,000006325239748,ARRIVA NORTH EAST,4131,Staff travelling,26.20,0.00,26.20
Regeneration and Local Services,Development and Housing,030544,Rural Employability - Client Engagement,Transport,235057,Public Transport,10-May-2019,000006325239750,GO NORTH EAST LIMITED,4131,Staff travelling,5.20,0.00,5.20
Regeneration and Local Services,Development and Housing,030544,Rural Employability - Client Engagement,Transport,235057,Public Transport,10-May-2019,000006325239756,GO NORTH EAST LIMITED,4131,Staff travelling,40.20,0.00,40.20
Regeneration and Local Services,Corporate Property and Land,021242,Catering - County Hall,Supplies and Services,324117,Provisions E324,10-May-2019,000006325239762,HOPWELLS LTD,5811,Catering costs - provisions,357.41,0.00,357.41
Regeneration and Local Services,Corporate Property and Land,021242,Catering - County Hall,Supplies and Services,324117,Provisions E324,10-May-2019,000006325239766,HOPWELLS LTD,5811,Catering costs - provisions,214.69,0.00,214.69
Regeneration and Local Services,Corporate Property and Land,021242,Catering - County Hall,Supplies and Services,324117,Provisions E324,10-May-2019,000006325239772,JR HOLLAND FOODSERVICE,5499,Catering costs - provisions,6.94,0.00,6.94
Regeneration and Local Services,Corporate Property and Land,021242,Catering - County Hall,Supplies and Services,324117,Provisions E324,10-May-2019,000006325239776,JR HOLLAND FOODSERVICE,5499,Catering costs - provisions,150.21,0.00,150.21
Regeneration and Local Services,Corporate Property and Land,021242,Catering - County Hall,Supplies and Services,324117,Provisions E324,10-May-2019,000006325239778,JR HOLLAND FOODSERVICE,5499,Catering costs - provisions,37.20,0.00,37.20
Regeneration and Local Services,Development and Housing,030544,Rural Employability - Client Engagement,Supplies and Services,324117,Provisions E324,10-May-2019,000006325239784,COSTA COFFEE,5814,Catering costs - provisions,5.50,0.92,4.58
Regeneration and Local Services,Development and Housing,030544,Rural Employability - Client Engagement,Supplies and Services,324117,Provisions E324,10-May-2019,000006325239788,COSTA COFFEE,5814,Catering costs - provisions,4.10,0.68,3.42
Regeneration and Local Services,Development and Housing,030771,Durham Advance Flexible Fund,Supplies and Services,384700,Miscellaneous Expenses,10-May-2019,000006325239794,ARRIVA NORTH EAST,4131,Miscellaneous grants,26.20,0.00,26.20
Regeneration and Local Services,Culture Sport and Tourism,054812,Gala Theatre - Catering etc,Supplies and Services,324117,Provisions E324,10-May-2019,000006325239798,HOPWELLS LTD,5811,Catering costs - provisions,24.34,0.00,24.34
Regeneration and Local Services,Culture Sport and Tourism,054812,Gala Theatre - Catering etc,Premises,145009,Cleaning and Domestic Supplies,10-May-2019,000006325239804,ALLIANCE DISPOSABLES L,2842,Other cleaning and domestic costs,107.81,17.97,89.84
Children and Young Peoples Services,Head of Childrens Social Care,085333,Coxhoe Satelite Home,Supplies and Services,312011,Newspapers books and periodicals E312,10-May-2019,000006325239858,HOME BARGAINS,5251,Books-school library,5.98,0.00,5.98
Children and Young Peoples Services,Head of Childrens Social Care,085333,Coxhoe Satelite Home,Supplies and Services,328041,Clothing uniforms and laundry E328,10-May-2019,000006325239864,T K MAXX,5331,Clothing uniforms and laundry,11.98,0.00,11.98
Children and Young Peoples Services,Head of Childrens Social Care,085333,Coxhoe Satelite Home,Supplies and Services,324117,Provisions E324,10-May-2019,000006325239868,ALDI 12 774,5411,Catering costs - provisions,66.99,0.00,66.99
Regeneration and Local Services,Environmental Services,010900,Fleet - Meadowfield Fleet,Transport,215013,Running Costs of Vehicles,10-May-2019,000006325239942,DVLA VEHICLE TAX,9399,Vehicle Excise Duty (VED),262.50,0.00,262.50
Regeneration and Local Services,Environmental Services,010551,Fleet - Chilton Fleet,Transport,215013,Running Costs of Vehicles,10-May-2019,000006325239946,DVLA VEHICLE TAX,9399,Vehicle Excise Duty (VED),262.50,0.00,262.50
Regeneration and Local Services,Environmental Services,010561,Fleet - Morrison Busty Fleet,Transport,215013,Running Costs of Vehicles,10-May-2019,000006325239954,DVLA VEHICLE TAX,9399,Vehicle Excise Duty (VED),262.50,0.00,262.50
Regeneration and Local Services,Environmental Services,010900,Fleet - Meadowfield Fleet,Transport,215013,Running Costs of Vehicles,10-May-2019,000006325239958,DVLA VEHICLE TAX,9399,Vehicle Excise Duty (VED),262.50,0.00,262.50
Regeneration and Local Services,Environmental Services,010900,Fleet - Meadowfield Fleet,Transport,215013,Running Costs of Vehicles,10-May-2019,000006325239964,DVLA VEHICLE TAX,9399,Vehicle Excise Duty (VED),262.50,0.00,262.50
Regeneration and Local Services,Environmental Services,010864,Fleet - Hackworth Road Fleet,Transport,215013,Running Costs of Vehicles,10-May-2019,000006325239970,DVLA VEHICLE TAX,9399,Vehicle Excise Duty (VED),722.50,0.00,722.50
Regeneration and Local Services,Environmental Services,010900,Fleet - Meadowfield Fleet,Transport,215013,Running Costs of Vehicles,10-May-2019,000006325239976,DVLA VEHICLE TAX,9399,Vehicle Excise Duty (VED),262.50,0.00,262.50
Regeneration and Local Services,Environmental Services,010551,Fleet - Chilton Fleet,Transport,215013,Running Costs of Vehicles,10-May-2019,000006325239980,DVLA VEHICLE TAX,9399,Vehicle Excise Duty (VED),262.50,0.00,262.50
Regeneration and Local Services,Environmental Services,010900,Fleet - Meadowfield Fleet,Transport,215013,Running Costs of Vehicles,10-May-2019,000006325239986,DVLA VEHICLE TAX,9399,Vehicle Excise Duty (VED),262.50,0.00,262.50
Regeneration and Local Services,Environmental Services,010561,Fleet - Morrison Busty Fleet,Transport,215013,Running Costs of Vehicles,10-May-2019,000006325239990,DVLA VEHICLE TAX,9399,Vehicle Excise Duty (VED),262.50,0.00,262.50
Regeneration and Local Services,Environmental Services,010561,Fleet - Morrison Busty Fleet,Transport,215013,Running Costs of Vehicles,10-May-2019,000006325239994,DVLA VEHICLE TAX,9399,Vehicle Excise Duty (VED),262.50,0.00,262.50
Regeneration and Local Services,Environmental Services,010551,Fleet - Chilton Fleet,Transport,215013,Running Costs of Vehicles,10-May-2019,000006325239998,DVLA VEHICLE TAX,9399,Vehicle Excise Duty (VED),262.50,0.00,262.50
Regeneration and Local Services,Environmental Services,010551,Fleet - Chilton Fleet,Transport,215013,Running Costs of Vehicles,10-May-2019,000006325240002,DVLA VEHICLE TAX,9399,Vehicle Excise Duty (VED),262.50,0.00,262.50
Regeneration and Local Services,Environmental Services,010900,Fleet - Meadowfield Fleet,Transport,215013,Running Costs of Vehicles,10-May-2019,000006325240006,DVLA VEHICLE TAX,9399,Vehicle Excise Duty (VED),262.50,0.00,262.50
Regeneration and Local Services,Environmental Services,010561,Fleet - Morrison Busty Fleet,Transport,215013,Running Costs of Vehicles,10-May-2019,000006325240008,DVLA VEHICLE TAX,9399,Vehicle Excise Duty (VED),262.50,0.00,262.50
Regeneration and Local Services,Environmental Services,010900,Fleet - Meadowfield Fleet,Transport,215013,Running Costs of Vehicles,10-May-2019,000006325240016,DVLA VEHICLE TAX,9399,Vehicle Excise Duty (VED),262.50,0.00,262.50
Regeneration and Local Services,Environmental Services,010900,Fleet - Meadowfield Fleet,Transport,215013,Running Costs of Vehicles,10-May-2019,000006325240020,DVLA VEHICLE TAX,9399,Vehicle Excise Duty (VED),262.50,0.00,262.50
Regeneration and Local Services,Environmental Services,010900,Fleet - Meadowfield Fleet,Transport,215013,Running Costs of Vehicles,10-May-2019,000006325240026,DVLA VEHICLE TAX,9399,Vehicle Excise Duty (VED),262.50,0.00,262.50
Regeneration and Local Services,Environmental Services,010561,Fleet - Morrison Busty Fleet,Transport,215013,Running Costs of Vehicles,10-May-2019,000006325240030,DVLA VEHICLE TAX,9399,Vehicle Excise Duty (VED),262.50,0.00,262.50
Regeneration and Local Services,Environmental Services,010900,Fleet - Meadowfield Fleet,Transport,215013,Running Costs of Vehicles,10-May-2019,000006325240034,DVLA VEHICLE TAX,9399,Vehicle Excise Duty (VED),262.50,0.00,262.50
Regeneration and Local Services,Environmental Services,010561,Fleet - Morrison Busty Fleet,Transport,215013,Running Costs of Vehicles,10-May-2019,000006325240040,DVLA VEHICLE TAX,9399,Vehicle Excise Duty (VED),262.50,0.00,262.50
Regeneration and Local Services,Environmental Services,010900,Fleet - Meadowfield Fleet,Transport,215013,Running Costs of Vehicles,10-May-2019,000006325240044,DVLA VEHICLE TAX,9399,Vehicle Excise Duty (VED),262.50,0.00,262.50
Regeneration and Local Services,Environmental Services,010900,Fleet - Meadowfield Fleet,Transport,215013,Running Costs of Vehicles,10-May-2019,000006325240050,DVLA VEHICLE TAX,9399,Vehicle Excise Duty (VED),262.50,0.00,262.50
Regeneration and Local Services,Environmental Services,010551,Fleet - Chilton Fleet,Transport,215013,Running Costs of Vehicles,10-May-2019,000006325240056,DVLA VEHICLE TAX,9399,Vehicle Excise Duty (VED),262.50,0.00,262.50
Regeneration and Local Services,Environmental Services,010551,Fleet - Chilton Fleet,Transport,215013,Running Costs of Vehicles,10-May-2019,000006325240058,DVLA VEHICLE TAX,9399,Vehicle Excise Duty (VED),262.50,0.00,262.50
Regeneration and Local Services,Environmental Services,010900,Fleet - Meadowfield Fleet,Transport,215013,Running Costs of Vehicles,10-May-2019,000006325240064,DVLA VEHICLE TAX,9399,Vehicle Excise Duty (VED),262.50,0.00,262.50
Regeneration and Local Services,Environmental Services,010900,Fleet - Meadowfield Fleet,Transport,215013,Running Costs of Vehicles,10-May-2019,000006325240072,DVLA VEHICLE TAX,9399,Vehicle Excise Duty (VED),262.50,0.00,262.50
Children and Young Peoples Services,Head of Education and Skills,071732,Dean Bank Childcare,Supplies and Services,324117,Provisions E324,10-May-2019,000006325240138,JR HOLLAND FOODSERVICE,5499,Catering costs - provisions,179.45,0.00,179.45
Children and Young Peoples Services,Head of Education and Skills,071732,Dean Bank Childcare,Supplies and Services,324117,Provisions E324,10-May-2019,000006325240146,JR HOLLAND FOODSERVICE,5499,Catering costs - provisions,277.65,0.00,277.65
Regeneration and Local Services,Culture Sport and Tourism,011223,Operations Locality 1,Supplies and Services,312011,Newspapers books and periodicals E312,10-May-2019,000006325240150,THE RAMP PEOPLE,5251,Books-school library,72.00,12.00,60.00
Regeneration and Local Services,Culture Sport and Tourism,011223,Operations Locality 1,Supplies and Services,328041,Clothing uniforms and laundry E328,10-May-2019,000006325240156,ARGOS RETAIL GROUP,5310,Clothing uniforms and laundry,79.96,0.00,79.96
Children and Young Peoples Services,Head of Early Help Inclusion & Vulnerable Children.,085965,Barnard,Supplies and Services,324117,Provisions E324,10-May-2019,000006325240272,TESCO STORES 6329,5411,Catering costs - provisions,78.50,0.00,78.50
Regeneration and Local Services,Culture Sport and Tourism,054813,Gala Theatre - Technical,Supplies and Services,312011,Newspapers books and periodicals E312,10-May-2019,000006325240290,AMZN Mktp UK MN2IH60M4,5942,Books-school library,19.62,0.00,19.62
Regeneration and Local Services,Culture Sport and Tourism,054813,Gala Theatre - Technical,Supplies and Services,312011,Newspapers books and periodicals E312,10-May-2019,000006325240296,AMZN Mktp UK MN55241X4,5942,Books-school library,28.97,0.00,28.97
Regeneration and Local Services,Culture Sport and Tourism,054813,Gala Theatre - Technical,Supplies and Services,312011,Newspapers books and periodicals E312,10-May-2019,000006325240298,AMZN Mktp UK MN7C601T4,5942,Books-school library,48.12,0.00,48.12
Regeneration and Local Services,Culture Sport and Tourism,054813,Gala Theatre - Technical,Supplies and Services,312011,Newspapers books and periodicals E312,10-May-2019,000006325240300,AMZN Mktp UK MN85U91B4,5942,Books-school library,55.68,0.00,55.68
Regeneration and Local Services,Culture Sport and Tourism,054813,Gala Theatre - Technical,Supplies and Services,304403,Equipment and Materials,10-May-2019,000006325240306,AMZNMKTPLACE AMAZON.CO,5999,Other consumables,5.99,0.00,5.99
Regeneration and Local Services,Environmental Services,010367,C&G - South Grounds Maintenance,Supplies and Services,324117,Provisions E324,10-May-2019,000006325240370,J M RAINE,5399,Catering costs - provisions,62.71,10.45,52.26
Regeneration and Local Services,Environmental Services,011060,C&G - Hardwick Park Catering,Supplies and Services,324117,Provisions E324,10-May-2019,000006325240390,HOPWELLS LTD,5811,Catering costs - provisions,48.64,0.00,48.64
Regeneration and Local Services,Culture Sport and Tourism,054815,Gala Theatre Stage School,Supplies and Services,328041,Clothing uniforms and laundry E328,10-May-2019,000006325240418,Argos Durham Arnis,5310,Clothing uniforms and laundry,40.00,0.00,40.00
Regeneration and Local Services,Development and Housing,030755,Durham Employment & Skills - Other Training,Employees,040149,Recruitment Instruction and Training,10-May-2019,000006325240428,WWW.CSKILLS.ORG,8249,Training-all costs,36.00,6.00,30.00
Regeneration and Local Services,Development and Housing,030755,Durham Employment & Skills - Other Training,Employees,040149,Recruitment Instruction and Training,10-May-2019,000006325240430,WWW.CSKILLS.ORG,8249,Training-all costs,36.00,6.00,30.00
Regeneration and Local Services,Corporate Property and Land,021234,Catering - Locomotion,Supplies and Services,324117,Provisions E324,10-May-2019,000006325240440,HOPWELLS LTD,5811,Catering costs - provisions,84.90,14.15,70.75
Regeneration and Local Services,Corporate Property and Land,021234,Catering - Locomotion,Supplies and Services,324117,Provisions E324,10-May-2019,000006325240440 - 1,HOPWELLS LTD,5811,Catering costs - provisions,432.19,,432.19
Regeneration and Local Services,Corporate Property and Land,010525,Catering - Green Lane,Supplies and Services,324117,Provisions E324,10-May-2019,000006325240492,HOPWELLS LTD,5811,Catering costs - provisions,122.81,0.00,122.81
Regeneration and Local Services,Corporate Property and Land,010525,Catering - Green Lane,Supplies and Services,324117,Provisions E324,10-May-2019,000006325240498,HOPWELLS LTD,5811,Catering costs - provisions,-11.80,0.00,-11.80
Transformation and Partnerships,Partnerships & Community Engagement Div.,060472,Syrian Vulnerable Persons Scheme,Supplies and Services,304259,Equipment and Materials,10-May-2019,000006325240504,Durham County CNCL,9399,Equipment-purchase and rental,20.00,0.00,20.00
Regeneration and Local Services,Development and Housing,030771,Durham Advance Flexible Fund,Transport,235057,Public Transport,10-May-2019,000006325240516,AUCKLAND CASTLE,7523,Staff travelling,1.10,0.18,0.92
Children and Young Peoples Services,Head of Childrens Social Care,085331,New Lea Childrens Home,Supplies and Services,324117,Provisions E324,10-May-2019,000006325240574,ASDA SUPERSTORE,5411,Catering costs - provisions,89.13,0.00,89.13
Children and Young Peoples Services,Head of Childrens Social Care,085352,Tow Law CU,Supplies and Services,324117,Provisions E324,10-May-2019,000006325240676,ASDA STORES,5411,Catering costs - provisions,57.42,0.00,57.42
Children and Young Peoples Services,Head of Childrens Social Care,085352,Tow Law CU,Supplies and Services,304221,Equipment and Materials,10-May-2019,000006325240680,B & Q 1120,5211,Direct materials,88.28,0.00,88.28
Regeneration and Local Services,Corporate Property and Land,030691,Catering - Durham Dales Centre,Supplies and Services,324117,Provisions E324,10-May-2019,000006325240700,HOPWELLS LTD,5811,Catering costs - provisions,224.52,0.00,224.52
Regeneration and Local Services,Corporate Property and Land,030691,Catering - Durham Dales Centre,Supplies and Services,324117,Provisions E324,10-May-2019,000006325240704,JR HOLLAND FOODSERVICE,5499,Catering costs - provisions,118.61,0.00,118.61
Adult and Health Services,Head of Adults,055643,Hawthorn House LD Respite Unit,Supplies and Services,324117,Provisions E324,10-May-2019,000006325240760,HOPWELLS LTD,5811,Catering costs - provisions,77.83,0.00,77.83
Regeneration and Local Services,Environmental Services,031202,North Pennines - Peatscapes,Transport,215995,Running Costs of Vehicles,10-May-2019,000006325240768,Bondisle Garage Limite,7531,Vehicle running expenses,21.60,3.60,18.00
Regeneration and Local Services,Culture Sport and Tourism,054399,Local Delivery-Libraries,Supplies and Services,312009,Newspapers books and periodicals E312,10-May-2019,000006325240778,Amazon.co.uk MN72Z8AO4,5969,Newspapers books and periodicals,11.98,0.00,11.98
Children and Young Peoples Services,Head of Early Help Inclusion & Vulnerable Children.,071445,Chester le Street One Point Hub,Supplies and Services,352001,Conference Expenses,10-May-2019,000006325240838,B.com 1924531-YUY0R Ha,7011,Conferencesseminars fees etc,445.00,0.00,445.00
Children and Young Peoples Services,Head of Early Help Inclusion & Vulnerable Children.,071445,Chester le Street One Point Hub,Supplies and Services,352001,Conference Expenses,10-May-2019,000006325240842,HAYAT HOTEL,7011,Conferencesseminars fees etc,445.00,0.00,445.00
Resources BK0010,Digital and Customer Services,065335,School Services - Implementations,Supplies and Services,304639,Equipment and Materials,10-May-2019,000006325240852,REPLACEBASE,5732,Technicians-supplies,51.90,8.65,43.25
Resources BK0010,Digital and Customer Services,065335,School Services - Implementations,Supplies and Services,304639,Equipment and Materials,10-May-2019,000006325240854,HSO IFIXIT GMBH,7622,Technicians-supplies,24.06,4.01,20.05
Regeneration and Local Services,Development and Housing,030771,Durham Advance Flexible Fund,Supplies and Services,304259,Equipment and Materials,10-May-2019,000006325240866,GEN REGISTER OFFICE,9399,Equipment-purchase and rental,14.00,0.00,14.00
Children and Young Peoples Services,Head of Early Help Inclusion & Vulnerable Children.,085952,Secure Education,Supplies and Services,304245,Equipment and Materials,10-May-2019,000006325240896,SCREWFIX DIRECT,5200,Materials,114.72,19.12,95.60
Regeneration and Local Services,Transport and Contracted Services,031704,Care Connect - CCTV Countywide,Supplies and Services,384956,Miscellaneous Expenses,10-May-2019,000006325240952,SECURITY INDUSTRY,7393,Licences,220.00,0.00,220.00
Regeneration and Local Services,Environmental Services,026591,C&G - Hardwick Park,Supplies and Services,332047,Printing Stationery and Gen Off Exps,10-May-2019,000006325240956,AMZN Mktp UK MN2IL90M4,5942,Stationery,12.95,2.16,10.79
Regeneration and Local Services,Environmental Services,026591,C&G - Hardwick Park,Supplies and Services,332047,Printing Stationery and Gen Off Exps,10-May-2019,000006325240962,AMZNMktplace,5999,Stationery,21.90,3.65,18.25
Regeneration and Local Services,Environmental Services,026591,C&G - Hardwick Park,Supplies and Services,332047,Printing Stationery and Gen Off Exps,10-May-2019,000006325240966,AMZNMktplace,5999,Stationery,4.49,0.00,4.49
Regeneration and Local Services,Corporate Property and Land,021324,Catering - Meadowfield,Supplies and Services,324117,Provisions E324,10-May-2019,000006325240978,HOPWELLS LTD,5811,Catering costs - provisions,57.40,0.00,57.40
Children and Young Peoples Services,Head of Childrens Social Care,085352,Tow Law CU,Supplies and Services,340001,Postages E340,10-May-2019,000006325241018,THE POST OFFICE,9402,Postages,1.40,0.00,1.40
Children and Young Peoples Services,Head of Childrens Social Care,085352,Tow Law CU,Supplies and Services,348037,Subsistence E348,10-May-2019,000006325241024,ANEESAS BUFFET RESTAUR,5812,Subsistence,50.16,0.00,50.16
Resources BK0010,Corporate Finance & Commercial Services,069800,Corporate Procurement 069800,Employees,040149,Recruitment Instruction and Training,10-May-2019,000006325241106,WWW.CIPS.ORG,8699,Training-all costs,108.00,0.00,108.00
Children and Young Peoples Services,Head of Childrens Social Care,085332,Middlestone Moor CU,Supplies and Services,324117,Provisions E324,10-May-2019,000006325241142,ASDA SUPERSTORE 4987,5411,Catering costs - provisions,22.55,0.00,22.55
Regeneration and Local Services,Corporate Property and Land,021235,Catering - Wharton Park,Supplies and Services,324117,Provisions E324,10-May-2019,000006325241284,HOPWELLS LTD,5811,Catering costs - provisions,38.22,6.37,31.85
Regeneration and Local Services,Corporate Property and Land,021235,Catering - Wharton Park,Supplies and Services,324117,Provisions E324,10-May-2019,000006325241284 - 1,HOPWELLS LTD,5811,Catering costs - provisions,111.10,,111.10
Regeneration and Local Services,Corporate Property and Land,021235,Catering - Wharton Park,Supplies and Services,324117,Provisions E324,10-May-2019,000006325241290,HOPWELLS LTD,5811,Catering costs - provisions,-17.26,0.00,-17.26
Children and Young Peoples Services,Head of Childrens Social Care,085363,LAC & Permanence Team 3,Supplies and Services,304259,Equipment and Materials,10-May-2019,000006325241308,SUNDERLAND CC,9399,Equipment-purchase and rental,11.00,0.00,11.00
Children and Young Peoples Services,Head of Childrens Social Care,085363,LAC & Permanence Team 3,Supplies and Services,304259,Equipment and Materials,10-May-2019,000006325241310,KENT COUNTY COUNCIL,9399,Equipment-purchase and rental,11.00,0.00,11.00
Children and Young Peoples Services,Head of Childrens Social Care,085363,LAC & Permanence Team 3,Supplies and Services,304259,Equipment and Materials,10-May-2019,000006325241312,WWW.DURHAM.GOV.UK,9399,Equipment-purchase and rental,11.00,0.00,11.00
Regeneration and Local Services,Development and Housing,030771,Durham Advance Flexible Fund,Supplies and Services,304259,Equipment and Materials,10-May-2019,000006325241384,AMZN Digital,5735,Equipment-purchase and rental,49.65,0.00,49.65
Children and Young Peoples Services,Head of Education and Skills,070264,EDC Premises,Supplies and Services,324117,Provisions E324,10-May-2019,000006332680496,BATLEYS PERTH,5300,Catering costs - provisions,9.66,1.61,8.05
Children and Young Peoples Services,Head of Education and Skills,070264,EDC Premises,Supplies and Services,324117,Provisions E324,10-May-2019,000006332680496 - 1,BATLEYS PERTH,5300,Catering costs - provisions,122.79,,122.79
Children and Young Peoples Services,Head of Education and Skills,070264,EDC Premises,Supplies and Services,324117,Provisions E324,10-May-2019,000006332680512,BATLEYS PERTH,5300,Catering costs - provisions,3.79,0.00,3.79
Regeneration and Local Services,Environmental Services,011060,C&G - Hardwick Park Catering,Supplies and Services,324117,Provisions E324,10-May-2019,000006332681788,BATLEYS PERTH,5300,Catering costs - provisions,190.26,31.71,158.55
Regeneration and Local Services,Environmental Services,011060,C&G - Hardwick Park Catering,Supplies and Services,324117,Provisions E324,10-May-2019,000006332681788 - 1,BATLEYS PERTH,5300,Catering costs - provisions,94.38,,94.38
Regeneration and Local Services,Environmental Services,011060,C&G - Hardwick Park Catering,Supplies and Services,324117,Provisions E324,10-May-2019,000006332681806,BATLEYS PERTH,5300,Catering costs - provisions,20.14,3.36,16.78
Regeneration and Local Services,Corporate Property and Land,010525,Catering - Green Lane,Supplies and Services,324117,Provisions E324,10-May-2019,000006332681982,BATLEYS PERTH,5300,Catering costs - provisions,201.30,33.55,167.75
Regeneration and Local Services,Corporate Property and Land,010525,Catering - Green Lane,Supplies and Services,324117,Provisions E324,10-May-2019,000006332681982 - 1,BATLEYS PERTH,5300,Catering costs - provisions,20.76,,20.76
Adult and Health Services,Head of Adults,055643,Hawthorn House LD Respite Unit,Supplies and Services,324117,Provisions E324,10-May-2019,000006332682614,BATLEYS PERTH,5300,Catering costs - provisions,13.14,2.19,10.95
Adult and Health Services,Head of Adults,055643,Hawthorn House LD Respite Unit,Supplies and Services,324117,Provisions E324,10-May-2019,000006332682614 - 1,BATLEYS PERTH,5300,Catering costs - provisions,108.78,,108.78
Regeneration and Local Services,Environmental Services,031201,Earthworks,Supplies and Services,352001,Conference Expenses,10-May-2019,000006379920878,INVER LODGE HOTEL,7011,Conferencesseminars fees etc,48.50,0.00,48.50
Regeneration and Local Services,Business Durham CL0850,030699,Business Growth and Innovation General,Supplies and Services,304999,Equipment and Materials,10-May-2019,000008561294687,MAILCHIMP MONTHLY,5968,Misc equipment tools and materials,1.70,0.00,1.70
Regeneration and Local Services,Business Durham CL0850,030699,Business Growth and Innovation General,Supplies and Services,342033,Computers and Communications,10-May-2019,000008561294693,SLICKPLAN.COM,7372,Computer hardware,0.21,0.00,0.21
Resources BK0010,Digital and Customer Services,065335,School Services - Implementations,Supplies and Services,304639,Equipment and Materials,10-May-2019,000008561296309,GEDAT Datentechnik Gmb,5045,Technicians-supplies,3.51,0.00,3.51
Regeneration and Local Services,Development and Housing,030771,Durham Advance Flexible Fund,Supplies and Services,304259,Equipment and Materials,10-May-2019,000008630983935,GEN REGISTER OFFICE,9399,Equipment-purchase and rental,-7.50,0.00,-7.50
Children and Young Peoples Services,Head of Education and Skills,054640,Durham Learning Resources 054640,Supplies and Services,332047,Printing Stationery and Gen Off Exps,11-May-2019,000006325239506,AMZNMktplace,5999,Stationery,12.48,2.08,10.40
Children and Young Peoples Services,Head of Education and Skills,054640,Durham Learning Resources 054640,Supplies and Services,304245,Equipment and Materials,11-May-2019,000006325239512,AMZNMKTPLACE AMAZON.CO,5999,Materials,19.48,3.25,16.23
Regeneration and Local Services,Culture Sport and Tourism,011198,Culture & Sport Management 011198,Supplies and Services,344033,Telephones,11-May-2019,000006325239538,APPLE ONLINE STORE GBP,5732,Telephones general-all costs,19.00,3.17,15.83
Regeneration and Local Services,Business Durham CL0850,030699,Business Growth and Innovation General,Supplies and Services,304999,Equipment and Materials,11-May-2019,000006325239644,LINKEDIN-380 4461466,5968,Misc equipment tools and materials,11.46,0.00,11.46
Children and Young Peoples Services,Head of Childrens Social Care,085342,9 Cedar Drive Aycliffe,Supplies and Services,304403,Equipment and Materials,11-May-2019,000006325240082,CEX,5065,Other consumables,44.00,0.00,44.00
Children and Young Peoples Services,Head of Childrens Social Care,085342,9 Cedar Drive Aycliffe,Supplies and Services,384999,Miscellaneous Expenses,11-May-2019,000006325240088,BODYCARE,5977,Other expenses,8.09,0.00,8.09
Children and Young Peoples Services,Head of Childrens Social Care,085342,9 Cedar Drive Aycliffe,Supplies and Services,304999,Equipment and Materials,11-May-2019,000006325240092,SUPERDRUG STORES PLC,5912,Misc equipment tools and materials,4.00,0.00,4.00
Children and Young Peoples Services,Head of Early Help Inclusion & Vulnerable Children.,085956,Lumley,Supplies and Services,324117,Provisions E324,11-May-2019,000006325240276,TESCO STORES 6329,5411,Catering costs - provisions,78.20,0.00,78.20
Regeneration and Local Services,Culture Sport and Tourism,054813,Gala Theatre - Technical,Supplies and Services,304259,Equipment and Materials,11-May-2019,000006325240308,Prime Video MN4UF61T4,5735,Equipment-purchase and rental,7.99,0.00,7.99
Regeneration and Local Services,Culture Sport and Tourism,054813,Gala Theatre - Technical,Supplies and Services,304259,Equipment and Materials,11-May-2019,000006325240312,Prime Video MN0FU71H4,5735,Equipment-purchase and rental,5.99,0.00,5.99
Regeneration and Local Services,Culture Sport and Tourism,054813,Gala Theatre - Technical,Supplies and Services,304259,Equipment and Materials,11-May-2019,000006325240316,Prime Video MN94911W4,5735,Equipment-purchase and rental,7.99,0.00,7.99
Regeneration and Local Services,Culture Sport and Tourism,054813,Gala Theatre - Technical,Supplies and Services,312011,Newspapers books and periodicals E312,11-May-2019,000006325240318,AMZN Mktp UK MN64O7194,5942,Books-school library,7.90,0.00,7.90
Regeneration and Local Services,Culture Sport and Tourism,054813,Gala Theatre - Technical,Supplies and Services,304259,Equipment and Materials,11-May-2019,000006325240320,WWW.CALOR.CO.UK,5722,Equipment-purchase and rental,68.44,0.00,68.44
Regeneration and Local Services,Culture Sport and Tourism,054813,Gala Theatre - Technical,Supplies and Services,304221,Equipment and Materials,11-May-2019,000006325240326,B & Q 1006,5211,Direct materials,82.09,0.00,82.09
Regeneration and Local Services,Culture Sport and Tourism,054813,Gala Theatre - Technical,Supplies and Services,328041,Clothing uniforms and laundry E328,11-May-2019,000006325240328,ETSY.COM - FURNISHINGF,5699,Clothing uniforms and laundry,155.78,0.00,155.78
Regeneration and Local Services,Culture Sport and Tourism,054813,Gala Theatre - Technical,Supplies and Services,304403,Equipment and Materials,11-May-2019,000006325240334,PAYPAL VICTORIAPEP,5999,Other consumables,15.00,0.00,15.00
Regeneration and Local Services,Culture Sport and Tourism,054813,Gala Theatre - Technical,Supplies and Services,304259,Equipment and Materials,11-May-2019,000006325240344,DISCCYCLE/LEISUREOUT,5940,Equipment-purchase and rental,63.02,0.00,63.02
Regeneration and Local Services,Environmental Services,031201,Earthworks,Supplies and Services,352001,Conference Expenses,11-May-2019,000006325240362,DAVAR,7011,Conferencesseminars fees etc,360.00,0.00,360.00
Regeneration and Local Services,Development and Housing,031500,Housing Solutions - Core Team,Employees,040149,Recruitment Instruction and Training,11-May-2019,000006325240640,PREMIER INN,3811,Training-all costs,166.00,27.67,138.33
Regeneration and Local Services,Culture Sport and Tourism,054813,Gala Theatre - Technical,Supplies and Services,304259,Equipment and Materials,11-May-2019,000006332681738,HALFORDS ON LINE,5940,Equipment-purchase and rental,111.99,0.00,111.99
Regeneration and Local Services,Environmental Services,031233,North Pennines - Pennine Peatlife,Supplies and Services,340001,Postages E340,12-May-2019,000006325239614,DPD_LOCAL_ONLINE,4215,Postages,-15.59,0.00,-15.59
Transformation and Partnerships,Business Support,052986,CYPS - Locality and Operational Support,Supplies and Services,324117,Provisions E324,12-May-2019,000006325239708,TESCO STORES 2371,5411,Catering costs - provisions,30.66,0.00,30.66
Children and Young Peoples Services,Head of Childrens Social Care,085333,Coxhoe Satelite Home,Supplies and Services,324117,Provisions E324,12-May-2019,000006325239886,CO-OP GROUP 310016,5411,Catering costs - provisions,16.00,0.00,16.00
Children and Young Peoples Services,Head of Childrens Social Care,085342,9 Cedar Drive Aycliffe,Supplies and Services,348037,Subsistence E348,12-May-2019,000006325240098,STANLEY JEFFERSON,5812,Subsistence,13.05,0.00,13.05
Children and Young Peoples Services,Head of Early Help Inclusion & Vulnerable Children.,085954,Walworth,Supplies and Services,324117,Provisions E324,12-May-2019,000006325240278,TESCO STORES 6329,5411,Catering costs - provisions,72.84,0.00,72.84
Regeneration and Local Services,Culture Sport and Tourism,054813,Gala Theatre - Technical,Supplies and Services,304403,Equipment and Materials,12-May-2019,000006325240338,AMZNMktplace,5999,Other consumables,9.95,0.00,9.95
Regeneration and Local Services,Culture Sport and Tourism,054813,Gala Theatre - Technical,Supplies and Services,304221,Equipment and Materials,12-May-2019,000006325240348,B & Q 1006,5211,Direct materials,160.99,0.00,160.99
Children and Young Peoples Services,Head of Childrens Social Care,085331,New Lea Childrens Home,Supplies and Services,348037,Subsistence E348,12-May-2019,000006325240578,ZIZZI GATESHEAD,5812,Subsistence,24.66,0.00,24.66
Children and Young Peoples Services,Head of Childrens Social Care,085334,West Rainton Satelite Home,Supplies and Services,328041,Clothing uniforms and laundry E328,12-May-2019,000006325240616,B & M RETAIL,5310,Clothing uniforms and laundry,79.35,0.00,79.35
Children and Young Peoples Services,Head of Childrens Social Care,085334,West Rainton Satelite Home,Supplies and Services,328041,Clothing uniforms and laundry E328,12-May-2019,000006325240618,B & M RETAIL,5310,Clothing uniforms and laundry,9.47,0.00,9.47
Children and Young Peoples Services,Head of Childrens Social Care,085334,West Rainton Satelite Home,Supplies and Services,328041,Clothing uniforms and laundry E328,12-May-2019,000006325240620,B & M RETAIL,5310,Clothing uniforms and laundry,7.98,0.00,7.98
Children and Young Peoples Services,Head of Childrens Social Care,085342,9 Cedar Drive Aycliffe,Supplies and Services,384237,Miscellaneous Expenses,12-May-2019,000006325240666,SumUp European Circu,7999,Recreational exps outings parties,21.50,0.00,21.50
Children and Young Peoples Services,Head of Early Help Inclusion & Vulnerable Children.,085957,Secure Management,Supplies and Services,304245,Equipment and Materials,12-May-2019,000006325240900,Amazon.co.uk MN7CH4PL4,5969,Materials,34.79,5.80,28.99
Children and Young Peoples Services,Head of Childrens Social Care,085352,Tow Law CU,Supplies and Services,324117,Provisions E324,12-May-2019,000006325241026,HAPPY DAZE,5451,Catering costs - provisions,23.35,0.00,23.35
Children and Young Peoples Services,Head of Childrens Social Care,085352,Tow Law CU,Supplies and Services,348037,Subsistence E348,12-May-2019,000006325241032,JACKSONS WHARF,5813,Subsistence,45.10,0.00,45.10
Children and Young Peoples Services,Head of Childrens Social Care,085352,Tow Law CU,Transport,215995,Running Costs of Vehicles,12-May-2019,000006325241038,ANNFIELD PLAIN SVS,5541,Vehicle running expenses,47.00,0.00,47.00
Children and Young Peoples Services,Head of Childrens Social Care,085332,Middlestone Moor CU,Supplies and Services,308011,Furniture,12-May-2019,000006325241146,WWW.IKEA.COM,5712,Furniture repair and replacement,79.92,13.32,66.60
Children and Young Peoples Services,Head of Childrens Social Care,085332,Middlestone Moor CU,Supplies and Services,308011,Furniture,12-May-2019,000006325241146 - 1,WWW.IKEA.COM,5712,Furniture repair and replacement,0.03,,0.03
Children and Young Peoples Services,Head of Childrens Social Care,085332,Middlestone Moor CU,Supplies and Services,348037,Subsistence E348,12-May-2019,000006325241148,THE CLARENCE VILLA,5813,Subsistence,42.30,0.00,42.30
Regeneration and Local Services,Culture Sport and Tourism,011263,Louisa Centre 011263,Supplies and Services,304999,Equipment and Materials,12-May-2019,000006325241246,Amazon Prime MN2UJ6PR4,5968,Misc equipment tools and materials,7.99,0.00,7.99
Transformation and Partnerships,Business Support,069010,Administration 069010,Supplies and Services,312011,Newspapers books and periodicals E312,12-May-2019,000006325241252,Amazon.co.uk MN7JL7P74,5969,Books-school library,24.67,0.00,24.67
Adult and Health Services,Head of Adults,055309,Peterlee Pathways,Supplies and Services,308011,Furniture,12-May-2019,000006325241408,IKEA LIMITED,5712,Furniture repair and replacement,50.85,0.00,50.85
Regeneration and Local Services,Culture Sport and Tourism,054813,Gala Theatre - Technical,Supplies and Services,328041,Clothing uniforms and laundry E328,12-May-2019,000006332681746,WWW.ARGOS.CO.UK,5310,Clothing uniforms and laundry,128.94,0.00,128.94
Children and Young Peoples Services,Head of Childrens Social Care,085331,New Lea Childrens Home,Supplies and Services,328041,Clothing uniforms and laundry E328,12-May-2019,000006332682146,PRIMARK 670 GATESHEAD,5651,Clothing uniforms and laundry,79.80,0.00,79.80
Resources BK0010,Digital and Customer Services,065335,School Services - Implementations,Supplies and Services,304639,Equipment and Materials,12-May-2019,000006332682866,AMZNMKTPLACE AMAZON.CO,5999,Technicians-supplies,11.28,0.00,11.28
Resources BK0010,Digital and Customer Services,065335,School Services - Implementations,Supplies and Services,304639,Equipment and Materials,13-May-2019,000006325240858,HSO IFIXIT GMBH,7622,Technicians-supplies,0.66,0.00,0.66
Children and Young Peoples Services,Head of Education and Skills,071801,Selby Cottage Childcare Centre,Supplies and Services,304259,Equipment and Materials,13-May-2019,000006332680356,WILKO RETAIL LIMIT,5722,Equipment-purchase and rental,10.00,0.00,10.00
Regeneration and Local Services,Development and Housing,031617,Project Beta Sustainability Fund,Supplies and Services,304259,Equipment and Materials,13-May-2019,000006332680372,CITIZENCARD,9399,Equipment-purchase and rental,10.00,0.00,10.00
Regeneration and Local Services,Development and Housing,031617,Project Beta Sustainability Fund,Supplies and Services,304259,Equipment and Materials,13-May-2019,000006332680386,CITIZENCARD,9399,Equipment-purchase and rental,10.00,0.00,10.00
Regeneration and Local Services,Development and Housing,031617,Project Beta Sustainability Fund,Supplies and Services,304259,Equipment and Materials,13-May-2019,000006332680394,CITIZENCARD,9399,Equipment-purchase and rental,10.00,0.00,10.00
Regeneration and Local Services,Development and Housing,031617,Project Beta Sustainability Fund,Supplies and Services,304259,Equipment and Materials,13-May-2019,000006332680402,CITIZENCARD,9399,Equipment-purchase and rental,10.00,0.00,10.00
Regeneration and Local Services,Development and Housing,031617,Project Beta Sustainability Fund,Supplies and Services,304259,Equipment and Materials,13-May-2019,000006332680418,CITIZENCARD,9399,Equipment-purchase and rental,10.00,0.00,10.00
Children and Young Peoples Services,Head of Education and Skills,054640,Durham Learning Resources 054640,Supplies and Services,304245,Equipment and Materials,13-May-2019,000006332680428,Banggood.com,5311,Materials,22.98,0.00,22.98
Children and Young Peoples Services,Head of Education and Skills,054640,Durham Learning Resources 054640,Supplies and Services,304245,Equipment and Materials,13-May-2019,000006332680440,AMZNMktplace,5999,Materials,119.92,0.00,119.92
Children and Young Peoples Services,Head of Education and Skills,054640,Durham Learning Resources 054640,Supplies and Services,312011,Newspapers books and periodicals E312,13-May-2019,000006332680448,AMZNMktplace,5999,Books-school library,74.95,12.49,62.46
Children and Young Peoples Services,Head of Education and Skills,054640,Durham Learning Resources 054640,Supplies and Services,304245,Equipment and Materials,13-May-2019,000006332680452,AMZNMktplace,5999,Materials,224.85,37.48,187.37
Children and Young Peoples Services,Head of Education and Skills,054640,Durham Learning Resources 054640,Supplies and Services,304403,Equipment and Materials,13-May-2019,000006332680460,AMZNMKTPLACE AMAZON.CO,5999,Other consumables,5.94,0.99,4.95
Children and Young Peoples Services,Head of Education and Skills,054640,Durham Learning Resources 054640,Supplies and Services,304245,Equipment and Materials,13-May-2019,000006332680468,AMZ Puppets By post,5999,Materials,-119.92,0.00,-119.92
Children and Young Peoples Services,Head of Education and Skills,054640,Durham Learning Resources 054640,Supplies and Services,304245,Equipment and Materials,13-May-2019,000006332680474,AMZ Saintfield Lifesty,5999,Materials,-24.95,0.00,-24.95
Regeneration and Local Services,Environmental Services,010301,C&G - North Grounds Maintenance,Transport,215995,Running Costs of Vehicles,13-May-2019,000006332680488,BOWBURN SERVICES,5541,Vehicle running expenses,24.41,4.07,20.34
Dedicated Schools Grant BG0015,DSG High Needs Block,079050,SENSS-Sensory,Supplies and Services,384999,Miscellaneous Expenses,13-May-2019,000006332680598,B & M RETAIL,5310,Other expenses,4.99,0.00,4.99
Children and Young Peoples Services,Head of Early Help Inclusion & Vulnerable Children.,088107,Ferryhill & Newton Aycliffe 0-19 Community Family Hub,Supplies and Services,304403,Equipment and Materials,13-May-2019,000006332680612,AMZNMktplace,5999,Other consumables,29.99,0.00,29.99
